Workbook

Sheet Stammblatt
A1: Mandantenstammblatt (bei ja, bitte ankreuzen, ansonsten Felder ausfüllen)
A3: Allgemeine Daten | E3: Interne Daten
A4: Jahr | E4: Erfolgsreporter/in (Kürzel)
A5: Mdt.-Nr. | E5: Controller/in (Kürzel)
A6: Mdt.-Name | E6: Erfolgsreporting-Paket
A7: Straße | E7: Erfolgsreporting-Pauschale mtl
A8: PLZ, Ort | E8: Einzug für Kanzlei
A9: Unternehmensgegenstand | E9: Einzug für FA
A10: Finanzamt | E10: Einzug für Gemeinde
A11: Steuer-Nr. | E11: Steuerkonto-Online läuft
A12: Gewerbebetrieb | E12: Vollmachtsdatenbank läuft
A13: Selbständige Tätigkeit | E13: Fibu-Erstellung mtl.
A14: Einzelunternehmen | E14: Fibu-Erstellung vj.
A15: Personengesellschaft | E15: Fibu-Erstellung j.
A16: Kapitalgesellschaft | E16: OPOS
A17: Bilanz | E17: Kontoauszugsmanager
A18: EÜR | E18: Kassentool
A19: abweichend. Wirtschaftsjahr | E19: Schnittstellen Debitoren
A20: wenn ja, von - bis | E20: wenn ja, welche Schnittstellen
A21: Kontenrahmen | C21: SKR ? | E21: Schnittstellen Kreditoren
E22: wenn ja, welche Schnittstellen
A23: Umsatzsteuer | E23: Unternehmen Online
A24: Dauerfristverlängerung | E24: Andere Software
A25: USt senden mtl. | E25: wenn ja, welche Software
A26: USt senden vj. | E26: Freistell.beschein.Bauleistung
A27: USt senden j. | E27: wenn ja, bis wann?
A28: ZM-Meldung senden mtl.
A29: ZM-Meldung senden vj. | E29: Eingang Belege
A30: Soll-Versteuerung | E30: Fibu-Abgabetermin
A31: Ist-Versteuerung | E31: Digitaler Belegeingang
A32: § 13b UStG enthalten | E32: Pendelordner
A33: Konsolidierungs-Mdt. | E33: Mdt schickt Belege
E34: Mdt bringt Belege
A35: Umfang Auswertungen | E35: Wir holen Belege
A36: USt-VA
A37: ZM-Meldung | E37: 1. mtl. Kontaktaufnahme
A38: Controllingreport | E38: Persönliches Gespräch
A39: BKB | E39: Telefonat
A40: BKB-Vorjahresvergleich | E40: Mail
A41: BWA-Wertenachweis | E41: Post
A42: BWA-Wertenachweis Vj.vergl.
A43: SuSa | E43: 2. mtl. Kontaktaufnahme
A44: OPOS | E44: Persönliches Gespräch
A45: weitere | E45: Telefonat
E46: Mail
A47: Ausgang Auswertungen an Mdt | E47: Post
A48: Mail
A49: Post | E49: Ausgang Auswertungen an Bank
A50: Mdt holt Belege (Abholschrank) | E50: mtl. Mail gl. Umfang wie Mdt
A51: Wir bringen Belege | E51: vj. Mail gl. Umfang wie Mdt
E52: mtl. Post gl. Umfang wie Mdt
A53: Persönliche Informationen | E53: vj. Post gl. Umfang wie Mdt
A54: Verwandschaft zu anderen Mdt
A55: Hobbies | E55: Rhythmus APM-Aktualisierung
A56: Kommunikationsverhalten | E56: mtl.
A57: Typ (rot/blau/grün/gelb) | E57: vj.
A58: Energiespender | E58: hj.
A59: Energieräuber | E59: j.
A60: Empfehler
A61: Sonstiges

Sheet 1-599
A1: Jahr: | B1: =Stammblatt!$C$4 -> 0
A2: Mandantennummer: | B2: =Stammblatt!$C$5 -> 0
A3: Mandantenname: | B3: =Stammblatt!$C$6 -> 0
A5: 1. Konto/Kontenbereich: | B5: 1-599
A6: 2. Thema: | B6: Anlagevermögen
A7: 3. Prüfungsziel: | B7: Das Anlagevermögen muss mit der Fibu in Rewe übereinstimmen.
A8: 4. Folgende Belege müssen vorliegen: | B8: Ausdruck der "Entwicklung des Anlagevermögens" aus Rewe
B9: Rechnungen aller WG AK über 800,00 EUR netto kopieren (keine GWGs kopieren)
A10: 5. Erläuterungen/Berechnungen/Infos: | B10: WG unter AK 250,00 EUR netto unter Betriebsausgabe buchen (meist Konto 4930)
A12: Saldo laut "Entwicklung des Anlagevermögens": | C12: 31.01. | D12: 0
A13: Saldo laut Rewe: | C13: =C12 -> 31.01. | D13: 0
A14: =A12 -> Saldo laut "Entwicklung des Anlagevermögens": | C14: 28.02. | D14: 0
A15: Saldo laut Rewe: | C15: =C14 -> 28.02. | D15: 0
A16: Saldo laut "Entwicklung des Anlagevermögens": | C16: 31.03. | D16: 0
A17: Saldo laut Rewe: | C17: =C16 -> 31.03. | D17: 0
A18: Saldo laut "Entwicklung des Anlagevermögens": | C18: 30.04. | D18: 0
A19: Saldo laut Rewe: | C19: =C18 -> 30.04. | D19: 0
A20: Saldo laut "Entwicklung des Anlagevermögens": | C20: 31.05. | D20: 0
A21: Saldo laut Rewe: | C21: =C20 -> 31.05. | D21: 0
A22: Saldo laut "Entwicklung des Anlagevermögens": | C22: 30.06. | D22: 0
A23: Saldo laut Rewe: | C23: =C22 -> 30.06. | D23: 0
A24: Saldo laut "Entwicklung des Anlagevermögens": | C24: 31.07. | D24: 0
A25: Saldo laut Rewe: | C25: =C24 -> 31.07. | D25: 0
A26: Saldo laut "Entwicklung des Anlagevermögens": | C26: 31.08. | D26: 0
A27: Saldo laut Rewe: | C27: =C26 -> 31.08. | D27: 0
A28: Saldo laut "Entwicklung des Anlagevermögens": | C28: 30.09. | D28: 0
A29: Saldo laut Rewe: | C29: =C28 -> 30.09. | D29: 0
A30: Saldo laut "Entwicklung des Anlagevermögens": | C30: 31.10. | D30: 0
A31: Saldo laut Rewe: | C31: =C30 -> 31.10. | D31: 0
A32: Saldo laut "Entwicklung des Anlagevermögens": | C32: 30.11. | D32: 0
A33: Saldo laut Rewe: | C33: =C32 -> 30.11. | D33: 0
A34: Saldo laut "Entwicklung des Anlagevermögens": | C34: 31.12. | D34: 0
A35: Saldo laut Rewe: | C35: =C34 -> 31.12. | D35: 0
A37: 6. Prüfungsvermerk der/des ausführenden Mitarbeiter/in: | C37: Monat: | D37: Kürzel Mitarb.
A38: Der/die Mitarbeiter/in bestätigt mit seinem/ihrem nachfolgenden Kürzel, | C38: 1
A39: dass alle oben genannten Prüfungen vollständig und korrekt durchgeführt worden sind. | C39: 2
C40: 3
C41: 4
C42: 5
C43: 6
C44: 7
C45: 8
C46: 9
C47: 10
C48: 11
C49: 12
A51: 7. Buchungssätze: | B51: keine manuell zu buchenden
B52: BS werden von Anlag in Rewe per Schnittstelle übernommen.

Sheet 600-799 Verb. (hidden)
A1: Jahr:
A2: Mandantennummer:
A3: Mandantenname:
A5: 1. Konto/Kontenbereich: | B5: 600-799
A6: 2. Thema: | B6: Verbindlichkeiten
A7: 3. Prüfungsziel: | B7: Die Belege über Verbindlichkeiten müssen mit der Fibu übereinstimmen.
A8: 4. Folgende Belege müssen vorliegen: | B8: Darlehensauszüge von Banken etc.
B9: Zins- und Tilgungspläne von Banken etc.
B10: Darlehensberechnungen durch uns (Programm Wirtschaftsberatung)
A11: 5. Erläuterungen/Berechnungen/Infos: | B11: keine
A12: Saldo laut Belegen: | C12: 31.01. | D12: 0
A13: Saldo laut Rewe: | C13: =C12 -> 31.01. | D13: 0
A14: =A12 -> Saldo laut Belegen: | C14: 28.02. | D14: 0
A15: =A13 -> Saldo laut Rewe: | C15: =C14 -> 28.02. | D15: 0
A16: =A14 -> Saldo laut Belegen: | C16: 31.03. | D16: 0
A17: Saldo laut Rewe: | C17: =C16 -> 31.03. | D17: 0
A18: Saldo laut Belegen: | C18: 30.04. | D18: 0
A19: Saldo laut Rewe: | C19: =C18 -> 30.04. | D19: 0
A20: Saldo laut Belegen: | C20: 31.05. | D20: 0
A21: Saldo laut Rewe: | C21: =C20 -> 31.05. | D21: 0
A22: Saldo laut Belegen: | C22: 30.06. | D22: 0
A23: Saldo laut Rewe: | C23: =C22 -> 30.06. | D23: 0
A24: Saldo laut Belegen: | C24: 31.07. | D24: 0
A25: Saldo laut Rewe: | C25: =C24 -> 31.07. | D25: 0
A26: Saldo laut Belegen: | C26: 31.08. | D26: 0
A27: Saldo laut Rewe: | C27: =C26 -> 31.08. | D27: 0
A28: Saldo laut Belegen: | C28: 30.09. | D28: 0
A29: Saldo laut Rewe: | C29: =C28 -> 30.09. | D29: 0
A30: Saldo laut Belegen: | C30: 31.10. | D30: 0
A31: Saldo laut Rewe: | C31: =C30 -> 31.10. | D31: 0
A32: Saldo laut Belegen: | C32: 30.11. | D32: 0
A33: Saldo laut Rewe: | C33: =C32 -> 30.11. | D33: 0
A34: Saldo laut Belegen: | C34: 31.12. | D34: 0
A35: Saldo laut Rewe: | C35: =C34 -> 31.12. | D35: 0
A37: 6. Prüfungsvermerk der/des ausführenden Mitarbeiter/in: | C37: Monat: | D37: Kürzel Mitarb.
A38: Der/die Mitarbeiter/in bestätigt mit seinem/ihrem nachfolgenden Kürzel, | C38: 1
A39: dass alle oben genannten Prüfungen vollständig und korrekt durchgeführt worden sind. | C39: 2
C40: 3
C41: 4
C42: 5
C43: 6
C44: 7
C45: 8
C46: 9
C47: 10
C48: 11
C49: 12
A51: 7. Buchungssätze:
A52: Umsatz | B52: Sollkonto / Habenkonto | C52: Datum | D52: Buchungstext
C53: 31.01.
C54: 28.02.
C55: 31.03.
C56: 30.04.
C57: 31.05.
C58: 30.06.
C59: 31.07.
C60: 31.08.
C61: 30.09.
C62: 31.10.
C63: 30.11.
C64: 31.12.

Sheet Verb. Abzinsung (hidden)
A2: Hilfe
A3: =CONCATENATE([2]Programmeinstellungen!G19," ",YEAR(WJEnde)) -> 
A4: Mandant: | F4: =[2]Programmeinstellungen!B65 -> Abzinsungsrechner | K4: =WJEnde -> 
E6: Abzinsungsrechner
E8: Abzinsung in der Handelsbilanz
E10: Verpflichtung (künftiger Erfüllungsbetrag): | J10: 0 | K10: Euro
E11: Restlaufzeit | F11: Jahre: | G11: 0 | H11: Monate: | I11: 0 | J11: =G11+I11/12 -> 0 | K11: Jahre
E12: Zinssatz: (durchschnittlicher Marktzinssatz) | J12: 0
E14: Barwert: | J14: =IF(J11<=1,J10,PV(J12,J11,,-J10,1)) -> 0
E18: Abzinsung in der Steuerbilanz
E20: Verpflichtung (Wert am Bilanzstichtag): | J20: 0 | K20: Euro
E21: Restlaufzeit | F21: Jahre: | G21: 0 | H21: Monate: | I21: 0 | J21: =G21+I21/12 -> 0 | K21: Jahre
E22: Zinssatz: (gem. § 6 Abs. 1 EStG) | J22: 0
E24: Barwert: | J24: =IF(J21<=1,J20,PV(J22,J21,,-J20,1)) -> 0
E27: Der für die handelsrechtliche Abzinsung anwendbare Marktzinssatz wird monatlich durch die Deutsche Bundesbank ermittelt und im Internet veröffentlicht.
E28: www.bundesbank.de/statistik
E33: Ermittlung Zinssatz bei nicht vollen Kalenderjahren
E35: Bei einer Laufzeit, die keinem vollen Kalenderjahr entspricht, muss zur Ermittlung der Rückstellung interpoliert werden.
E37: Restlaufzeit | F37: Jahre: | G37: 0 | H37: Monate: | I37: 0
H38: =G37+I37/12 -> 0
E39: Zinssatz für | F39: =ROUNDUP(G37+I37/12,0) -> 0 | G39: Jahre | H39: 0 | I39: % | J39: (Marktzinssatz lt. Bundesbank)
E40: Zinssatz für | F40: =IF(F39=0,0,F39-1) -> 0 | G40: Jahre | H40: 0 | I40: % | J40: (Marktzinssatz lt. Bundesbank)
E41: Differenz | H41: =H39-H40 -> 0 | I41: %
E43: Zinsanteil für | F43: =12*(H38-F40) -> 0 | G43: Monate | H43: =ROUND(H41*(H38-F40),2) -> 0 | I43: %
E44: Zinsanteil für | F44: =F40 -> 0 | G44: Jahre | H44: =H40 -> 0 | I44: %
E46: Zinssatz interpoliert: | H46: =H44+H43 -> 0 | I46: %

Sheet 800-949 EK (hidden)
A1: Jahr: | G1: «ZMSD/Betr/Unternehmensbezeichnung»
A2: Mandantennummer: | G2: «ZMSD/Betr/HS Straße»
A3: Mandantenname: | G3: «ZMSD/Betr/HS Postleitzahl Inland» | H3: «ZMSD/Betr/HS Ort»
A5: 1. Konto/Kontenbereich: | B5: 800-949
A6: 2. Thema: | B6: Eigenkapital | G6: Kapitalkontenentwicklung zum 31.12.2013
A7: 3. Prüfungsziel: | B7: Bilanz muss durch korrekten Abschluss über das Eigenkapital aufgehen.
A8: 4. Folgende Belege müssen vorliegen: | B8: Notarvertrag bei Gründung einer Kapitalgesellschaft
B9: Kapitalkontenentwicklung bei Personengesellschaft | G9: Gesellschafter | H9: Name | I9: Name | J9: Name | K9: Name | L9: Summe
A10: 5. Erläuterungen/Berechnungen/Infos: | B10: keine | G10: Anteile | H10: 0.25 | I10: 0.25 | J10: 0.25 | K10: 0.25 | L10: =SUM(H10:K10) -> 1
A11: Saldo: | C11: 31.01. | D11: 0 | H11: EUR | I11: EUR | J11: EUR | K11: EUR | L11: EUR
A12: =A11 -> Saldo: | C12: 28.02. | D12: 0
A13: Saldo: | C13: 31.03. | D13: 0
A14: Saldo: | C14: 30.04. | D14: 0 | G14: Kapital zum 01.01. | H14: 0 | I14: 0 | J14: 0 | K14: 0 | L14: =SUM(H14:K14) -> 0
A15: Saldo: | C15: 31.05. | D15: 0
A16: Saldo: | C16: 30.06. | D16: 0 | G16: ./. Entnahmen | H16: 0 | I16: 0 | J16: 0 | K16: 0 | L16: =SUM(H16:K16) -> 0
A17: Saldo: | C17: 31.07. | D17: 0
A18: Saldo: | C18: 31.08. | D18: 0 | G18: + Einlagen | H18: 0 | I18: 0 | J18: 0 | K18: 0 | L18: =SUM(H18:K18) -> 0
A19: Saldo: | C19: 30.09. | D19: 0
A20: Saldo: | C20: 31.10. | D20: 0 | G20: ./. Verlustanteil lfd. Jahr | H20: =$F$20*H10 -> 0 | I20: =$F$20*I10 -> 0 | J20: =$F$20*J10 -> 0 | K20: =$F$20*K10 -> 0 | L20: 0
A21: Saldo: | C21: 30.11. | D21: 0
A22: Saldo: | C22: 31.12. | D22: 0 | G22: + Gewinnanteil lfd. Jahr | H22: =$F$22*H10 -> 0 | I22: =$F$22*I10 -> 0 | J22: =$F$22*J10 -> 0 | K22: =$F$22*K10 -> 0 | L22: 0
A24: 6. Prüfungsvermerk der/des ausführenden Mitarbeiter/in: | C24: Monat: | D24: Kürzel Mitarb.
A25: Der/die Mitarbeiter/in bestätigt mit seinem/ihrem nachfolgenden Kürzel, | C25: 1 | G25: Zwischensumme vor Verteilung | H25: =SUM(H13:H24) -> 0 | I25: =SUM(I13:I24) -> 0 | J25: =SUM(J13:J24) -> 0 | K25: =SUM(K13:K24) -> 0 | L25: =SUM(L13:L24) -> 0
A26: dass alle oben genannten Prüfungen vollständig und korrekt durchgeführt worden sind. | C26: 2
C27: 3 | G27: Verteilung allgemeines Kapital | H27: =$F$27*H10 -> 0 | I27: =$F$27*I10 -> 0 | J27: =$F$27*J10 -> 0 | K27: =$F$27*K10 -> 0 | L27: 0
C28: 4
C29: 5
C30: 6 | G30: Kapital zum 31.12. | H30: =SUM(H25:H29) -> 0 | I30: =SUM(I25:I29) -> 0 | J30: =SUM(J25:J29) -> 0 | K30: =SUM(K25:K29) -> 0 | L30: =SUM(L25:L29) -> 0
C31: 7
C32: 8
C33: 9
C34: 10
C35: 11
C36: 12
A38: 7. Buchungssätze:
A39: Umsatz | B39: Sollkonto / Habenkonto | C39: Datum | D39: Buchungstext
C40: 31.01.
C41: 28.02.
C42: 31.03.
C43: 30.04.
C44: 31.05.
C45: 30.06.
C46: 31.07.
C47: 31.08.
C48: 30.09.
C49: 31.10.
C50: 30.11.
C51: 31.12.

Sheet 0951 RS-Pens. (hidden)
A1: Jahr: | G1: Mandant: | H1: =[3]Mdt.Stammblatt!V10 ->  | O1: Eingabefeld
A2: Mandantennummer: | G2: Jahr: | H2: =[3]Mdt.Stammblatt!AC10 ->  | O2: mtl. Ergebnisfeld
A3: Mandantenname:
A5: Handelsbilanz: | G5: Rückstellungen werden monatlich mit 1/12 des Vorjahresbetrags eingebucht
A7: 1. Konto/Kontenbereich: | B7: 951 | G7: Rückstellungsart | H7: Betrag Vorjahr | I7: 2014-01-01 | J7: 2014-02-01 | K7: 2014-03-01 | L7: 2014-04-01 | M7: 2014-05-01 | N7: 2014-06-01 | O7: 2014-07-01 | P7: 2014-08-01 | Q7: 2014-09-01 | R7: 2014-10-01 | S7: 2014-11-01 | T7: 2014-12-01 | U7: Summe 14 | V7: Konto
A8: 2. Thema: | B8: Rückstellungen für Pensionen (Handelsbilanz) | G8: Pension, Kto. 951 | H8: 12973 | I8: =H8/12 -> 1081.083333 | J8: =H8/12 -> 1081.083333 | K8: =H8/12 -> 1081.083333 | L8: =H8/12 -> 1081.083333 | M8: =H8/12 -> 1081.083333 | N8: =H8/12 -> 1081.083333 | O8: =H8/12 -> 1081.083333 | P8: =H8/12 -> 1081.083333 | Q8: =H8/12 -> 1081.083333 | R8: =H8/12 -> 1081.083333 | S8: =H8/12 -> 1081.083333 | T8: =H8/12 -> 1081.083333 | U8: =SUM(I8:T8) -> 12973 | V8: 2146
A9: 3. Prüfungsziel: | B9: Die Belege über Rückstellungen müssen mit der Fibu übereinstimmen. | G9: Rückdeckung, Kto. 1357 | H9: 5798 | I9: 483.1666667 | J9: =H9/12 -> 483.1666667 | K9: =H9/12 -> 483.1666667 | L9: =H9/12 -> 483.1666667 | M9: =H9/12 -> 483.1666667 | N9: =H9/12 -> 483.1666667 | O9: =H9/12 -> 483.1666667 | P9: =H9/12 -> 483.1666667 | Q9: =H9/12 -> 483.1666667 | R9: =H9/12 -> 483.1666667 | S9: =H9/12 -> 483.1666667 | T9: =H9/12 -> 483.1666667 | U9: =SUM(I9:T9) -> 5798 | V9: 2687
A10: 4. Folgende Belege müssen vorliegen: | B10: Versicherungsmathematisches Gutachten | H10: 0 | I10: 0 | J10: =H10/12 -> 0 | K10: =H10/12 -> 0 | L10: =H10/12 -> 0 | M10: =H10/12 -> 0 | N10: =H10/12 -> 0 | O10: =H10/12 -> 0 | P10: =H10/12 -> 0 | Q10: =H10/12 -> 0 | R10: =H10/12 -> 0 | S10: =H10/12 -> 0 | T10: =H10/12 -> 0 | U10: =SUM(I10:T10) -> 0
A11: 5. Erläuterungen/Berechnungen/Infos: | B11: Einmal pro Jahr wird der Saldo laut Gutachten abgestimmt. | H11: 0 | I11: 0 | J11: 0 | K11: 0 | L11: 0 | M11: 0 | N11: 0 | O11: 0 | P11: 0 | Q11: 0 | R11: 0 | S11: 0 | T11: 0 | U11: 0
B12: Unterjährig wird die Rückstellung laut Vorjahr mit 1/12 Anteil gebucht. | H12: 0 | I12: 0 | J12: 0 | K12: 0 | L12: 0 | M12: 0 | N12: 0 | O12: 0 | P12: 0 | Q12: 0 | R12: 0 | S12: 0 | T12: 0 | U12: 0
B13: Achtung: Unterschiedliche Behandlung in Habi und Steubi | G13: Steuerbilanz | H13: 0 | I13: 0 | J13: 0 | K13: 0 | L13: 0 | M13: 0 | N13: 0 | O13: 0 | P13: 0 | Q13: 0 | R13: 0 | S13: 0 | T13: 0 | U13: 0
A14: Saldo laut Schätzung: | C14: 31.01. | D14: 0 | G14: Pension, Kto. 950 | H14: 8293 | I14: 691.0833333 | J14: 691.0833333 | K14: 691.0833333 | L14: 691.0833333 | M14: 691.0833333 | N14: 691.0833333 | O14: 691.0833333 | P14: 691.0833333 | Q14: 691.0833333 | R14: 691.0833333 | S14: 691.0833333 | T14: 691.0833333 | U14: 8293 | V14: 4165
A15: =A14 -> Saldo laut Schätzung: | C15: 28.02. | D15: 0 | G15: Rückdeckung, Kto. 0595 | H15: 5798 | I15: 483.1666667 | J15: 483.1666667 | K15: 483.1666667 | L15: 483.1666667 | M15: 483.1666667 | N15: 483.1666667 | O15: 483.1666667 | P15: 483.1666667 | Q15: 483.1666667 | R15: 483.1666667 | S15: 483.1666667 | T15: 483.1666667 | U15: 5798 | V15: 2510
A16: Saldo laut Schätzung: | C16: 31.03. | D16: 0
A17: Saldo laut Schätzung: | C17: 30.04. | D17: 0
A18: Saldo laut Schätzung: | C18: 31.05. | D18: 0 | G18: BEI PENS.RÜCKST. BEACHTEN:
A19: Saldo laut Schätzung: | C19: 30.06. | D19: 0 | G19: in StB vierteljährl. Storno der HB-Buchungen u. StB-Buchungen erfassen, wenn ER Classic vereinbart
A20: Saldo laut Schätzung: | C20: 31.07. | D20: 0
A21: Saldo laut Schätzung: | C21: 31.08. | D21: 0
A22: Saldo laut Schätzung: | C22: 30.09. | D22: 0 | H22: Buchungssätze: | J22: 2146 an 0951
A23: Saldo laut Schätzung: | C23: 31.10. | D23: 0 | J23: 1357 an 2687
A24: Saldo laut Schätzung: | C24: 30.11. | D24: 0
A25: Saldo laut Schätzung: | C25: 31.12. | D25: 0
J26: 4165 an 0950
A27: 6. Prüfungsvermerk der/des ausführenden Mitarbeiter/in: | C27: Monat: | D27: Kürzel Mitarb. | J27: 0595 an 2510
A28: Der/die Mitarbeiter/in bestätigt mit seinem/ihrem nachfolgenden Kürzel, | C28: 1
A29: dass alle oben genannten Prüfungen vollständig und korrekt durchgeführt worden sind. | C29: 2 | S29: zurück zum Ablauf
C30: 3
C31: 4
C32: 5
C33: 6
C34: 7
C35: 8
C36: 9
C37: 10
C38: 11
C39: 12
A41: 7. Buchungssätze:
A42: Umsatz | B42: Sollkonto / Habenkonto | C42: Datum | D42: Buchungstext
B43: 4165 / 951 | C43: 31.01.
B44: 2146 / 951 | C44: =C43 -> 31.01.
B45: 2091 / 951 | C45: =C44 -> 31.01.
B46: 4165 / 951 | C46: 28.02.
B47: 2146 / 951 | C47: =C46 -> 28.02.
B48: 2091 / 951 | C48: =C47 -> 28.02.
B49: 4165 / 951 | C49: 31.03.
B50: 2146 / 951 | C50: =C49 -> 31.03.
B51: 2091 / 951 | C51: =C50 -> 31.03.
B52: 4165 / 951 | C52: 30.04.
B53: 2146 / 951 | C53: =C52 -> 30.04.
B54: 2091 / 951 | C54: =C53 -> 30.04.
B55: 4165 / 951 | C55: 31.05.
B56: 2146 / 951 | C56: =C55 -> 31.05.
B57: 2091 / 951 | C57: =C56 -> 31.05.
B58: 4165 / 951 | C58: 30.06.
B59: 2146 / 951 | C59: =C58 -> 30.06.
B60: 2091 / 951 | C60: 30.06.
B61: 4165 / 951 | C61: 31.07.
B62: 2146 / 951 | C62: =C61 -> 31.07.
B63: 2091 / 951 | C63: 31.07.
B64: 4165 / 951 | C64: 31.08.
B65: 2146 / 951 | C65: =C64 -> 31.08.
B66: 2091 / 951 | C66: =C65 -> 31.08.
B67: 4165 / 951 | C67: 30.09.
B68: 2146 / 951 | C68: =C67 -> 30.09.
B69: 2091 / 951 | C69: =C68 -> 30.09.
B70: 4165 / 951 | C70: 31.10.
B71: 2146 / 951 | C71: =C70 -> 31.10.
B72: 2091 / 951 | C72: =C71 -> 31.10.
B73: 4165 / 951 | C73: 30.11.
B74: 2146 / 951 | C74: =C73 -> 30.11.
B75: 2091 / 951 | C75: =C74 -> 30.11.
B76: 4165 / 951 | C76: 31.12.
B77: 2146 / 951 | C77: =C76 -> 31.12.
B78: 2091 / 951 | C78: =C77 -> 31.12.
A82: Steuerbilanz:
A84: 1. Konto/Kontenbereich: | B84: 951
A85: 2. Thema: | B85: Rückstellungen für Pensionen (Steuerbilanz)
A86: 3. Prüfungsziel: | B86: Die Belege über Rückstellungen müssen mit der Fibu übereinstimmen.
A87: 4. Folgende Belege müssen vorliegen: | B87: Versicherungsmathematisches Gutachten
A88: 5. Erläuterungen/Berechnungen/Infos: | B88: Einmal pro Jahr wird der Saldo laut Gutachten abgestimmt.
B89: Unterjährig wird die Rückstellung laut Vorjahr mit 1/12 Anteil gebucht.
A90: Saldo laut Schätzung: | C90: 31.01. | D90: 0
A91: =A90 -> Saldo laut Schätzung: | C91: 28.02. | D91: 0
A92: Saldo laut Schätzung: | C92: 31.03. | D92: 0
A93: Saldo laut Schätzung: | C93: 30.04. | D93: 0
A94: Saldo laut Schätzung: | C94: 31.05. | D94: 0
A95: Saldo laut Schätzung: | C95: 30.06. | D95: 0
A96: Saldo laut Schätzung: | C96: 31.07. | D96: 0
A97: Saldo laut Schätzung: | C97: 31.08. | D97: 0
A98: Saldo laut Schätzung: | C98: 30.09. | D98: 0
A99: Saldo laut Schätzung: | C99: 31.10. | D99: 0
A100: Saldo laut Schätzung: | C100: 30.11. | D100: 0
A101: Saldo laut Schätzung: | C101: 31.12. | D101: 0
A102: Saldo laut Belegen: | C102: 31.12. | D102: 0
A104: 6. Prüfungsvermerk der/des ausführenden Mitarbeiter/in: | C104: Monat: | D104: Kürzel Mitarb.
A105: Der/die Mitarbeiter/in bestätigt mit seinem/ihrem nachfolgenden Kürzel, | C105: 1
A106: dass alle oben genannten Prüfungen vollständig und korrekt durchgeführt worden sind. | C106: 2
C107: 3
C108: 4
C109: 5
C110: 6
C111: 7
C112: 8
C113: 9
C114: 10
C115: 11
C116: 12
A118: 7. Buchungssätze: | B118: 4165 / 950 (Zuführung Rückstellung)
B119: 950 / 4165 (Auflösung Rückstellung)
A121: Umsatz | B121: Sollkonto / Habenkonto | C121: Datum | D121: Buchungstext
C122: 31.01.
C123: 28.02.
C124: 31.03.
C125: 30.04.
C126: 31.05.
C127: 30.06.
C128: 31.07.
C129: 31.08.
C130: 30.09.
C131: 31.10.
C132: 30.11.
C133: 31.12.

Sheet 0965 RS Pers. Urlaub (hidden)
A1: Jahr:
A2: Mandantennummer: | H2: Hilfe
A3: Mandantenname: | H3: =CONCATENATE([2]Programmeinstellungen!G19," ",YEAR(WJEnde)) ->  | S3: =[2]Programmeinstellungen!$G$23 -> Werner & Wollscheid StB
H4: =Mandant ->  | K4: =[2]Programmeinstellungen!B47 -> Rückstellung Personalaufwand | T4: =WJEnde -> 
A5: 1. Konto/Kontenbereich: | B5: 950-954 | H5: ENTFÄLLT BEI GEWINNERMITTLUNG NACH § 4 (3) ESTG | DM5: =[2]Berechnungen!B516 -> 1
A6: 2. Thema: | B6: Rückstellungen für Urlaub | H6: Mitarbeiter | J6: mtl. Brutto- gehalt in Euro | K6: zusätzliches Urlaubsgeld in Euro | L6: weitere Kosten (nur HR) | M6: SV-Zuschlag in % | N6: Gesamtkosten handelsrechtlich | O6: Gesamtkosten steuerrechtlich | P6: zukünftige Kostensteigerung | R6: Durchschnitt Arbeitstage im Monat | S6: Resturlaub in Tagen | T6: Rückstellung handelsrechtlich | U6: Rückstellung steuerrechtlich
A7: 3. Prüfungsziel: | B7: Die Belege über Rückstellungen müssen mit der Fibu übereinstimmen. | N7: in Euro | O7: in Euro | P7: in % | Q7: in Euro | T7: in Euro | U7: in Euro
A8: 4. Folgende Belege müssen vorliegen: | B8: Versicherungsmathematisches Gutachten | H8: Wettstein | J8: 2000 | M8: 0.25 | N8: 2500 | O8: 2500 | P8: 0.02 | Q8: 50 | R8: 22 | S8: 8 | T8: 927.27 | U8: 909.09
A9: 5. Erläuterungen/Berechnungen/Infos: | B9: Einmal pro Jahr wird der Saldo laut Gutachten abgestimmt. | M9: 0.25 | N9: 0 | O9: 0 | Q9: 0 | R9: 22 | S9: 0 | T9: 0 | U9: 0
B10: Unterjährig wird die Rückstellung laut Vorjahr mit 1/12 Anteil gebucht. | M10: 0.25 | N10: 0 | O10: 0 | Q10: 0 | R10: 22 | S10: 0 | T10: 0 | U10: 0
A11: Saldo laut Schätzung: | C11: 31.01. | D11: 0 | M11: 0.25 | N11: 0 | O11: 0 | Q11: 0 | R11: 22 | S11: 0 | T11: 0 | U11: 0
A12: =A11 -> Saldo laut Schätzung: | C12: 28.02. | D12: 0 | M12: 0.25 | N12: 0 | O12: 0 | Q12: 0 | R12: 22 | S12: 0 | T12: 0 | U12: 0
A13: Saldo laut Schätzung: | C13: 31.03. | D13: 0 | M13: 0.25 | N13: 0 | O13: 0 | Q13: 0 | R13: 22 | S13: 0 | T13: 0 | U13: 0
A14: Saldo laut Schätzung: | C14: 30.04. | D14: 0 | M14: 0.25 | N14: 0 | O14: 0 | Q14: 0 | R14: 22 | S14: 0 | T14: 0 | U14: 0
A15: Saldo laut Schätzung: | C15: 31.05. | D15: 0 | M15: 0.25 | N15: 0 | O15: 0 | Q15: 0 | R15: 22 | S15: 0 | T15: 0 | U15: 0
A16: Saldo laut Schätzung: | C16: 30.06. | D16: 0 | M16: 0.25 | N16: 0 | O16: 0 | Q16: 0 | R16: 22 | S16: 0 | T16: 0 | U16: 0
A17: Saldo laut Schätzung: | C17: 31.07. | D17: 0 | M17: 0.25 | N17: 0 | O17: 0 | Q17: 0 | R17: 22 | S17: 0 | T17: 0 | U17: 0
A18: Saldo laut Schätzung: | C18: 31.08. | D18: 0 | M18: 0.25 | N18: 0 | O18: 0 | Q18: 0 | R18: 22 | S18: 0 | T18: 0 | U18: 0
A19: Saldo laut Schätzung: | C19: 30.09. | D19: 0 | M19: 0.25 | N19: 0 | O19: 0 | Q19: 0 | R19: 22 | S19: 0 | T19: 0 | U19: 0
A20: Saldo laut Schätzung: | C20: 31.10. | D20: 0 | M20: 0.25 | N20: 0 | O20: 0 | Q20: 0 | R20: 22 | S20: 0 | T20: 0 | U20: 0
A21: Saldo laut Schätzung: | C21: 30.11. | D21: 0 | M21: 0.25 | N21: 0 | O21: 0 | Q21: 0 | R21: 22 | S21: 0 | T21: 0 | U21: 0
A22: Saldo laut Schätzung: | C22: 31.12. | D22: 0 | M22: 0.25 | N22: 0 | O22: 0 | Q22: 0 | R22: 22 | S22: 0 | T22: 0 | U22: 0
A23: Saldo laut Belegen: | C23: 31.12. | D23: 0 | M23: 0.25 | N23: 0 | O23: 0 | Q23: 0 | R23: 22 | S23: 0 | T23: 0 | U23: 0
M24: 0.25 | N24: 0 | O24: 0 | Q24: 0 | R24: 22 | S24: 0 | T24: 0 | U24: 0
A25: 6. Prüfungsvermerk der/des ausführenden Mitarbeiter/in: | C25: Monat: | D25: Kürzel Mitarb. | H25: BG | J25: 0 | N25: =J25 -> 0 | O25: =J25 -> 0 | Q25: =N25*P25 -> 0 | R25: 1 | S25: 1 | T25: =ROUND((N25+Q25)/R25*S25,2) -> 0 | U25: =ROUND(O25/R25*S25,2) -> 0
A26: Der/die Mitarbeiter/in bestätigt mit seinem/ihrem nachfolgenden Kürzel, | C26: 1 | H26: Tantieme | J26: 0 | N26: =J26 -> 0 | O26: =J26 -> 0 | Q26: 0 | R26: 1 | S26: 1 | T26: =ROUND((N26+Q26)/R26*S26,2) -> 0 | U26: =ROUND(O26/R26*S26,2) -> 0
A27: dass alle oben genannten Prüfungen vollständig und korrekt durchgeführt worden sind. | C27: 2 | H27: Sonstige | J27: 0 | M27: 0 | N27: =J27*(1+M27) -> 0 | O27: =J27*(1+M27) -> 0 | Q27: 0 | R27: 1 | S27: 1 | T27: 0 | U27: =ROUND(O27/R27*S27,2) -> 0
C28: 3 | H28: Zeitkonten | J28: 0 | M28: 0.25 | N28: =J28*(1+M28) -> 0 | O28: =J28*(1+M28) -> 0 | Q28: 0 | R28: 1 | S28: 1 | T28: =ROUND((N28+Q28)/R28*S28-J28,2) -> 0 | U28: =ROUND(O28/R28*S28-J28,2) -> 0
C29: 4 | H29: Urlaubskasse* | J29: 0 | M29: 0.4 | N29: =J29*(1+M29) -> 0 | O29: =J29*(1+M29) -> 0 | Q29: 0 | R29: 1 | S29: 1 | T29: =ROUND((N29+Q29)/R29*S29-J29,2) -> 0 | U29: =ROUND(O29/R29*S29-J29,2) -> 0
C30: 5 | R30: Summe Kto. | S30: =KtoRstPersonalkosten ->  | T30: =SUM(T8:T29) -> 927.27 | U30: =SUM(U8:U29) -> 909.09
C31: 6 | H31: * Nur für Bauhauptgewerbe | R31: Vorjahr | T31: 0 | U31: 0
C32: 7 | R32: Veränderung | T32: =SUM(T30-T31) -> 927.27 | U32: =SUM(U30-U31) -> 909.09
C33: 8
C34: 9
C35: 10
C36: 11
C37: 12
A39: 7. Buchungssätze: | B39: 4121 / 965 (Zuführung Rückstellung)
B40: 965 / 4121 (Auflösung Rückstellung)
A42: Umsatz | B42: Sollkonto / Habenkonto | C42: Datum | D42: Buchungstext
C43: 31.01.
C44: 28.02.
C45: 31.03.
C46: 30.04.
C47: 31.05.
C48: 30.06.
C49: 31.07.
C50: 31.08.
C51: 30.09.
C52: 31.10.
C53: 30.11.
C54: 31.12.

Sheet 0965 RS Pers. Tantieme (hidden)
A1: Jahr: | G1: Tantiemeberechnung
A2: Mandantennummer:
A3: Mandantenname:
G4: Rechtliche Vorgaben
A5: 1. Konto/Kontenbereich: | B5: 965
A6: 2. Thema: | B6: Rückstellungen für Tantiemen | H6: Tantiemezusage max. 50% des Jahresüberschusses
A7: 3. Prüfungsziel: | B7: Die Berechnung der Tantiemen müssen mit der Fibu übereinstimmen. | H7: Gesamtjahresgehalt: 75% fest, 25% variabel
A8: 4. Folgende Belege müssen vorliegen: | B8: Die Tantiemeberechnung der Kanzlei Luzius.
A9: 5. Erläuterungen/Berechnungen/Infos: | B9: Einmal pro Jahr wird der Saldo laut Tantiemeberechnung abgestimmt.
B10: Unterjährig wird die Rückstellung laut Vorjahr mit 1/12 Anteil gebucht. | G10: Tantieme - Bemessungsgrundlage
A11: Saldo laut Schätzung: | C11: 31.01. | D11: 0
A12: =A11 -> Saldo laut Schätzung: | C12: 28.02. | D12: 0 | G12: handelsrechtlicher Jahresüberschuss vor | N12: =N19-N16-N15 -> 
A13: Saldo laut Schätzung: | C13: 31.03. | D13: 0 | H13: Steuerrückstellung + Tantieme + a.o. Aufwand + Firmenwert AfA
A14: Saldo laut Schätzung: | C14: 30.04. | D14: 0 | G14: - | H14: Verlustvorträge
A15: Saldo laut Schätzung: | C15: 31.05. | D15: 0 | G15: + | H15: KSt + Solz vorläufig vor Tantieme | N15: =M15/M19 -> 
A16: Saldo laut Schätzung: | C16: 30.06. | D16: 0 | G16: + | H16: GewSt vorläufig vor Tantieme | N16: =M16/M19 -> 
A17: Saldo laut Schätzung: | C17: 31.07. | D17: 0 | G17: + | H17: außerordentliche Anpassung auf Grund des BILMOG (Kto. 2000)
A18: Saldo laut Schätzung: | C18: 31.08. | D18: 0 | G18: + | H18: Firmenwert-AfA
A19: Saldo laut Schätzung: | C19: 30.09. | D19: 0 | H19: bereinigter Jahresüberschuss = BMG Tantieme | M19: =SUM(M12:M18) -> 0 | N19: 1
A20: Saldo laut Schätzung: | C20: 31.10. | D20: 0
A21: Saldo laut Schätzung: | C21: 30.11. | D21: 0
A22: Saldo laut Schätzung: | C22: 31.12. | D22: 0 | G22: Maximale Tantieme möglich
A23: Saldo laut Belegen: | C23: 31.12. | D23: 0
G24: 1. | H24: Tantiemezusage max. 50% des Jahresüberschusses | M24: =M19*50% -> 0 | N24: =M24 -> 0
A25: 6. Prüfungsvermerk der/des ausführenden Mitarbeiter/in: | C25: Monat: | D25: Kürzel Mitarb.
A26: Der/die Mitarbeiter/in bestätigt mit seinem/ihrem nachfolgenden Kürzel, | C26: 1 | G26: 2. | H26: Jahresgehalt ohne Tantieme (Gesamtbrutto)
A27: dass alle oben genannten Prüfungen vollständig und korrekt durchgeführt worden sind. | C27: 2 | H27: Jahresgehalt ohne Tantieme Herr/Frau ??
C28: 3 | H28: Tantieme 50% des JÜ sind geplant | L28: =ROUNDUP(M19*50%,0) -> 0
C29: 4 | H29: Gesamtjahresgehalt inkl. Tantieme | L29: =SUM(L26:L28) -> 0
C30: 5 | H30: Gesamtjahresgehalt inkl. Tantieme: 75% fest | M30: =L29*75% -> 0
C31: 6 | H31: Gesamtjahresgehalt: 25% variabel | M31: =L29*25% -> 0 | N31: =M31 -> 0
C32: 7
C33: 8 | H33: max. Tantieme (niedrigerer Betrag aus 1. o. 2.) Herr/Frau ?? | N33: =N31 -> 0
C34: 9
C35: 10
C36: 11 | G36: Tantiemeberechnung
A38: 7. Buchungssätze: | B38: 4126 / 965 (Zuführung Rückstellung) | H38: Tantiemezusage 50% des Jahresüberschuss sind vertraglich vereinbart | N38: =L28 -> 0
B39: 965 / 4126 (Auflösung Rückstellung) | H39: max. werden gezahlt | N39: =N31 -> 0
A41: Umsatz | B41: Sollkonto / Habenkonto | C41: Datum | D41: Buchungstext
C42: 31.01. | G42: Buchung
C43: 28.02.
C44: 31.03. | I44: Betrag | J44: Soll | K44: Haben | L44: Text
C45: 30.04.
C46: 31.05. | I46: =N33 -> 0 | J46: 4126 | K46: 965 | L46: Tantieme Herr/Frau ??
C47: 30.06.
C48: 31.07.
C49: 31.08.
C50: 30.09.
C51: 31.10.
C52: 30.11.
C53: 31.12.

Sheet 0970 RS Sonst.+BG (hidden)
A1: Jahr:
A2: Mandantennummer:
A3: Mandantenname:
A5: 1. Konto/Kontenbereich: | B5: 970
A6: 2. Thema: | B6: Rückstellungen für Sonstiges
A7: 3. Prüfungsziel: | B7: Die Belege über Rückstellungen müssen mit der Fibu übereinstimmen.
A8: 4. Folgende Belege müssen vorliegen: | B8: Belege aus Vorjahr etc.
A9: 5. Erläuterungen/Berechnungen/Infos: | B9: Einmal pro Jahr wird der Saldo laut Belegen abgestimmt.
B10: Unterjährig wird die Rückstellung laut Vorjahr mit 1/12 Anteil gebucht.
A11: Saldo laut Schätzung: | C11: 31.01. | D11: 0
A12: =A11 -> Saldo laut Schätzung: | C12: 28.02. | D12: 0
A13: Saldo laut Schätzung: | C13: 31.03. | D13: 0
A14: Saldo laut Schätzung: | C14: 30.04. | D14: 0
A15: Saldo laut Schätzung: | C15: 31.05. | D15: 0
A16: Saldo laut Schätzung: | C16: 30.06. | D16: 0
A17: Saldo laut Schätzung: | C17: 31.07. | D17: 0
A18: Saldo laut Schätzung: | C18: 31.08. | D18: 0
A19: Saldo laut Schätzung: | C19: 30.09. | D19: 0
A20: Saldo laut Schätzung: | C20: 31.10. | D20: 0
A21: Saldo laut Schätzung: | C21: 30.11. | D21: 0
A22: Saldo laut Schätzung: | C22: 31.12. | D22: 0
A23: Saldo laut Belegen: | C23: 31.12. | D23: 0
A25: 6. Prüfungsvermerk der/des ausführenden Mitarbeiter/in: | C25: Monat: | D25: Kürzel Mitarb.
A26: Der/die Mitarbeiter/in bestätigt mit seinem/ihrem nachfolgenden Kürzel, | C26: 1
A27: dass alle oben genannten Prüfungen vollständig und korrekt durchgeführt worden sind. | C27: 2
C28: 3
C29: 4
C30: 5
C31: 6
C32: 7
C33: 8
C34: 9
C35: 10
C36: 11
C37: 12
A39: 7. Buchungssätze: | B39: 4er Klasse / 974 (Zuführung Rückstellung)
B40: 974 / 2735 (Auflösung Rückstellung)
A42: Umsatz | B42: Sollkonto / Habenkonto | C42: Datum | D42: Buchungstext
C43: 31.01.
C44: 28.02.
C45: 31.03.
C46: 30.04.
C47: 31.05.
C48: 30.06.
C49: 31.07.
C50: 31.08.
C51: 30.09.
C52: 31.10.
C53: 30.11.
C54: 31.12.

Sheet 0974 RS Gewährl. (hidden)
A1: Jahr:
A2: Mandantennummer:
A3: Mandantenname:
A5: 1. Konto/Kontenbereich: | B5: 974
A6: 2. Thema: | B6: Rückstellungen für Gewährleistungen
A7: 3. Prüfungsziel: | B7: Rückstellung wird mtl. i.H.v. 0,5% des Umsatzes gebucht.
A8: 4. Folgende Belege müssen vorliegen: | B8: keine | G8: Bitte diese Berechnungsliste verwenden!
A9: 5. Erläuterungen/Berechnungen/Infos: | B9: Einmal pro Jahr wird der Saldo laut Gesamtjahresumsatz abgestimmt.
B10: Unterjährig wird die Rückstellung laut Monatsumsatz gebucht. | H10: Umsatz | I10: Gewährlstg. 0,5 % | J10: Gewährlstg. Vormonat | K10: Zuführg./Auflösg.
A11: Saldo: | C11: 31.01. | D11: =I11 -> 50 | G11: Januar | H11: 10000 | I11: =H11*0.5% -> 50 | J11: 10 | K11: =I11-J11 -> 40
A12: =A11 -> Saldo: | C12: 28.02. | D12: 125 | G12: Februar | H12: 25000 | I12: =H12*0.5% -> 125 | J12: =I11 -> 50 | K12: =I12-J12 -> 75
A13: Saldo: | C13: 31.03. | D13: 0 | G13: März | I13: =H13*0.5% -> 0 | J13: =I12 -> 125 | K13: -125
A14: Saldo: | C14: 30.04. | D14: 0 | G14: April | I14: =H14*0.5% -> 0 | J14: 0 | K14: 0
A15: Saldo: | C15: 31.05. | D15: 0 | G15: Mai | I15: =H15*0.5% -> 0 | J15: 0 | K15: 0
A16: Saldo: | C16: 30.06. | D16: 0 | G16: Juni | I16: 0 | J16: 0 | K16: 0
A17: Saldo: | C17: 31.07. | D17: 0 | G17: Juli | I17: 0 | J17: 0 | K17: 0
A18: Saldo: | C18: 31.08. | D18: 0 | G18: August | I18: 0 | J18: 0 | K18: 0
A19: Saldo: | C19: 30.09. | D19: 0 | G19: September | I19: 0 | J19: 0 | K19: 0
A20: Saldo: | C20: 31.10. | D20: 0 | G20: Oktober | I20: 0 | J20: 0 | K20: 0
A21: Saldo: | C21: 30.11. | D21: 0 | G21: November | I21: 0 | J21: 0 | K21: 0
A22: Saldo: | C22: 31.12. | D22: 0 | G22: Dezember | I22: 0 | J22: 0 | K22: 0
A24: 6. Prüfungsvermerk der/des ausführenden Mitarbeiter/in: | C24: Monat: | D24: Kürzel Mitarb.
A25: Der/die Mitarbeiter/in bestätigt mit seinem/ihrem nachfolgenden Kürzel, | C25: 1
A26: dass alle oben genannten Prüfungen vollständig und korrekt durchgeführt worden sind. | C26: 2 | K26: zurück zum Ablauf
C27: 3
C28: 4
C29: 5
C30: 6
C31: 7
C32: 8
C33: 9
C34: 10
C35: 11
C36: 12
A38: 7. Buchungssätze: | B38: 4790 / 974 (Zuführung Rückstellung)
B39: 974 / 4790 (Auflösung Rückstellung)
A41: Umsatz | B41: Sollkonto / Habenkonto | C41: Datum | D41: Buchungstext
C42: 31.01.
C43: 28.02.
C44: 31.03.
C45: 30.04.
C46: 31.05.
C47: 30.06.
C48: 31.07.
C49: 31.08.
C50: 30.09.
C51: 31.10.
C52: 30.11.
C53: 31.12.

Sheet 0977 RS Stb. (hidden)
A1: Jahr:
A2: Mandantennummer:
A3: Mandantenname:
A5: 1. Konto/Kontenbereich: | B5: 974
A6: 2. Thema: | B6: Rückstellungen für Jahresabschluss des Steuerberaters
A7: 3. Prüfungsziel: | B7: Die Belege über Rückstellungen müssen mit der Fibu übereinstimmen.
A8: 4. Folgende Belege müssen vorliegen: | B8: Stb-Rg. über Abschluss aus Vorjahr etc.
A9: 5. Erläuterungen/Berechnungen/Infos: | B9: Einmal pro Jahr wird der Saldo laut Belegen abgestimmt.
B10: Unterjährig wird die Rückstellung laut Vorjahr mit 1/12 Anteil gebucht.
B11: Wenn ER-Pauschale läuft, dann gibt es diese Rückstellung nicht mehr.
A12: Saldo laut Schätzung: | C12: 31.01. | D12: 0
A13: =A12 -> Saldo laut Schätzung: | C13: 28.02. | D13: 0
A14: Saldo laut Schätzung: | C14: 31.03. | D14: 0
A15: Saldo laut Schätzung: | C15: 30.04. | D15: 0
A16: Saldo laut Schätzung: | C16: 31.05. | D16: 0
A17: Saldo laut Schätzung: | C17: 30.06. | D17: 0
A18: Saldo laut Schätzung: | C18: 31.07. | D18: 0
A19: Saldo laut Schätzung: | C19: 31.08. | D19: 0
A20: Saldo laut Schätzung: | C20: 30.09. | D20: 0
A21: Saldo laut Schätzung: | C21: 31.10. | D21: 0
A22: Saldo laut Schätzung: | C22: 30.11. | D22: 0
A23: Saldo laut Schätzung: | C23: 31.12. | D23: 0
A25: 6. Prüfungsvermerk der/des ausführenden Mitarbeiter/in: | C25: Monat: | D25: Kürzel Mitarb.
A26: Der/die Mitarbeiter/in bestätigt mit seinem/ihrem nachfolgenden Kürzel, | C26: 1
A27: dass alle oben genannten Prüfungen vollständig und korrekt durchgeführt worden sind. | C27: 2
C28: 3
C29: 4
C30: 5
C31: 6
C32: 7
C33: 8
C34: 9
C35: 10
C36: 11
C37: 12
A39: 7. Buchungssätze: | B39: 4957 / 977 (Zuführung Rückstellung)
B40: 977 / 4957 (Auflösung Rückstellung)
A42: Umsatz | B42: Sollkonto / Habenkonto | C42: Datum | D42: Buchungstext
C43: 31.01.
C44: 28.02.
C45: 31.03.
C46: 30.04.
C47: 31.05.
C48: 30.06.
C49: 31.07.
C50: 31.08.
C51: 30.09.
C52: 31.10.
C53: 30.11.
C54: 31.12.

Sheet 600-799
A1: Jahr: | B1: =Stammblatt!$C$4 -> 0
A2: Mandantennummer: | B2: =Stammblatt!$C$5 -> 0
A3: Mandantenname: | B3: =Stammblatt!$C$6 -> 0
A5: 1. Konto/Kontenbereich: | B5: 600-799
A6: 2. Thema: | B6: Verbindlichkeiten
A7: 3. Prüfungsziel: | B7: Die Belege über Verbindlichkeiten müssen mit der Fibu übereinstimmen.
A8: 4. Folgende Belege müssen vorliegen: | B8: Darlehensauszüge von Banken etc.
B9: Zins- und Tilgungspläne von Banken etc.
B10: Darlehensberechnungen durch uns (Programm Wirtschaftsberatung)
A11: 5. Erläuterungen/Berechnungen/Infos: | B11: keine
A12: Saldo laut Belegen: | C12: 31.01. | D12: 0
A13: Saldo laut Rewe: | C13: =C12 -> 31.01. | D13: 0
A14: =A12 -> Saldo laut Belegen: | C14: 28.02. | D14: 0
A15: =A13 -> Saldo laut Rewe: | C15: =C14 -> 28.02. | D15: 0
A16: =A14 -> Saldo laut Belegen: | C16: 31.03. | D16: 0
A17: Saldo laut Rewe: | C17: =C16 -> 31.03. | D17: 0
A18: Saldo laut Belegen: | C18: 30.04. | D18: 0
A19: Saldo laut Rewe: | C19: =C18 -> 30.04. | D19: 0
A20: Saldo laut Belegen: | C20: 31.05. | D20: 0
A21: Saldo laut Rewe: | C21: =C20 -> 31.05. | D21: 0
A22: Saldo laut Belegen: | C22: 30.06. | D22: 0
A23: Saldo laut Rewe: | C23: =C22 -> 30.06. | D23: 0
A24: Saldo laut Belegen: | C24: 31.07. | D24: 0
A25: Saldo laut Rewe: | C25: =C24 -> 31.07. | D25: 0
A26: Saldo laut Belegen: | C26: 31.08. | D26: 0
A27: Saldo laut Rewe: | C27: =C26 -> 31.08. | D27: 0
A28: Saldo laut Belegen: | C28: 30.09. | D28: 0
A29: Saldo laut Rewe: | C29: =C28 -> 30.09. | D29: 0
A30: Saldo laut Belegen: | C30: 31.10. | D30: 0
A31: Saldo laut Rewe: | C31: =C30 -> 31.10. | D31: 0
A32: Saldo laut Belegen: | C32: 30.11. | D32: 0
A33: Saldo laut Rewe: | C33: =C32 -> 30.11. | D33: 0
A34: Saldo laut Belegen: | C34: 31.12. | D34: 0
A35: Saldo laut Rewe: | C35: =C34 -> 31.12. | D35: 0
A37: 6. Prüfungsvermerk der/des ausführenden Mitarbeiter/in: | C37: Monat: | D37: Kürzel Mitarb.
A38: Der/die Mitarbeiter/in bestätigt mit seinem/ihrem nachfolgenden Kürzel, | C38: 1
A39: dass alle oben genannten Prüfungen vollständig und korrekt durchgeführt worden sind. | C39: 2
C40: 3
C41: 4
C42: 5
C43: 6
C44: 7
C45: 8
C46: 9
C47: 10
C48: 11
C49: 12
A51: 7. Buchungssätze:
A52: Umsatz | B52: Sollkonto / Habenkonto | C52: Datum | D52: Buchungstext
C53: 31.01.
C54: 28.02.
C55: 31.03.
C56: 30.04.
C57: 31.05.
C58: 30.06.
C59: 31.07.
C60: 31.08.
C61: 30.09.
C62: 31.10.
C63: 30.11.
C64: 31.12.

Sheet 0980-0986
A1: Jahr: | B1: =Stammblatt!$C$4 -> 0
A2: Mandantennummer: | B2: =Stammblatt!$C$5 -> 0 | H2: Hilfe
A3: Mandantenname: | B3: =Stammblatt!$C$6 -> 0 | H3: =CONCATENATE([2]Programmeinstellungen!G19," ",YEAR(WJEnde)) -> 
H4: =Mandant ->  | L4: =[2]Programmeinstellungen!B42 -> Aktive Rechnungsabgrenzung
A5: 1. Konto/Kontenbereich: | B5: 980-986
A6: 2. Thema: | B6: ARAP + Disagio | H6: Einzelerfassung der aktiven Rechnungsabgrenzungsposten
A7: 3. Prüfungsziel: | B7: ARAP + Disagio müssen korrekt über die gesamte Laufzeit gebucht werden. | H7: Bezeichnung | J7: Aufwands- Konto | K7: RAP- Konto | L7: Zeitraum | N7: Gesamt- betrag in € | O7: Abgrenzungs- betrag in €
B8: wenn die Kosten über 410 EUR liegen, ansonsten wird nicht über ARAP abgegrenzt. | L8: Beginn | M8: Ende
A9: 4. Folgende Belege müssen vorliegen: | B9: ursprünglicher Vertrag im 1. Jahr
A10: 5. Erläuterungen/Berechnungen/Infos: | B10: Die Berechnung muss von Beginn bis Ende der Vertragslaufzeit | H10: KFZ-Versicherung | J10: 4520 | K10: 980 | L10: 01.05. | M10: 31.04. | N10: 1500 | O10: =IF(DK10="","",(ROUNDUP(DK10,2))) -> 1500 | DK10: 1500
B11: nachvollziehbar berechnet und gebucht werden. | O11: 0 | DK11: 0
A12: Saldo: | C12: 31.01. | D12: 0 | O12: 0 | DK12: 0
A13: =A12 -> Saldo: | C13: 28.02. | D13: 0 | O13: 0 | DK13: 0
A14: Saldo: | C14: 31.03. | D14: 0 | O14: 0 | DK14: 0
A15: Saldo: | C15: 30.04. | D15: 0 | O15: 0 | DK15: 0
A16: Saldo: | C16: 31.05. | D16: 0 | O16: 0 | DK16: 0
A17: Saldo: | C17: 30.06. | D17: 0 | O17: 0 | DK17: 0
A18: Saldo: | C18: 31.07. | D18: 0 | O18: 0 | DK18: 0
A19: Saldo: | C19: 31.08. | D19: 0 | O19: 0 | DK19: 0
A20: Saldo: | C20: 30.09. | D20: 0 | O20: 0 | DK20: 0
A21: Saldo: | C21: 31.10. | D21: 0 | O21: 0 | DK21: 0
A22: Saldo: | C22: 30.11. | D22: 0 | O22: 0 | DK22: 0
A23: Saldo: | C23: 31.12. | D23: 0 | O23: 0 | DK23: 0
O24: 0 | DK24: 0
A25: 6. Prüfungsvermerk der/des ausführenden Mitarbeiter/in: | C25: Monat: | D25: Kürzel Mitarb. | O25: 0 | DK25: 0
A26: Der/die Mitarbeiter/in bestätigt mit seinem/ihrem nachfolgenden Kürzel, | C26: 1 | O26: 0 | DK26: 0
A27: dass alle oben genannten Prüfungen vollständig und korrekt durchgeführt worden sind. | C27: 2 | O27: 0 | DK27: 0
C28: 3 | O28: 0 | DK28: 0
C29: 4 | O29: 0 | DK29: 0
C30: 5 | O30: 0 | DK30: 0
C31: 6 | O31: 0 | DK31: 0
C32: 7 | O32: 0 | DK32: 0
C33: 8 | O33: 0 | DK33: 0
C34: 9 | O34: 0 | DK34: 0
C35: 10 | O35: 0 | DK35: 0
C36: 11 | O36: 0 | DK36: 0
C37: 12 | O37: 0 | DK37: 0
O38: 0 | DK38: 0
A39: 7. Buchungssätze: | O39: 0 | DK39: 0
A40: Umsatz | B40: Sollkonto / Habenkonto | C40: Datum | D40: Buchungstext
C41: 31.01. | H41: Hinweise:
C42: 28.02.
C43: 31.03.
C44: 30.04.
C45: 31.05.
C46: 30.06.
C47: 31.07.
C48: 31.08. | L48: Aufwandskonten | O48: RAP-Konten
C49: 30.09.
C50: 31.10. | L50: Konto | M50: Ergebnis | O50: Konto | P50: Ergebnis | DK50: =[2]Berechnungen!Q2 -> 1 | DL50: =[2]Berechnungen!Q3 -> 1
C51: 30.11. | L51: =MIN([2]Berechnungen!M2:M32) -> 4520 | M51: =IF(L51="","",SUMIF([2]Berechnungen!M2:M32,L51,[2]Berechnungen!N2:N32)) ->  | O51: =MIN([2]Berechnungen!O2:O32) -> 980 | P51: =IF(O51="","",SUMIF([2]Berechnungen!O2:O32,O51,[2]Berechnungen!P2:P32)) -> 
C52: 31.12. | L52: =IF(MAX([2]Berechnungen!M$2:M$32)=MAX('[2]Aktive-RAP'!E$51:E51),"",LARGE([2]Berechnungen!M$2:M$32,COUNTIF([2]Berechnungen!M$2:M$32,">"&L51))) ->  | M52: =IF(L52="","",SUMIF([2]Berechnungen!M$2:M$32,L52,[2]Berechnungen!N$2:N$32)) ->  | O52: =IF(MAX([2]Berechnungen!O$2:O$32)=MAX('[2]Aktive-RAP'!H$51:H51),"",LARGE([2]Berechnungen!O$2:O$32,COUNTIF([2]Berechnungen!O$2:O$32,">"&O51))) ->  | P52: =IF(O52="","",SUMIF([2]Berechnungen!O$2:O$32,O52,[2]Berechnungen!P$2:P$32)) -> 
L53: =IF(MAX([2]Berechnungen!M$2:M$32)=MAX('[2]Aktive-RAP'!E$51:E52),"",LARGE([2]Berechnungen!M$2:M$32,COUNTIF([2]Berechnungen!M$2:M$32,">"&L52))) ->  | M53: =IF(L53="","",SUMIF([2]Berechnungen!M$2:M$32,L53,[2]Berechnungen!N$2:N$32)) ->  | O53: =IF(MAX([2]Berechnungen!O$2:O$32)=MAX('[2]Aktive-RAP'!H$51:H52),"",LARGE([2]Berechnungen!O$2:O$32,COUNTIF([2]Berechnungen!O$2:O$32,">"&O52))) ->  | P53: =IF(O53="","",SUMIF([2]Berechnungen!O$2:O$32,O53,[2]Berechnungen!P$2:P$32)) -> 
L54: =IF(MAX([2]Berechnungen!M$2:M$32)=MAX('[2]Aktive-RAP'!E$51:E53),"",LARGE([2]Berechnungen!M$2:M$32,COUNTIF([2]Berechnungen!M$2:M$32,">"&L53))) ->  | M54: =IF(L54="","",SUMIF([2]Berechnungen!M$2:M$32,L54,[2]Berechnungen!N$2:N$32)) ->  | O54: =IF(MAX([2]Berechnungen!O$2:O$32)=MAX('[2]Aktive-RAP'!H$51:H53),"",LARGE([2]Berechnungen!O$2:O$32,COUNTIF([2]Berechnungen!O$2:O$32,">"&O53))) ->  | P54: =IF(O54="","",SUMIF([2]Berechnungen!O$2:O$32,O54,[2]Berechnungen!P$2:P$32)) -> 
L55: =IF(MAX([2]Berechnungen!M$2:M$32)=MAX('[2]Aktive-RAP'!E$51:E54),"",LARGE([2]Berechnungen!M$2:M$32,COUNTIF([2]Berechnungen!M$2:M$32,">"&L54))) ->  | M55: =IF(L55="","",SUMIF([2]Berechnungen!M$2:M$32,L55,[2]Berechnungen!N$2:N$32)) ->  | O55: =IF(MAX([2]Berechnungen!O$2:O$32)=MAX('[2]Aktive-RAP'!H$51:H54),"",LARGE([2]Berechnungen!O$2:O$32,COUNTIF([2]Berechnungen!O$2:O$32,">"&O54))) ->  | P55: =IF(O55="","",SUMIF([2]Berechnungen!O$2:O$32,O55,[2]Berechnungen!P$2:P$32)) -> 
L56: =IF(MAX([2]Berechnungen!M$2:M$32)=MAX('[2]Aktive-RAP'!E$51:E55),"",LARGE([2]Berechnungen!M$2:M$32,COUNTIF([2]Berechnungen!M$2:M$32,">"&L55))) ->  | M56: =IF(L56="","",SUMIF([2]Berechnungen!M$2:M$32,L56,[2]Berechnungen!N$2:N$32)) ->  | O56: =IF(MAX([2]Berechnungen!O$2:O$32)=MAX('[2]Aktive-RAP'!H$51:H55),"",LARGE([2]Berechnungen!O$2:O$32,COUNTIF([2]Berechnungen!O$2:O$32,">"&O55))) ->  | P56: =IF(O56="","",SUMIF([2]Berechnungen!O$2:O$32,O56,[2]Berechnungen!P$2:P$32)) -> 
L57: =IF(MAX([2]Berechnungen!M$2:M$32)=MAX('[2]Aktive-RAP'!E$51:E56),"",LARGE([2]Berechnungen!M$2:M$32,COUNTIF([2]Berechnungen!M$2:M$32,">"&L56))) ->  | M57: =IF(L57="","",SUMIF([2]Berechnungen!M$2:M$32,L57,[2]Berechnungen!N$2:N$32)) ->  | O57: =IF(MAX([2]Berechnungen!O$2:O$32)=MAX('[2]Aktive-RAP'!H$51:H56),"",LARGE([2]Berechnungen!O$2:O$32,COUNTIF([2]Berechnungen!O$2:O$32,">"&O56))) ->  | P57: =IF(O57="","",SUMIF([2]Berechnungen!O$2:O$32,O57,[2]Berechnungen!P$2:P$32)) -> 
L58: =IF(MAX([2]Berechnungen!M$2:M$32)=MAX('[2]Aktive-RAP'!E$51:E57),"",LARGE([2]Berechnungen!M$2:M$32,COUNTIF([2]Berechnungen!M$2:M$32,">"&L57))) ->  | M58: =IF(L58="","",SUMIF([2]Berechnungen!M$2:M$32,L58,[2]Berechnungen!N$2:N$32)) ->  | O58: =IF(MAX([2]Berechnungen!O$2:O$32)=MAX('[2]Aktive-RAP'!H$51:H57),"",LARGE([2]Berechnungen!O$2:O$32,COUNTIF([2]Berechnungen!O$2:O$32,">"&O57))) ->  | P58: =IF(O58="","",SUMIF([2]Berechnungen!O$2:O$32,O58,[2]Berechnungen!P$2:P$32)) -> 
L59: =IF(MAX([2]Berechnungen!M$2:M$32)=MAX('[2]Aktive-RAP'!E$51:E58),"",LARGE([2]Berechnungen!M$2:M$32,COUNTIF([2]Berechnungen!M$2:M$32,">"&L58))) ->  | M59: =IF(L59="","",SUMIF([2]Berechnungen!M$2:M$32,L59,[2]Berechnungen!N$2:N$32)) ->  | O59: =IF(MAX([2]Berechnungen!O$2:O$32)=MAX('[2]Aktive-RAP'!H$51:H58),"",LARGE([2]Berechnungen!O$2:O$32,COUNTIF([2]Berechnungen!O$2:O$32,">"&O58))) ->  | P59: =IF(O59="","",SUMIF([2]Berechnungen!O$2:O$32,O59,[2]Berechnungen!P$2:P$32)) -> 
L60: =IF(MAX([2]Berechnungen!M$2:M$32)=MAX('[2]Aktive-RAP'!E$51:E59),"",LARGE([2]Berechnungen!M$2:M$32,COUNTIF([2]Berechnungen!M$2:M$32,">"&L59))) ->  | M60: =IF(L60="","",SUMIF([2]Berechnungen!M$2:M$32,L60,[2]Berechnungen!N$2:N$32)) ->  | O60: =IF(MAX([2]Berechnungen!O$2:O$32)=MAX('[2]Aktive-RAP'!H$51:H59),"",LARGE([2]Berechnungen!O$2:O$32,COUNTIF([2]Berechnungen!O$2:O$32,">"&O59))) ->  | P60: =IF(O60="","",SUMIF([2]Berechnungen!O$2:O$32,O60,[2]Berechnungen!P$2:P$32)) -> 
L61: =IF(MAX([2]Berechnungen!M$2:M$32)=MAX('[2]Aktive-RAP'!E$51:E60),"",LARGE([2]Berechnungen!M$2:M$32,COUNTIF([2]Berechnungen!M$2:M$32,">"&L60))) ->  | M61: =IF(L61="","",SUMIF([2]Berechnungen!M$2:M$32,L61,[2]Berechnungen!N$2:N$32)) ->  | O61: =IF(MAX([2]Berechnungen!O$2:O$32)=MAX('[2]Aktive-RAP'!H$51:H60),"",LARGE([2]Berechnungen!O$2:O$32,COUNTIF([2]Berechnungen!O$2:O$32,">"&O60))) ->  | P61: =IF(O61="","",SUMIF([2]Berechnungen!O$2:O$32,O61,[2]Berechnungen!P$2:P$32)) -> 
L62: =IF(MAX([2]Berechnungen!M$2:M$32)=MAX('[2]Aktive-RAP'!E$51:E61),"",LARGE([2]Berechnungen!M$2:M$32,COUNTIF([2]Berechnungen!M$2:M$32,">"&L61))) ->  | M62: =IF(L62="","",SUMIF([2]Berechnungen!M$2:M$32,L62,[2]Berechnungen!N$2:N$32)) ->  | O62: =IF(MAX([2]Berechnungen!O$2:O$32)=MAX('[2]Aktive-RAP'!H$51:H61),"",LARGE([2]Berechnungen!O$2:O$32,COUNTIF([2]Berechnungen!O$2:O$32,">"&O61))) ->  | P62: =IF(O62="","",SUMIF([2]Berechnungen!O$2:O$32,O62,[2]Berechnungen!P$2:P$32)) -> 
L63: =IF(MAX([2]Berechnungen!M$2:M$32)=MAX('[2]Aktive-RAP'!E$51:E62),"",LARGE([2]Berechnungen!M$2:M$32,COUNTIF([2]Berechnungen!M$2:M$32,">"&L62))) ->  | M63: =IF(L63="","",SUMIF([2]Berechnungen!M$2:M$32,L63,[2]Berechnungen!N$2:N$32)) ->  | O63: =IF(MAX([2]Berechnungen!O$2:O$32)=MAX('[2]Aktive-RAP'!H$51:H62),"",LARGE([2]Berechnungen!O$2:O$32,COUNTIF([2]Berechnungen!O$2:O$32,">"&O62))) ->  | P63: =IF(O63="","",SUMIF([2]Berechnungen!O$2:O$32,O63,[2]Berechnungen!P$2:P$32)) -> 
L64: =IF(MAX([2]Berechnungen!M$2:M$32)=MAX('[2]Aktive-RAP'!E$51:E63),"",LARGE([2]Berechnungen!M$2:M$32,COUNTIF([2]Berechnungen!M$2:M$32,">"&L63))) ->  | M64: =IF(L64="","",SUMIF([2]Berechnungen!M$2:M$32,L64,[2]Berechnungen!N$2:N$32)) ->  | O64: =IF(MAX([2]Berechnungen!O$2:O$32)=MAX('[2]Aktive-RAP'!H$51:H63),"",LARGE([2]Berechnungen!O$2:O$32,COUNTIF([2]Berechnungen!O$2:O$32,">"&O63))) ->  | P64: =IF(O64="","",SUMIF([2]Berechnungen!O$2:O$32,O64,[2]Berechnungen!P$2:P$32)) -> 
L65: =IF(MAX([2]Berechnungen!M$2:M$32)=MAX('[2]Aktive-RAP'!E$51:E64),"",LARGE([2]Berechnungen!M$2:M$32,COUNTIF([2]Berechnungen!M$2:M$32,">"&L64))) ->  | M65: =IF(L65="","",SUMIF([2]Berechnungen!M$2:M$32,L65,[2]Berechnungen!N$2:N$32)) ->  | O65: =IF(MAX([2]Berechnungen!O$2:O$32)=MAX('[2]Aktive-RAP'!H$51:H64),"",LARGE([2]Berechnungen!O$2:O$32,COUNTIF([2]Berechnungen!O$2:O$32,">"&O64))) ->  | P65: =IF(O65="","",SUMIF([2]Berechnungen!O$2:O$32,O65,[2]Berechnungen!P$2:P$32)) -> 
L66: =IF(MAX([2]Berechnungen!M$2:M$32)=MAX('[2]Aktive-RAP'!E$51:E65),"",LARGE([2]Berechnungen!M$2:M$32,COUNTIF([2]Berechnungen!M$2:M$32,">"&L65))) ->  | M66: =IF(L66="","",SUMIF([2]Berechnungen!M$2:M$32,L66,[2]Berechnungen!N$2:N$32)) ->  | O66: =IF(MAX([2]Berechnungen!O$2:O$32)=MAX('[2]Aktive-RAP'!H$51:H65),"",LARGE([2]Berechnungen!O$2:O$32,COUNTIF([2]Berechnungen!O$2:O$32,">"&O65))) ->  | P66: =IF(O66="","",SUMIF([2]Berechnungen!O$2:O$32,O66,[2]Berechnungen!P$2:P$32)) -> 
L67: =IF(MAX([2]Berechnungen!M$2:M$32)=MAX('[2]Aktive-RAP'!E$51:E66),"",LARGE([2]Berechnungen!M$2:M$32,COUNTIF([2]Berechnungen!M$2:M$32,">"&L66))) ->  | M67: =IF(L67="","",SUMIF([2]Berechnungen!M$2:M$32,L67,[2]Berechnungen!N$2:N$32)) ->  | O67: =IF(MAX([2]Berechnungen!O$2:O$32)=MAX('[2]Aktive-RAP'!H$51:H66),"",LARGE([2]Berechnungen!O$2:O$32,COUNTIF([2]Berechnungen!O$2:O$32,">"&O66))) ->  | P67: =IF(O67="","",SUMIF([2]Berechnungen!O$2:O$32,O67,[2]Berechnungen!P$2:P$32)) -> 
L68: =IF(MAX([2]Berechnungen!M$2:M$32)=MAX('[2]Aktive-RAP'!E$51:E67),"",LARGE([2]Berechnungen!M$2:M$32,COUNTIF([2]Berechnungen!M$2:M$32,">"&L67))) ->  | M68: =IF(L68="","",SUMIF([2]Berechnungen!M$2:M$32,L68,[2]Berechnungen!N$2:N$32)) ->  | O68: =IF(MAX([2]Berechnungen!O$2:O$32)=MAX('[2]Aktive-RAP'!H$51:H67),"",LARGE([2]Berechnungen!O$2:O$32,COUNTIF([2]Berechnungen!O$2:O$32,">"&O67))) ->  | P68: =IF(O68="","",SUMIF([2]Berechnungen!O$2:O$32,O68,[2]Berechnungen!P$2:P$32)) -> 
L69: =IF(MAX([2]Berechnungen!M$2:M$32)=MAX('[2]Aktive-RAP'!E$51:E68),"",LARGE([2]Berechnungen!M$2:M$32,COUNTIF([2]Berechnungen!M$2:M$32,">"&L68))) ->  | M69: =IF(L69="","",SUMIF([2]Berechnungen!M$2:M$32,L69,[2]Berechnungen!N$2:N$32)) ->  | O69: =IF(MAX([2]Berechnungen!O$2:O$32)=MAX('[2]Aktive-RAP'!H$51:H68),"",LARGE([2]Berechnungen!O$2:O$32,COUNTIF([2]Berechnungen!O$2:O$32,">"&O68))) ->  | P69: =IF(O69="","",SUMIF([2]Berechnungen!O$2:O$32,O69,[2]Berechnungen!P$2:P$32)) -> 
L70: =IF(MAX([2]Berechnungen!M$2:M$32)=MAX('[2]Aktive-RAP'!E$51:E69),"",LARGE([2]Berechnungen!M$2:M$32,COUNTIF([2]Berechnungen!M$2:M$32,">"&L69))) ->  | M70: =IF(L70="","",SUMIF([2]Berechnungen!M$2:M$32,L70,[2]Berechnungen!N$2:N$32)) ->  | O70: =IF(MAX([2]Berechnungen!O$2:O$32)=MAX('[2]Aktive-RAP'!H$51:H69),"",LARGE([2]Berechnungen!O$2:O$32,COUNTIF([2]Berechnungen!O$2:O$32,">"&O69))) ->  | P70: =IF(O70="","",SUMIF([2]Berechnungen!O$2:O$32,O70,[2]Berechnungen!P$2:P$32)) -> 
L71: =IF(MAX([2]Berechnungen!M$2:M$32)=MAX('[2]Aktive-RAP'!E$51:E70),"",LARGE([2]Berechnungen!M$2:M$32,COUNTIF([2]Berechnungen!M$2:M$32,">"&L70))) ->  | M71: =IF(L71="","",SUMIF([2]Berechnungen!M$2:M$32,L71,[2]Berechnungen!N$2:N$32)) ->  | O71: =IF(MAX([2]Berechnungen!O$2:O$32)=MAX('[2]Aktive-RAP'!H$51:H70),"",LARGE([2]Berechnungen!O$2:O$32,COUNTIF([2]Berechnungen!O$2:O$32,">"&O70))) ->  | P71: =IF(O71="","",SUMIF([2]Berechnungen!O$2:O$32,O71,[2]Berechnungen!P$2:P$32)) -> 
L72: =IF(MAX([2]Berechnungen!M$2:M$32)=MAX('[2]Aktive-RAP'!E$51:E71),"",LARGE([2]Berechnungen!M$2:M$32,COUNTIF([2]Berechnungen!M$2:M$32,">"&L71))) ->  | M72: =IF(L72="","",SUMIF([2]Berechnungen!M$2:M$32,L72,[2]Berechnungen!N$2:N$32)) ->  | O72: =IF(MAX([2]Berechnungen!O$2:O$32)=MAX('[2]Aktive-RAP'!H$51:H71),"",LARGE([2]Berechnungen!O$2:O$32,COUNTIF([2]Berechnungen!O$2:O$32,">"&O71))) ->  | P72: =IF(O72="","",SUMIF([2]Berechnungen!O$2:O$32,O72,[2]Berechnungen!P$2:P$32)) -> 
L73: =IF(MAX([2]Berechnungen!M$2:M$32)=MAX('[2]Aktive-RAP'!E$51:E72),"",LARGE([2]Berechnungen!M$2:M$32,COUNTIF([2]Berechnungen!M$2:M$32,">"&L72))) ->  | M73: =IF(L73="","",SUMIF([2]Berechnungen!M$2:M$32,L73,[2]Berechnungen!N$2:N$32)) ->  | O73: =IF(MAX([2]Berechnungen!O$2:O$32)=MAX('[2]Aktive-RAP'!H$51:H72),"",LARGE([2]Berechnungen!O$2:O$32,COUNTIF([2]Berechnungen!O$2:O$32,">"&O72))) ->  | P73: =IF(O73="","",SUMIF([2]Berechnungen!O$2:O$32,O73,[2]Berechnungen!P$2:P$32)) -> 
L74: =IF(MAX([2]Berechnungen!M$2:M$32)=MAX('[2]Aktive-RAP'!E$51:E73),"",LARGE([2]Berechnungen!M$2:M$32,COUNTIF([2]Berechnungen!M$2:M$32,">"&L73))) ->  | M74: =IF(L74="","",SUMIF([2]Berechnungen!M$2:M$32,L74,[2]Berechnungen!N$2:N$32)) ->  | O74: =IF(MAX([2]Berechnungen!O$2:O$32)=MAX('[2]Aktive-RAP'!H$51:H73),"",LARGE([2]Berechnungen!O$2:O$32,COUNTIF([2]Berechnungen!O$2:O$32,">"&O73))) ->  | P74: =IF(O74="","",SUMIF([2]Berechnungen!O$2:O$32,O74,[2]Berechnungen!P$2:P$32)) -> 
L75: =IF(MAX([2]Berechnungen!M$2:M$32)=MAX('[2]Aktive-RAP'!E$51:E74),"",LARGE([2]Berechnungen!M$2:M$32,COUNTIF([2]Berechnungen!M$2:M$32,">"&L74))) ->  | M75: =IF(L75="","",SUMIF([2]Berechnungen!M$2:M$32,L75,[2]Berechnungen!N$2:N$32)) ->  | O75: =IF(MAX([2]Berechnungen!O$2:O$32)=MAX('[2]Aktive-RAP'!H$51:H74),"",LARGE([2]Berechnungen!O$2:O$32,COUNTIF([2]Berechnungen!O$2:O$32,">"&O74))) ->  | P75: =IF(O75="","",SUMIF([2]Berechnungen!O$2:O$32,O75,[2]Berechnungen!P$2:P$32)) -> 
L76: =IF(MAX([2]Berechnungen!M$2:M$32)=MAX('[2]Aktive-RAP'!E$51:E75),"",LARGE([2]Berechnungen!M$2:M$32,COUNTIF([2]Berechnungen!M$2:M$32,">"&L75))) ->  | M76: =IF(L76="","",SUMIF([2]Berechnungen!M$2:M$32,L76,[2]Berechnungen!N$2:N$32)) ->  | O76: =IF(MAX([2]Berechnungen!O$2:O$32)=MAX('[2]Aktive-RAP'!H$51:H75),"",LARGE([2]Berechnungen!O$2:O$32,COUNTIF([2]Berechnungen!O$2:O$32,">"&O75))) ->  | P76: =IF(O76="","",SUMIF([2]Berechnungen!O$2:O$32,O76,[2]Berechnungen!P$2:P$32)) -> 
L77: =IF(MAX([2]Berechnungen!M$2:M$32)=MAX('[2]Aktive-RAP'!E$51:E76),"",LARGE([2]Berechnungen!M$2:M$32,COUNTIF([2]Berechnungen!M$2:M$32,">"&L76))) ->  | M77: =IF(L77="","",SUMIF([2]Berechnungen!M$2:M$32,L77,[2]Berechnungen!N$2:N$32)) ->  | O77: =IF(MAX([2]Berechnungen!O$2:O$32)=MAX('[2]Aktive-RAP'!H$51:H76),"",LARGE([2]Berechnungen!O$2:O$32,COUNTIF([2]Berechnungen!O$2:O$32,">"&O76))) ->  | P77: =IF(O77="","",SUMIF([2]Berechnungen!O$2:O$32,O77,[2]Berechnungen!P$2:P$32)) -> 
L78: =IF(MAX([2]Berechnungen!M$2:M$32)=MAX('[2]Aktive-RAP'!E$51:E77),"",LARGE([2]Berechnungen!M$2:M$32,COUNTIF([2]Berechnungen!M$2:M$32,">"&L77))) ->  | M78: =IF(L78="","",SUMIF([2]Berechnungen!M$2:M$32,L78,[2]Berechnungen!N$2:N$32)) ->  | O78: =IF(MAX([2]Berechnungen!O$2:O$32)=MAX('[2]Aktive-RAP'!H$51:H77),"",LARGE([2]Berechnungen!O$2:O$32,COUNTIF([2]Berechnungen!O$2:O$32,">"&O77))) ->  | P78: =IF(O78="","",SUMIF([2]Berechnungen!O$2:O$32,O78,[2]Berechnungen!P$2:P$32)) -> 
L79: =IF(MAX([2]Berechnungen!M$2:M$32)=MAX('[2]Aktive-RAP'!E$51:E78),"",LARGE([2]Berechnungen!M$2:M$32,COUNTIF([2]Berechnungen!M$2:M$32,">"&L78))) ->  | M79: =IF(L79="","",SUMIF([2]Berechnungen!M$2:M$32,L79,[2]Berechnungen!N$2:N$32)) ->  | O79: =IF(MAX([2]Berechnungen!O$2:O$32)=MAX('[2]Aktive-RAP'!H$51:H78),"",LARGE([2]Berechnungen!O$2:O$32,COUNTIF([2]Berechnungen!O$2:O$32,">"&O78))) ->  | P79: =IF(O79="","",SUMIF([2]Berechnungen!O$2:O$32,O79,[2]Berechnungen!P$2:P$32)) -> 
L80: =IF(MAX([2]Berechnungen!M$2:M$32)=MAX('[2]Aktive-RAP'!E$51:E79),"",LARGE([2]Berechnungen!M$2:M$32,COUNTIF([2]Berechnungen!M$2:M$32,">"&L79))) ->  | M80: =IF(L80="","",SUMIF([2]Berechnungen!M$2:M$32,L80,[2]Berechnungen!N$2:N$32)) ->  | O80: =IF(MAX([2]Berechnungen!O$2:O$32)=MAX('[2]Aktive-RAP'!H$51:H79),"",LARGE([2]Berechnungen!O$2:O$32,COUNTIF([2]Berechnungen!O$2:O$32,">"&O79))) ->  | P80: =IF(O80="","",SUMIF([2]Berechnungen!O$2:O$32,O80,[2]Berechnungen!P$2:P$32)) -> 

Sheet 0996-0999 PWB (hidden)
A1: Jahr:
A2: Mandantennummer:
A3: Mandantenname:
A5: 1. Konto/Kontenbereich: | B5: 996-999
A6: 2. Thema: | B6: Pauschalwertberichtigungen
A7: 3. Prüfungsziel: | B7: PWB wird mtl. i.H.v. 1,0% der Nettoforderungen gebucht.
A8: 4. Folgende Belege müssen vorliegen: | B8: keine | G8: Bitte diese Berechnungsliste verwenden!
A9: 5. Erläuterungen/Berechnungen/Infos: | B9: Einmal pro Jahr wird der Saldo laut Gesamtjahresumsatz abgestimmt.
B10: Unterjährig wird die Rückstellung laut Monatsumsatz gebucht. | H10: Fordg. brutto | I10: Fordg. netto | J10: Fordg. ohne USt | K10: Summe Fordg. | L10: PWB 1 % | M10: PWB Vormonat | N10: Einstellung/Auflösung
A11: Saldo: | C11: 31.01. | D11: =L11 -> 84.03361345 | G11: Januar | H11: 10000 | I11: =H11/1.19 -> 8403.361345 | J11: 0 | K11: =I11+J11 -> 8403.361345 | L11: =K11*1% -> 84.03361345 | M11: 0 | N11: =L11-M11 -> 84.03361345
A12: =A11 -> Saldo: | C12: 28.02. | D12: =L12 -> 0 | G12: Februar | H12: 0 | I12: =H12/1.19 -> 0 | J12: 0 | K12: =I12+J12 -> 0 | L12: =K12*1% -> 0 | M12: =L11 -> 84.03361345 | N12: =L12-M12 -> -84.03361345
A13: Saldo: | C13: 31.03. | D13: =L13 -> 0 | G13: März | H13: 0 | I13: =H13/1.19 -> 0 | J13: 0 | K13: =I13+J13 -> 0 | L13: 0 | M13: 0 | N13: 0
A14: Saldo: | C14: 30.04. | D14: 0 | G14: April | H14: 0 | I14: =H14/1.19 -> 0 | J14: 0 | K14: 0 | L14: 0 | M14: 0 | N14: 0
A15: Saldo: | C15: 31.05. | D15: 0 | G15: Mai | H15: 0 | I15: 0 | J15: 0 | K15: 0 | L15: 0 | M15: 0 | N15: 0
A16: Saldo: | C16: 30.06. | D16: 0 | G16: Juni | H16: 0 | I16: 0 | J16: 0 | K16: 0 | L16: 0 | M16: 0 | N16: 0
A17: Saldo: | C17: 31.07. | D17: 0 | G17: Juli | H17: 0 | I17: 0 | J17: 0 | K17: 0 | L17: 0 | M17: 0 | N17: 0
A18: Saldo: | C18: 31.08. | D18: 0 | G18: August | H18: 0 | I18: 0 | J18: 0 | K18: 0 | L18: 0 | M18: 0 | N18: 0
A19: Saldo: | C19: 30.09. | D19: 0 | G19: September | H19: 0 | I19: 0 | J19: 0 | K19: 0 | L19: 0 | M19: 0 | N19: 0
A20: Saldo: | C20: 31.10. | D20: 0 | G20: Oktober | H20: 0 | I20: 0 | J20: 0 | K20: 0 | L20: 0 | M20: 0 | N20: 0
A21: Saldo: | C21: 30.11. | D21: 0 | G21: November | H21: 0 | I21: 0 | J21: 0 | K21: 0 | L21: 0 | M21: 0 | N21: 0
A22: Saldo: | C22: 31.12. | D22: 0 | G22: Dezember | H22: 0 | I22: 0 | J22: 0 | K22: 0 | L22: 0 | M22: 0 | N22: 0
A24: 6. Prüfungsvermerk der/des ausführenden Mitarbeiter/in: | C24: Monat: | D24: Kürzel Mitarb.
A25: Der/die Mitarbeiter/in bestätigt mit seinem/ihrem nachfolgenden Kürzel, | C25: 1
A26: dass alle oben genannten Prüfungen vollständig und korrekt durchgeführt worden sind. | C26: 2
C27: 3 | N27: zurück zum Ablauf
C28: 4
C29: 5
C30: 6
C31: 7
C32: 8
C33: 9
C34: 10
C35: 11
C36: 12
A38: 7. Buchungssätze: | B38: 2450 / 996 (Zuführung Rückstellung)
B39: 996 / 2450 (Auflösung Rückstellung)
A41: Umsatz | B41: Sollkonto / Habenkonto | C41: Datum | D41: Buchungstext
C42: 31.01.
C43: 28.02.
C44: 31.03.
C45: 30.04.
C46: 31.05.
C47: 30.06.
C48: 31.07.
C49: 31.08.
C50: 30.09.
C51: 31.10.
C52: 30.11.
C53: 31.12.

Sheet 1000-1099
A1: Jahr: | B1: =Stammblatt!$C$4 -> 0
A2: Mandantennummer: | B2: =Stammblatt!$C$5 -> 0
A3: Mandantenname: | B3: =Stammblatt!$C$6 -> 0
A5: 1. Konto/Kontenbereich: | B5: 1000-1099
A6: 2. Thema: | B6: Kassen
A7: 3. Prüfungsziel: | B7: Kassenbücher müssen mit der Fibu übereinstimmen.
A8: 4. Folgende Belege müssen vorliegen: | B8: Kopien Kassenbücher, Kassentool-Dateien
A9: 5. Erläuterungen/Berechnungen/Infos: | B9: Mtl. wird der Saldo laut Belegen bzw. Tool abgestimmt.
B10: Kassenminusprüfung muss mtl. in Rewe durchgeführt werden.
B11: Wird Kassentool von DATEV genutzt? Ja/nein:
B12: Werden Kassen über andere Schnittstellen eingelesen? Ja/nein:
A13: Saldo laut Belegen/Tool: | C13: 31.01. | D13: 0
A14: Saldo laut Rewe: | C14: =C13 -> 31.01. | D14: 0
A15: =A13 -> Saldo laut Belegen/Tool: | C15: 28.02. | D15: 0
A16: =A14 -> Saldo laut Rewe: | C16: =C15 -> 28.02. | D16: 0
A17: =A15 -> Saldo laut Belegen/Tool: | C17: 31.03. | D17: 0
A18: Saldo laut Rewe: | C18: =C17 -> 31.03. | D18: 0
A19: Saldo laut Belegen/Tool: | C19: 30.04. | D19: 0
A20: Saldo laut Rewe: | C20: =C19 -> 30.04. | D20: 0
A21: Saldo laut Belegen/Tool: | C21: 31.05. | D21: 0
A22: Saldo laut Rewe: | C22: =C21 -> 31.05. | D22: 0
A23: Saldo laut Belegen/Tool: | C23: 30.06. | D23: 0
A24: Saldo laut Rewe: | C24: =C23 -> 30.06. | D24: 0
A25: Saldo laut Belegen/Tool: | C25: 31.07. | D25: 0
A26: Saldo laut Rewe: | C26: =C25 -> 31.07. | D26: 0
A27: Saldo laut Belegen/Tool: | C27: 31.08. | D27: 0
A28: Saldo laut Rewe: | C28: =C27 -> 31.08. | D28: 0
A29: Saldo laut Belegen/Tool: | C29: 30.09. | D29: 0
A30: Saldo laut Rewe: | C30: =C29 -> 30.09. | D30: 0
A31: Saldo laut Belegen/Tool: | C31: 31.10. | D31: 0
A32: Saldo laut Rewe: | C32: =C31 -> 31.10. | D32: 0
A33: Saldo laut Belegen/Tool: | C33: 30.11. | D33: 0
A34: Saldo laut Rewe: | C34: =C33 -> 30.11. | D34: 0
A35: Saldo laut Belegen/Tool: | C35: 31.12. | D35: 0
A36: Saldo laut Rewe: | C36: =C35 -> 31.12. | D36: 0
A38: 6. Prüfungsvermerk der/des ausführenden Mitarbeiter/in: | C38: Monat: | D38: Kürzel Mitarb.
A39: Der/die Mitarbeiter/in bestätigt mit seinem/ihrem nachfolgenden Kürzel, | C39: 1
A40: dass alle oben genannten Prüfungen vollständig und korrekt durchgeführt worden sind. | C40: 2
C41: 3
C42: 4
C43: 5
C44: 6
C45: 7
C46: 8
C47: 9
C48: 10
C49: 11
C50: 12
A52: 7. Buchungssätze: | B52: keine
A54: 8. Kassentool-Trefferquote | B54: für eine Kasse | C54: Datum | D54: Quote in %
C55: 31.01. | D55: 0.8
C56: 28.02.
C57: 31.03.
C58: 30.04.
C59: 31.05.
C60: 30.06.
C61: 31.07.
C62: 31.08.
C63: 30.09.
C64: 31.10.
C65: 30.11.
C66: 31.12.

Sheet 1200-1299
A1: Jahr: | B1: =Stammblatt!$C$4 -> 0
A2: Mandantennummer: | B2: =Stammblatt!$C$5 -> 0
A3: Mandantenname: | B3: =Stammblatt!$C$6 -> 0
A5: 1. Konto/Kontenbereich: | B5: 1200-1299
A6: 2. Thema: | B6: Banken
A7: 3. Prüfungsziel: | B7: Bankauszüge müssen mit der Fibu übereinstimmen.
A8: 4. Folgende Belege müssen vorliegen: | B8: Kopien Bankauszüge, Kontoauszugsmanager-Dateien
A9: 5. Erläuterungen/Berechnungen/Infos: | B9: Mtl. wird der Saldo laut Belegen bzw. Auszugsmanager abgestimmt.
B10: Wird Kontoauszugsmanager von DATEV genutzt? Ja/nein:
B11: Werden Banken über andere Schnittstellen eingelesen? Ja/nein:
A12: Saldo laut Belegen/Auszugsmanager: | C12: 31.01. | D12: 0
A13: Saldo laut Rewe: | C13: =C12 -> 31.01. | D13: 0
A14: =A12 -> Saldo laut Belegen/Auszugsmanager: | C14: 28.02. | D14: 0
A15: =A13 -> Saldo laut Rewe: | C15: =C14 -> 28.02. | D15: 0
A16: =A14 -> Saldo laut Belegen/Auszugsmanager: | C16: 31.03. | D16: 0
A17: Saldo laut Rewe: | C17: =C16 -> 31.03. | D17: 0
A18: Saldo laut Belegen/Auszugsmanager: | C18: 30.04. | D18: 0
A19: Saldo laut Rewe: | C19: =C18 -> 30.04. | D19: 0
A20: Saldo laut Belegen/Auszugsmanager: | C20: 31.05. | D20: 0
A21: Saldo laut Rewe: | C21: =C20 -> 31.05. | D21: 0
A22: Saldo laut Belegen/Auszugsmanager: | C22: 30.06. | D22: 0
A23: Saldo laut Rewe: | C23: =C22 -> 30.06. | D23: 0
A24: Saldo laut Belegen/Auszugsmanager: | C24: 31.07. | D24: 0
A25: Saldo laut Rewe: | C25: =C24 -> 31.07. | D25: 0
A26: Saldo laut Belegen/Auszugsmanager: | C26: 31.08. | D26: 0
A27: Saldo laut Rewe: | C27: =C26 -> 31.08. | D27: 0
A28: Saldo laut Belegen/Auszugsmanager: | C28: 30.09. | D28: 0
A29: Saldo laut Rewe: | C29: =C28 -> 30.09. | D29: 0
A30: Saldo laut Belegen/Auszugsmanager: | C30: 31.10. | D30: 0
A31: Saldo laut Rewe: | C31: =C30 -> 31.10. | D31: 0
A32: Saldo laut Belegen/Auszugsmanager: | C32: 30.11. | D32: 0
A33: Saldo laut Rewe: | C33: =C32 -> 30.11. | D33: 0
A34: Saldo laut Belegen/Auszugsmanager: | C34: 31.12. | D34: 0
A35: Saldo laut Rewe: | C35: =C34 -> 31.12. | D35: 0
A37: 6. Prüfungsvermerk der/des ausführenden Mitarbeiter/in: | C37: Monat: | D37: Kürzel Mitarb.
A38: Der/die Mitarbeiter/in bestätigt mit seinem/ihrem nachfolgenden Kürzel, | C38: 1
A39: dass alle oben genannten Prüfungen vollständig und korrekt durchgeführt worden sind. | C39: 2
C40: 3
C41: 4
C42: 5
C43: 6
C44: 7
C45: 8
C46: 9
C47: 10
C48: 11
C49: 12
A51: 7. Buchungssätze: | B51: keine

Sheet 1360
A1: Jahr: | B1: =Stammblatt!$C$4 -> 0
A2: Mandantennummer: | B2: =Stammblatt!$C$5 -> 0
A3: Mandantenname: | B3: =Stammblatt!$C$6 -> 0
A5: 1. Konto/Kontenbereich: | B5: 1360
A6: 2. Thema: | B6: Geldtransit
A7: 3. Prüfungsziel: | B7: Saldo soll 0 EUR betragen.
A8: 4. Folgende Belege müssen vorliegen: | B8: keine
A9: 5. Erläuterungen/Berechnungen/Infos: | B9: Saldo soll 0 EUR betragen.
B10: Ausnahmen davon müssen unten erläutert werden.
A11: Saldo: | C11: 31.01. | D11: 0
A12: =A11 -> Saldo: | C12: 28.02. | D12: 0
A13: Saldo: | C13: 31.03. | D13: 0
A14: Saldo: | C14: 30.04. | D14: 0
A15: Saldo: | C15: 31.05. | D15: 0
A16: Saldo: | C16: 30.06. | D16: 0
A17: Saldo: | C17: 31.07. | D17: 0
A18: Saldo: | C18: 31.08. | D18: 0
A19: Saldo: | C19: 30.09. | D19: 0
A20: Saldo: | C20: 31.10. | D20: 0
A21: Saldo: | C21: 30.11. | D21: 0
A22: Saldo: | C22: 31.12. | D22: 0
A24: 6. Prüfungsvermerk der/des ausführenden Mitarbeiter/in: | C24: Monat: | D24: Kürzel Mitarb.
A25: Der/die Mitarbeiter/in bestätigt mit seinem/ihrem nachfolgenden Kürzel, | C25: 1
A26: dass alle oben genannten Prüfungen vollständig und korrekt durchgeführt worden sind. | C26: 2
C27: 3
C28: 4
C29: 5
C30: 6
C31: 7
C32: 8
C33: 9
C34: 10
C35: 11
C36: 12
A38: 7. Buchungssätze: | B38: keine

Sheet 1400-1440 Ford.aLuL (hidden)
A1: Jahr:
A2: Mandantennummer:
A3: Mandantenname:
A5: 1. Konto/Kontenbereich: | B5: 1400-1440
A6: 2. Thema: | B6: Forderungen aus Lieferungen und Leistungen
A7: 3. Prüfungsziel: | B7: Saldo muss mit OPOS-Liste übereinstimmen.
A8: 4. Folgende Belege müssen vorliegen: | B8: OPOS-Liste
A9: 5. Erläuterungen/Berechnungen/Infos: | B9: keine
A10: Saldo laut "OPOS-Liste": | C10: 31.01. | D10: 0
A11: Saldo laut Rewe: | C11: =C10 -> 31.01. | D11: 0
A12: =A10 -> Saldo laut "OPOS-Liste": | C12: 28.02. | D12: 0
A13: Saldo laut Rewe: | C13: =C12 -> 28.02. | D13: 0
A14: Saldo laut "OPOS-Liste": | C14: 31.03. | D14: 0
A15: Saldo laut Rewe: | C15: =C14 -> 31.03. | D15: 0
A16: Saldo laut "OPOS-Liste": | C16: 30.04. | D16: 0
A17: Saldo laut Rewe: | C17: =C16 -> 30.04. | D17: 0
A18: Saldo laut "OPOS-Liste": | C18: 31.05. | D18: 0
A19: Saldo laut Rewe: | C19: =C18 -> 31.05. | D19: 0
A20: Saldo laut "OPOS-Liste": | C20: 30.06. | D20: 0
A21: Saldo laut Rewe: | C21: =C20 -> 30.06. | D21: 0
A22: Saldo laut "OPOS-Liste": | C22: 31.07. | D22: 0
A23: Saldo laut Rewe: | C23: =C22 -> 31.07. | D23: 0
A24: Saldo laut "OPOS-Liste": | C24: 31.08. | D24: 0
A25: Saldo laut Rewe: | C25: =C24 -> 31.08. | D25: 0
A26: Saldo laut "OPOS-Liste": | C26: 30.09. | D26: 0
A27: Saldo laut Rewe: | C27: =C26 -> 30.09. | D27: 0
A28: Saldo laut "OPOS-Liste": | C28: 31.10. | D28: 0
A29: Saldo laut Rewe: | C29: =C28 -> 31.10. | D29: 0
A30: Saldo laut "OPOS-Liste": | C30: 30.11. | D30: 0
A31: Saldo laut Rewe: | C31: =C30 -> 30.11. | D31: 0
A32: Saldo laut "OPOS-Liste": | C32: 31.12. | D32: 0
A33: Saldo laut Rewe: | C33: =C32 -> 31.12. | D33: 0
A35: 6. Prüfungsvermerk der/des ausführenden Mitarbeiter/in: | C35: Monat: | D35: Kürzel Mitarb.
A36: Der/die Mitarbeiter/in bestätigt mit seinem/ihrem nachfolgenden Kürzel, | C36: 1
A37: dass alle oben genannten Prüfungen vollständig und korrekt durchgeführt worden sind. | C37: 2
C38: 3
C39: 4
C40: 5
C41: 6
C42: 7
C43: 8
C44: 9
C45: 10
C46: 11
C47: 12
A49: 7. Buchungssätze: | B49: keine

Sheet 1460 Ford. zweifelh. (hidden)
A1: Jahr:
A2: Mandantennummer: | G2: Hilfe
A3: Mandantenname: | G3: Jahresabschluss 2013 | R3: =[2]Programmeinstellungen!$G$23 -> Werner & Wollscheid StB
G4: Bemotiv GmbH | J4: =[2]Programmeinstellungen!B38 -> Einzelwertberichtigungen | N4: 2013-12-31
A5: 1. Konto/Kontenbereich: | B5: 1460
A6: 2. Thema: | B6: Zeifelhafte Forderungen aus Lieferungen und Leistungen | H6: Name Kunde | I6: Konto | J6: Betrag Brutto in Euro | K6: USt | L6: Wertberichtigung in % | M6: Wertberichtigung | O6: Betrag USt in Euro
A7: 3. Prüfungsziel: | B7: Saldo muss OPOS-Liste übereinstimmen. | M7: in Euro brutto | N7: in Euro netto
A8: 4. Folgende Belege müssen vorliegen: | B8: OPOS-Liste, Insolvenzmeldungen von Kunden, Belege von Mdt, | H8: Müller | I8: 10301 | J8: 11900 | L8: 0.3 | M8: =ROUND(J8*L8,2) -> 3570 | N8: =ROUND(M8/(100%+K8),2) -> 3570 | O8: =SUM(M8-N8) -> 0
B9: dass die Forderungen zweifelhaft sind, Mahnkorrespondenz | M9: =ROUND(J9*L9,2) -> 0 | N9: =ROUND(M9/(100%+K9),2) -> 0 | O9: 0
A10: 5. Erläuterungen/Berechnungen/Infos: | B10: keine | M10: 0 | N10: 0 | O10: 0
A11: Saldo: | C11: 31.01. | D11: 0 | M11: 0 | N11: 0 | O11: 0
A12: =A11 -> Saldo: | C12: 28.02. | D12: 0 | M12: 0 | N12: 0 | O12: 0
A13: Saldo: | C13: 31.03. | D13: 0 | M13: 0 | N13: 0 | O13: 0
A14: Saldo: | C14: 30.04. | D14: 0 | M14: 0 | N14: 0 | O14: 0
A15: Saldo: | C15: 31.05. | D15: 0 | M15: 0 | N15: 0 | O15: 0
A16: Saldo: | C16: 30.06. | D16: 0 | M16: 0 | N16: 0 | O16: 0
A17: Saldo: | C17: 31.07. | D17: 0 | M17: 0 | N17: 0 | O17: 0
A18: Saldo: | C18: 31.08. | D18: 0 | M18: 0 | N18: 0 | O18: 0
A19: Saldo: | C19: 30.09. | D19: 0 | M19: 0 | N19: 0 | O19: 0
A20: Saldo: | C20: 31.10. | D20: 0 | M20: 0 | N20: 0 | O20: 0
A21: Saldo: | C21: 30.11. | D21: 0 | M21: 0 | N21: 0 | O21: 0
A22: Saldo: | C22: 31.12. | D22: 0 | H22: Summe | J22: =SUM(J8:J21) -> 11900 | L22: EWB gerundet | M22: =SUM(M8:M21) -> 3570 | N22: =SUM(N8:N21) -> 3570 | O22: =SUM(O8:O21) -> 0
A24: 6. Prüfungsvermerk der/des ausführenden Mitarbeiter/in: | C24: Monat: | D24: Kürzel Mitarb. | H24: Einzelwertberichtigung (netto) lfd. Jahr | O24: =SUM(N22) -> 3570
A25: Der/die Mitarbeiter/in bestätigt mit seinem/ihrem nachfolgenden Kürzel, | C25: 1 | H25: - Einzelwertberichtigung Vorjahr | M25: Bilanzkonto Vorjahr | N25: =KtoForderungEinzelwertberichtigung ->  | O25: 0
A26: dass alle oben genannten Prüfungen vollständig und korrekt durchgeführt worden sind. | C26: 2 | H26: = Erhöhung/Herabsetzung Einzelwertberichtigung | O26: =O24-O25 -> 3570
C27: 3
C28: 4 | H28: Buchungssatz: | J28: Konto | K28: =KtoEinstellungEinzelwertberichtigung ->  | L28: an | M28: =KtoForderungEinzelwertberichtigung ->  | O28: =SUM(IF(O26>0,O26,0)) -> 3570
C29: 5 | J29: Konto | K29: =KtoForderungEinzelwertberichtigung ->  | L29: an | M29: =KtoErträgeHerabsetzungEinzelwertberichtigung ->  | O29: =SUM(IF(O26<0,O26,0))*-1 -> 0
C30: 6
C31: 7
C32: 8
C33: 9
C34: 10
C35: 11
C36: 12
A38: 7. Buchungssätze: | B38: 1460 / 1400 oder Debitorenkonto (Neueinbuchung zw. Ford.)
B39: 2400 / 1460 (Ausbuchung Forderungsverlust 0% USt)
B40: 2403 / 1460 (Ausbuchung Forderungsverlust 7% USt)
B41: 2406 / 1460 (Ausbuchung Forderungsverlust 19% USt)

Sheet 1500-1555 Ford. Sonst. (hidden)
A1: Jahr:
A2: Mandantennummer:
A3: Mandantenname:
A5: 1. Konto/Kontenbereich: | B5: 1500-1555
A6: 2. Thema: | B6: Forderungen sonstige
A7: 3. Prüfungsziel: | B7: Saldo muss mit Belegen übereinstimmen.
A8: 4. Folgende Belege müssen vorliegen: | B8: Belege
A9: 5. Erläuterungen/Berechnungen/Infos: | B9: keine
A10: Saldo laut Belegen: | C10: 31.01. | D10: 0
A11: Saldo laut Rewe: | C11: =C10 -> 31.01. | D11: 0
A12: =A10 -> Saldo laut Belegen: | C12: 28.02. | D12: 0
A13: Saldo laut Rewe: | C13: =C12 -> 28.02. | D13: 0
A14: Saldo laut Belegen: | C14: 31.03. | D14: 0
A15: Saldo laut Rewe: | C15: =C14 -> 31.03. | D15: 0
A16: Saldo laut Belegen: | C16: 30.04. | D16: 0
A17: Saldo laut Rewe: | C17: =C16 -> 30.04. | D17: 0
A18: Saldo laut Belegen: | C18: 31.05. | D18: 0
A19: Saldo laut Rewe: | C19: =C18 -> 31.05. | D19: 0
A20: Saldo laut Belegen: | C20: 30.06. | D20: 0
A21: Saldo laut Rewe: | C21: =C20 -> 30.06. | D21: 0
A22: Saldo laut Belegen: | C22: 31.07. | D22: 0
A23: Saldo laut Rewe: | C23: =C22 -> 31.07. | D23: 0
A24: Saldo laut Belegen: | C24: 31.08. | D24: 0
A25: Saldo laut Rewe: | C25: =C24 -> 31.08. | D25: 0
A26: Saldo laut Belegen: | C26: 30.09. | D26: 0
A27: Saldo laut Rewe: | C27: =C26 -> 30.09. | D27: 0
A28: Saldo laut Belegen: | C28: 31.10. | D28: 0
A29: Saldo laut Rewe: | C29: =C28 -> 31.10. | D29: 0
A30: Saldo laut Belegen: | C30: 30.11. | D30: 0
A31: Saldo laut Rewe: | C31: =C30 -> 30.11. | D31: 0
A32: Saldo laut Belegen: | C32: 31.12. | D32: 0
A33: Saldo laut Rewe: | C33: =C32 -> 31.12. | D33: 0
A35: 6. Prüfungsvermerk der/des ausführenden Mitarbeiter/in: | C35: Monat: | D35: Kürzel Mitarb.
A36: Der/die Mitarbeiter/in bestätigt mit seinem/ihrem nachfolgenden Kürzel, | C36: 1
A37: dass alle oben genannten Prüfungen vollständig und korrekt durchgeführt worden sind. | C37: 2
C38: 3
C39: 4
C40: 5
C41: 6
C42: 7
C43: 8
C44: 9
C45: 10
C46: 11
C47: 12
A49: 7. Buchungssätze: | B49: keine

Sheet 1590
A1: Jahr: | B1: =Stammblatt!$C$4 -> 0
A2: Mandantennummer: | B2: =Stammblatt!$C$5 -> 0
A3: Mandantenname: | B3: =Stammblatt!$C$6 -> 0
A5: 1. Konto/Kontenbereich: | B5: 1590
A6: 2. Thema: | B6: Durchlaufende Posten
A7: 3. Prüfungsziel: | B7: Saldo muss immer 0 EUR betragen.
A8: 4. Folgende Belege müssen vorliegen: | B8: keine
A9: 5. Erläuterungen/Berechnungen/Infos: | B9: Saldo muss immer 0 EUR betragen.
B10: Ausnahmen davon sind nicht zulässig.
A11: Saldo: | C11: 31.01. | D11: 0
A12: =A11 -> Saldo: | C12: 28.02. | D12: 0
A13: Saldo: | C13: 31.03. | D13: 0
A14: Saldo: | C14: 30.04. | D14: 0
A15: Saldo: | C15: 31.05. | D15: 0
A16: Saldo: | C16: 30.06. | D16: 0
A17: Saldo: | C17: 31.07. | D17: 0
A18: Saldo: | C18: 31.08. | D18: 0
A19: Saldo: | C19: 30.09. | D19: 0
A20: Saldo: | C20: 31.10. | D20: 0
A21: Saldo: | C21: 30.11. | D21: 0
A22: Saldo: | C22: 31.12. | D22: 0
A24: 6. Prüfungsvermerk der/des ausführenden Mitarbeiter/in: | C24: Monat: | D24: Kürzel Mitarb.
A25: Der/die Mitarbeiter/in bestätigt mit seinem/ihrem nachfolgenden Kürzel, | C25: 1
A26: dass alle oben genannten Prüfungen vollständig und korrekt durchgeführt worden sind. | C26: 2
C27: 3
C28: 4
C29: 5
C30: 6
C31: 7
C32: 8
C33: 9
C34: 10
C35: 11
C36: 12
A38: 7. Buchungssätze: | B38: keine

Sheet 1600-1659 Verb.aLuL (hidden)
A1: Jahr:
A2: Mandantennummer:
A3: Mandantenname:
A5: 1. Konto/Kontenbereich: | B5: 1600-1659
A6: 2. Thema: | B6: Verbindlichkeiten aus Lieferungen und Leistungen
A7: 3. Prüfungsziel: | B7: Saldo muss mit OPOS-Liste übereinstimmen.
A8: 4. Folgende Belege müssen vorliegen: | B8: OPOS-Liste
A9: 5. Erläuterungen/Berechnungen/Infos: | B9: keine
A10: Saldo laut "OPOS-Liste": | C10: 31.01. | D10: 0
A11: Saldo laut Rewe: | C11: =C10 -> 31.01. | D11: 0
A12: =A10 -> Saldo laut "OPOS-Liste": | C12: 28.02. | D12: 0
A13: Saldo laut Rewe: | C13: =C12 -> 28.02. | D13: 0
A14: Saldo laut "OPOS-Liste": | C14: 31.03. | D14: 0
A15: Saldo laut Rewe: | C15: =C14 -> 31.03. | D15: 0
A16: Saldo laut "OPOS-Liste": | C16: 30.04. | D16: 0
A17: Saldo laut Rewe: | C17: =C16 -> 30.04. | D17: 0
A18: Saldo laut "OPOS-Liste": | C18: 31.05. | D18: 0
A19: Saldo laut Rewe: | C19: =C18 -> 31.05. | D19: 0
A20: Saldo laut "OPOS-Liste": | C20: 30.06. | D20: 0
A21: Saldo laut Rewe: | C21: =C20 -> 30.06. | D21: 0
A22: Saldo laut "OPOS-Liste": | C22: 31.07. | D22: 0
A23: Saldo laut Rewe: | C23: =C22 -> 31.07. | D23: 0
A24: Saldo laut "OPOS-Liste": | C24: 31.08. | D24: 0
A25: Saldo laut Rewe: | C25: =C24 -> 31.08. | D25: 0
A26: Saldo laut "OPOS-Liste": | C26: 30.09. | D26: 0
A27: Saldo laut Rewe: | C27: =C26 -> 30.09. | D27: 0
A28: Saldo laut "OPOS-Liste": | C28: 31.10. | D28: 0
A29: Saldo laut Rewe: | C29: =C28 -> 31.10. | D29: 0
A30: Saldo laut "OPOS-Liste": | C30: 30.11. | D30: 0
A31: Saldo laut Rewe: | C31: =C30 -> 30.11. | D31: 0
A32: Saldo laut "OPOS-Liste": | C32: 31.12. | D32: 0
A33: Saldo laut Rewe: | C33: =C32 -> 31.12. | D33: 0
A35: 6. Prüfungsvermerk der/des ausführenden Mitarbeiter/in: | C35: Monat: | D35: Kürzel Mitarb.
A36: Der/die Mitarbeiter/in bestätigt mit seinem/ihrem nachfolgenden Kürzel, | C36: 1
A37: dass alle oben genannten Prüfungen vollständig und korrekt durchgeführt worden sind. | C37: 2
C38: 3
C39: 4
C40: 5
C41: 6
C42: 7
C43: 8
C44: 9
C45: 10
C46: 11
C47: 12
A49: 7. Buchungssätze: | B49: keine

Sheet 1700-1759 Verb. Sonst. (hidden)
A1: Jahr:
A2: Mandantennummer:
A3: Mandantenname:
A5: 1. Konto/Kontenbereich: | B5: 1700-1759
A6: 2. Thema: | B6: Verbindlichkeiten sonstige
A7: 3. Prüfungsziel: | B7: Saldo muss mit Belegen übereinstimmen.
A8: 4. Folgende Belege müssen vorliegen: | B8: Belege
A9: 5. Erläuterungen/Berechnungen/Infos: | B9: keine
A10: Saldo laut Belegen: | C10: 31.01. | D10: 0
A11: Saldo laut Rewe: | C11: =C10 -> 31.01. | D11: 0
A12: =A10 -> Saldo laut Belegen: | C12: 28.02. | D12: 0
A13: Saldo laut Rewe: | C13: =C12 -> 28.02. | D13: 0
A14: Saldo laut Belegen: | C14: 31.03. | D14: 0
A15: Saldo laut Rewe: | C15: =C14 -> 31.03. | D15: 0
A16: Saldo laut Belegen: | C16: 30.04. | D16: 0
A17: Saldo laut Rewe: | C17: =C16 -> 30.04. | D17: 0
A18: Saldo laut Belegen: | C18: 31.05. | D18: 0
A19: Saldo laut Rewe: | C19: =C18 -> 31.05. | D19: 0
A20: Saldo laut Belegen: | C20: 30.06. | D20: 0
A21: Saldo laut Rewe: | C21: =C20 -> 30.06. | D21: 0
A22: Saldo laut Belegen: | C22: 31.07. | D22: 0
A23: Saldo laut Rewe: | C23: =C22 -> 31.07. | D23: 0
A24: Saldo laut Belegen: | C24: 31.08. | D24: 0
A25: Saldo laut Rewe: | C25: =C24 -> 31.08. | D25: 0
A26: Saldo laut Belegen: | C26: 30.09. | D26: 0
A27: Saldo laut Rewe: | C27: =C26 -> 30.09. | D27: 0
A28: Saldo laut Belegen: | C28: 31.10. | D28: 0
A29: Saldo laut Rewe: | C29: =C28 -> 31.10. | D29: 0
A30: Saldo laut Belegen: | C30: 30.11. | D30: 0
A31: Saldo laut Rewe: | C31: =C30 -> 30.11. | D31: 0
A32: Saldo laut Belegen: | C32: 31.12. | D32: 0
A33: Saldo laut Rewe: | C33: =C32 -> 31.12. | D33: 0
A35: 6. Prüfungsvermerk der/des ausführenden Mitarbeiter/in: | C35: Monat: | D35: Kürzel Mitarb.
A36: Der/die Mitarbeiter/in bestätigt mit seinem/ihrem nachfolgenden Kürzel, | C36: 1
A37: dass alle oben genannten Prüfungen vollständig und korrekt durchgeführt worden sind. | C37: 2
C38: 3
C39: 4
C40: 5
C41: 6
C42: 7
C43: 8
C44: 9
C45: 10
C46: 11
C47: 12
A49: 7. Buchungssätze: | B49: keine

Sheet 1792 Verb. Verr.kto. (hidden)
A1: Jahr:
A2: Mandantennummer:
A3: Mandantenname:
A5: 1. Konto/Kontenbereich: | B5: 1792
A6: 2. Thema: | B6: Verbindlichkeiten Verrechnungskonto
A7: 3. Prüfungsziel: | B7: Saldo muss mit Zinsrechnung aus Wirtschaftsberatung übereinstimmen.
A8: 4. Folgende Belege müssen vorliegen: | B8: Zinsrechnung aus DATEV-Wirtschaftsberatung
A9: 5. Erläuterungen/Berechnungen/Infos: | B9: Der Saldo wird nur 1x am 31.12. genau berechnet und unterjährig geschätzt.
A10: Saldo laut Schätzung: | C10: 31.01. | D10: 0
A11: =A10 -> Saldo laut Schätzung: | C11: 28.02. | D11: 0
A12: Saldo laut Schätzung: | C12: 31.03. | D12: 0
A13: Saldo laut Schätzung: | C13: 30.04. | D13: 0
A14: Saldo laut Schätzung: | C14: 31.05. | D14: 0
A15: Saldo laut Schätzung: | C15: 30.06. | D15: 0
A16: Saldo laut Schätzung: | C16: 31.07. | D16: 0
A17: Saldo laut Schätzung: | C17: 31.08. | D17: 0
A18: Saldo laut Schätzung: | C18: 30.09. | D18: 0
A19: Saldo laut Schätzung: | C19: 31.10. | D19: 0
A20: Saldo laut Schätzung: | C20: 30.11. | D20: 0
A21: Saldo laut Schätzung: | C21: 31.12. | D21: 0
A22: Saldo laut "Zinsrechnung DATEV-Wirtschaftsberatung": | C22: 31.12. | D22: 0
A24: 6. Prüfungsvermerk der/des ausführenden Mitarbeiter/in: | C24: Monat: | D24: Kürzel Mitarb.
A25: Der/die Mitarbeiter/in bestätigt mit seinem/ihrem nachfolgenden Kürzel, | C25: 1
A26: dass alle oben genannten Prüfungen vollständig und korrekt durchgeführt worden sind. | C26: 2
C27: 3
C28: 4
C29: 5
C30: 6
C31: 7
C32: 8
C33: 9
C34: 10
C35: 11
C36: 12
A38: 7. Buchungssätze: | B38: keine

Sheet 3970-3980 Best.Waren+RHB (hidden)
A1: Jahr:
A2: Mandantennummer:
A3: Mandantenname:
A5: 1. Konto/Kontenbereich: | B5: 3970-3980
A6: 2. Thema: | B6: Bestand Rohstoffe bzw. Waren
A7: 3. Prüfungsziel: | B7: Saldo muss mit Belegen übereinstimmen.
A8: 4. Folgende Belege müssen vorliegen: | B8: Inventur des Mdt
A9: 5. Erläuterungen/Berechnungen/Infos: | B9: Inventurbestände so einbuchen, wie sie vorliegen (mtl., vj. hj. j.)
A10: Saldo laut Inventur: | C10: 31.01. | D10: 0
A11: Saldo laut Rewe: | C11: =C10 -> 31.01. | D11: 0
A12: =A10 -> Saldo laut Inventur: | C12: 28.02. | D12: 0
A13: Saldo laut Rewe: | C13: =C12 -> 28.02. | D13: 0
A14: Saldo laut Inventur: | C14: 31.03. | D14: 0
A15: Saldo laut Rewe: | C15: =C14 -> 31.03. | D15: 0
A16: Saldo laut Inventur: | C16: 30.04. | D16: 0
A17: Saldo laut Rewe: | C17: =C16 -> 30.04. | D17: 0
A18: Saldo laut Inventur: | C18: 31.05. | D18: 0
A19: Saldo laut Rewe: | C19: =C18 -> 31.05. | D19: 0
A20: Saldo laut Inventur: | C20: 30.06. | D20: 0
A21: Saldo laut Rewe: | C21: =C20 -> 30.06. | D21: 0
A22: Saldo laut Inventur: | C22: 31.07. | D22: 0
A23: Saldo laut Rewe: | C23: =C22 -> 31.07. | D23: 0
A24: Saldo laut Inventur: | C24: 31.08. | D24: 0
A25: Saldo laut Rewe: | C25: =C24 -> 31.08. | D25: 0
A26: Saldo laut Inventur: | C26: 30.09. | D26: 0
A27: Saldo laut Rewe: | C27: =C26 -> 30.09. | D27: 0
A28: Saldo laut Inventur: | C28: 31.10. | D28: 0
A29: Saldo laut Rewe: | C29: =C28 -> 31.10. | D29: 0
A30: Saldo laut Inventur: | C30: 30.11. | D30: 0
A31: Saldo laut Rewe: | C31: =C30 -> 30.11. | D31: 0
A32: Saldo laut Inventur: | C32: 31.12. | D32: 0
A33: Saldo laut Rewe: | C33: =C32 -> 31.12. | D33: 0
A35: 6. Prüfungsvermerk der/des ausführenden Mitarbeiter/in: | C35: Monat: | D35: Kürzel Mitarb.
A36: Der/die Mitarbeiter/in bestätigt mit seinem/ihrem nachfolgenden Kürzel, | C36: 1
A37: dass alle oben genannten Prüfungen vollständig und korrekt durchgeführt worden sind. | C37: 2
C38: 3
C39: 4
C40: 5
C41: 6
C42: 7
C43: 8
C44: 9
C45: 10
C46: 11
C47: 12
A49: 7. Buchungssätze: | B49: 3980 / 3960 (Erhöhung Bestand)
B50: 3960 / 3980 (Senkung Bestand)

Sheet 4100-4199 nur bei Selbstbuchern
A1: Jahr: | B1: =Stammblatt!$C$4 -> 0
A2: Mandantennummer: | B2: =Stammblatt!$C$5 -> 0
A3: Mandantenname: | B3: =Stammblatt!$C$6 -> 0
A5: 1. Konto/Kontenbereich: | B5: 4100-4199
A6: 2. Thema: | B6: Lohnverbuchung (nur bei Selbstbuchern)
A7: 3. Prüfungsziel: | B7: Lohnverbuchung muss mit den Lohnprogrammauswertungen des Mdt übereinstimmen.
A8: 4. Folgende Belege müssen vorliegen: | B8: Lohnprogrammauswertungen des Mdt übereinstimmen.
A9: 5. Erläuterungen/Berechnungen/Infos: | B9: keine
A10: Saldo laut Lohnauswertungen des Mdt: | C10: 31.01. | D10: 0
A11: Saldo laut Rewe: | C11: =C10 -> 31.01. | D11: 0
A12: =A10 -> Saldo laut Lohnauswertungen des Mdt: | C12: 28.02. | D12: 0
A13: Saldo laut Rewe: | C13: =C12 -> 28.02. | D13: 0
A14: Saldo laut Lohnauswertungen des Mdt: | C14: 31.03. | D14: 0
A15: Saldo laut Rewe: | C15: =C14 -> 31.03. | D15: 0
A16: Saldo laut Lohnauswertungen des Mdt: | C16: 30.04. | D16: 0
A17: Saldo laut Rewe: | C17: =C16 -> 30.04. | D17: 0
A18: Saldo laut Lohnauswertungen des Mdt: | C18: 31.05. | D18: 0
A19: Saldo laut Rewe: | C19: =C18 -> 31.05. | D19: 0
A20: Saldo laut Lohnauswertungen des Mdt: | C20: 30.06. | D20: 0
A21: Saldo laut Rewe: | C21: =C20 -> 30.06. | D21: 0
A22: Saldo laut Lohnauswertungen des Mdt: | C22: 31.07. | D22: 0
A23: Saldo laut Rewe: | C23: =C22 -> 31.07. | D23: 0
A24: Saldo laut Lohnauswertungen des Mdt: | C24: 31.08. | D24: 0
A25: Saldo laut Rewe: | C25: =C24 -> 31.08. | D25: 0
A26: Saldo laut Lohnauswertungen des Mdt: | C26: 30.09. | D26: 0
A27: Saldo laut Rewe: | C27: =C26 -> 30.09. | D27: 0
A28: Saldo laut Lohnauswertungen des Mdt: | C28: 31.10. | D28: 0
A29: Saldo laut Rewe: | C29: =C28 -> 31.10. | D29: 0
A30: Saldo laut Lohnauswertungen des Mdt: | C30: 30.11. | D30: 0
A31: Saldo laut Rewe: | C31: =C30 -> 30.11. | D31: 0
A32: Saldo laut Lohnauswertungen des Mdt: | C32: 31.12. | D32: 0
A33: Saldo laut Rewe: | C33: =C32 -> 31.12. | D33: 0
A35: 6. Prüfungsvermerk der/des ausführenden Mitarbeiter/in: | C35: Monat: | D35: Kürzel Mitarb.
A36: Der/die Mitarbeiter/in bestätigt mit seinem/ihrem nachfolgenden Kürzel, | C36: 1
A37: dass alle oben genannten Prüfungen vollständig und korrekt durchgeführt worden sind. | C37: 2
C38: 3
C39: 4
C40: 5
C41: 6
C42: 7
C43: 8
C44: 9
C45: 10
C46: 11
C47: 12
A49: 7. Buchungssätze: | B49: keine

Sheet 2000-4999
A1: Jahr: | B1: =Stammblatt!$C$4 -> 0
A2: Mandantennummer: | B2: =Stammblatt!$C$5 -> 0
A3: Mandantenname: | B3: =Stammblatt!$C$6 -> 0
A5: 1. Konto/Kontenbereich: | B5: 2000-4999
A6: 2. Thema: | B6: G+V Konten
A7: 3. Prüfungsziel: | B7: keine
A8: 4. Folgende Belege müssen vorliegen: | B8: keine
A9: 5. Erläuterungen/Berechnungen/Infos: | B9: Es werden nur wichtige Sachverhalte erläutert.
B10: Zur freien Verfügung:
A25: 6. Prüfungsvermerk der/des ausführenden Mitarbeiter/in: | C25: Monat: | D25: Kürzel Mitarb.
A26: Der/die Mitarbeiter/in bestätigt mit seinem/ihrem nachfolgenden Kürzel, | C26: 1
A27: dass alle oben genannten Prüfungen vollständig und korrekt durchgeführt worden sind. | C27: 2
C28: 3
C29: 4
C30: 5
C31: 6
C32: 7
C33: 8
C34: 9
C35: 10
C36: 11
C37: 12
A39: 7. Buchungssätze:

Sheet 7000-7140 Teilfertige (hidden)
A1: Jahr:
A2: Mandantennummer:
A3: Mandantenname:
A5: 1. Konto/Kontenbereich: | B5: 7000-7140
A6: 2. Thema: | B6: Teilfertige Leistungen
A7: 3. Prüfungsziel: | B7: Saldo muss mit Belegen übereinstimmen.
A8: 4. Folgende Belege müssen vorliegen: | B8: Inventur des Mdt
A9: 5. Erläuterungen/Berechnungen/Infos: | B9: Inventur so einbuchen, wie sie vorliegen (mtl., vj. hj. j.)
A10: Saldo laut Inventur: | C10: 31.01. | D10: 0
A11: Saldo laut Rewe: | C11: =C10 -> 31.01. | D11: 0
A12: =A10 -> Saldo laut Inventur: | C12: 28.02. | D12: 0
A13: Saldo laut Rewe: | C13: =C12 -> 28.02. | D13: 0
A14: Saldo laut Inventur: | C14: 31.03. | D14: 0
A15: Saldo laut Rewe: | C15: =C14 -> 31.03. | D15: 0
A16: Saldo laut Inventur: | C16: 30.04. | D16: 0
A17: Saldo laut Rewe: | C17: =C16 -> 30.04. | D17: 0
A18: Saldo laut Inventur: | C18: 31.05. | D18: 0
A19: Saldo laut Rewe: | C19: =C18 -> 31.05. | D19: 0
A20: Saldo laut Inventur: | C20: 30.06. | D20: 0
A21: Saldo laut Rewe: | C21: =C20 -> 30.06. | D21: 0
A22: Saldo laut Inventur: | C22: 31.07. | D22: 0
A23: Saldo laut Rewe: | C23: =C22 -> 31.07. | D23: 0
A24: Saldo laut Inventur: | C24: 31.08. | D24: 0
A25: Saldo laut Rewe: | C25: =C24 -> 31.08. | D25: 0
A26: Saldo laut Inventur: | C26: 30.09. | D26: 0
A27: Saldo laut Rewe: | C27: =C26 -> 30.09. | D27: 0
A28: Saldo laut Inventur: | C28: 31.10. | D28: 0
A29: Saldo laut Rewe: | C29: =C28 -> 31.10. | D29: 0
A30: Saldo laut Inventur: | C30: 30.11. | D30: 0
A31: Saldo laut Rewe: | C31: =C30 -> 30.11. | D31: 0
A32: Saldo laut Inventur: | C32: 31.12. | D32: 0
A33: Saldo laut Rewe: | C33: =C32 -> 31.12. | D33: 0
A35: 6. Prüfungsvermerk der/des ausführenden Mitarbeiter/in: | C35: Monat: | D35: Kürzel Mitarb.
A36: Der/die Mitarbeiter/in bestätigt mit seinem/ihrem nachfolgenden Kürzel, | C36: 1
A37: dass alle oben genannten Prüfungen vollständig und korrekt durchgeführt worden sind. | C37: 2
C38: 3
C39: 4
C40: 5
C41: 6
C42: 7
C43: 8
C44: 9
C45: 10
C46: 11
C47: 12
A49: 7. Buchungssätze: | B49: 7080 / 8970 (Erhöhung Bestand)
B50: 8970 / 7080 (Senkung Bestand)

Sheet 4957 mit ER
A1: Jahr: | B1: =Stammblatt!$C$4 -> 0
A2: Mandantennummer: | B2: =Stammblatt!$C$5 -> 0
A3: Mandantenname: | B3: =Stammblatt!$C$6 -> 0
A5: 1. Konto/Kontenbereich: | B5: 4957
A6: 2. Thema: | B6: ER-Pauschale
A7: 3. Prüfungsziel: | B7: Das Honorar laut ER-Vertrag mit Steuerkanzlei muss mit Fibu übereinstimmen.
A8: 4. Folgende Belege müssen vorliegen: | B8: ER-Vertrag mit Steuerkanzlei
A9: 5. Erläuterungen/Berechnungen/Infos: | B9: Der nicht abzugsfähige Privatanteil im Honorar wird wie folgt umgebucht:
B10: 1% vom Jahreshonorar (Jahres-ER-Pauschale)
B12: ER-Pauschale mtl. laut ER-Vertrag: | D12: =Stammblatt!G7 -> 0
B13: Mtl. Umbuchung Privatanteil 1% der ER-Pauschale (BS: 1800/904957): | D13: =D12*1%*1.19 -> 0

Sheet 8100-8199
A1: Jahr: | B1: =Stammblatt!$C$4 -> 0
A2: Mandantennummer: | B2: =Stammblatt!$C$5 -> 0
A3: Mandantenname: | B3: =Stammblatt!$C$6 -> 0
A5: 1. Konto/Kontenbereich: | B5: 8100-8199
A6: 2. Thema: | B6: Erlöse umsatzsteuerfrei
A7: 3. Prüfungsziel: | B7: Sicherstellung, dass diese Erlöse ust-frei sind.
A8: 4. Folgende Belege müssen vorliegen: | B8: Gesetzestext oder Literatur
A9: 5. Erläuterungen/Berechnungen/Infos: | B9: Es muss aus haftungsrechtlichen Gründen ausdrücklich geprüft werden,
B10: dass diese Erlöse ust-frei sind.
A11: Saldo laut Rewe: | C11: 31.01. | D11: 0
A12: =A11 -> Saldo laut Rewe: | C12: 28.02. | D12: 0
A13: Saldo laut Rewe: | C13: 31.03. | D13: 0
A14: Saldo laut Rewe: | C14: 30.04. | D14: 0
A15: Saldo laut Rewe: | C15: 31.05. | D15: 0
A16: Saldo laut Rewe: | C16: 30.06. | D16: 0
A17: Saldo laut Rewe: | C17: 31.07. | D17: 0
A18: Saldo laut Rewe: | C18: 31.08. | D18: 0
A19: Saldo laut Rewe: | C19: 30.09. | D19: 0
A20: Saldo laut Rewe: | C20: 31.10. | D20: 0
A21: Saldo laut Rewe: | C21: 30.11. | D21: 0
A22: Saldo laut Rewe: | C22: 31.12. | D22: 0
A24: 6. Prüfungsvermerk der/des ausführenden Mitarbeiter/in: | C24: Monat: | D24: Kürzel Mitarb.
A25: Der/die Mitarbeiter/in bestätigt mit seinem/ihrem nachfolgenden Kürzel, | C25: 1
A26: dass alle oben genannten Prüfungen vollständig und korrekt durchgeführt worden sind. | C26: 2
C27: 3
C28: 4
C29: 5
C30: 6
C31: 7
C32: 8
C33: 9
C34: 10
C35: 11
C36: 12
A38: 7. Buchungssätze: | B38: keine

Sheet 8300-8399
A1: Jahr: | B1: =Stammblatt!$C$4 -> 0
A2: Mandantennummer: | B2: =Stammblatt!$C$5 -> 0
A3: Mandantenname: | B3: =Stammblatt!$C$6 -> 0
A5: 1. Konto/Kontenbereich: | B5: 8300-8399
A6: 2. Thema: | B6: Erlöse Umsatzsteuersatz 7%, 16%, § 13b UStG
A7: 3. Prüfungsziel: | B7: Sicherstellung, dass diese Erlöse ermäßigt oder nach § 13b UStG versteuert werden.
A8: 4. Folgende Belege müssen vorliegen: | B8: Gesetzestext oder Literatur
A9: 5. Erläuterungen/Berechnungen/Infos: | B9: Es muss aus haftungsrechtlichen Gründen ausdrücklich geprüft werden,
B10: dass diese Erlöse ust-ermäßigt sind.
A11: Saldo laut Rewe: | C11: 31.01. | D11: 0
A12: =A11 -> Saldo laut Rewe: | C12: 28.02. | D12: 0
A13: Saldo laut Rewe: | C13: 31.03. | D13: 0
A14: Saldo laut Rewe: | C14: 30.04. | D14: 0
A15: Saldo laut Rewe: | C15: 31.05. | D15: 0
A16: Saldo laut Rewe: | C16: 30.06. | D16: 0
A17: Saldo laut Rewe: | C17: 31.07. | D17: 0
A18: Saldo laut Rewe: | C18: 31.08. | D18: 0
A19: Saldo laut Rewe: | C19: 30.09. | D19: 0
A20: Saldo laut Rewe: | C20: 31.10. | D20: 0
A21: Saldo laut Rewe: | C21: 30.11. | D21: 0
A22: Saldo laut Rewe: | C22: 31.12. | D22: 0
A24: 6. Prüfungsvermerk der/des ausführenden Mitarbeiter/in: | C24: Monat: | D24: Kürzel Mitarb.
A25: Der/die Mitarbeiter/in bestätigt mit seinem/ihrem nachfolgenden Kürzel, | C25: 1
A26: dass alle oben genannten Prüfungen vollständig und korrekt durchgeführt worden sind. | C26: 2
C27: 3
C28: 4
C29: 5
C30: 6
C31: 7
C32: 8
C33: 9
C34: 10
C35: 11
C36: 12
A38: 7. Buchungssätze: | B38: keine

Sheet 8900-8959
A1: Jahr: | B1: =Stammblatt!$C$4 -> 0
A2: Mandantennummer: | B2: =Stammblatt!$C$5 -> 0
A3: Mandantenname: | B3: =Stammblatt!$C$6 -> 0
A5: 1. Konto/Kontenbereich: | B5: 8900-8959 | G5: Eigenverbrauch / unentgeltliche Wertabgaben (Sachentnahmen)
A6: 2. Thema: | B6: Eigenverbrauch Waren (kein Kfz)
A7: 3. Prüfungsziel: | B7: Saldo muss mit Belegen oder Eigenverbrauchstabelle der DATEV übereinstimmen. | G7: Pauschbeträge ohne USt für 2013 und 2014
A8: 4. Folgende Belege müssen vorliegen: | B8: Belege oder Eigenverbrauchstabelle des DATEV-Heftes (Stichwort unter "Eigenverbrauch") | G8: Gewerbezweig | H8: Ermäßigter Steuersatz | J8: Voller Steuersatz | L8: Insgesamt
B9: Die Tabelle ist rechts von dieser Liste zu sehen.
B10: Beim Telefon-EV können wir 20% der Nettotelefonkosten ansetzen, wenn das zu zu hohen Ergebnissen
B11: führt, kann er auch geringer ausfallen, aber bitte immer den %-Satz in Buchungssatz schreiben.
A12: 5. Erläuterungen/Berechnungen/Infos: | B12: keine | H12: 2013 | I12: 2014 | J12: 2013 | K12: 2014 | L12: 2013 | M12: 2014
A13: Saldo laut Belegen/DATEV-Tabelle: | C13: 31.01. | D13: 0 | H13: in €
A14: Saldo laut Rewe: | C14: =C13 -> 31.01. | D14: 0 | G14: Bäckerei | H14: 1133 | I14: 1176 | J14: 382 | K14: 397 | L14: 1515 | M14: 1573
A15: =A13 -> Saldo laut Belegen/DATEV-Tabelle: | C15: 28.02. | D15: 0 | G15: Fleischerei | H15: 878 | I15: 912 | J15: 789 | K15: 820 | L15: 1667 | M15: 1732
A16: Saldo laut Rewe: | C16: =C15 -> 28.02. | D16: 0 | G16: Gaststätten aller Art Abgaben von a) kalten Speisen b) kalten und warmen Speisen | H16: 1.107 1.527 | I16: 1.150 1.586 | J16: 929 1.667 | K16: 965 1.731 | L16: 2.036 3.194 | M16: 2.115 3.3.17
A17: Saldo laut Belegen/DATEV-Tabelle: | C17: 31.03. | D17: 0 | G17: Getränkeeinzelhandel | H17: 90 | I17: 93 | J17: 280 | K17: 291 | L17: 370 | M17: 384
A18: Saldo laut Rewe: | C18: =C17 -> 31.03. | D18: 0 | G18: Café und Konditorei | H18: 1095 | I18: 1137 | J18: 611 | K18: 635 | L18: 1706 | M18: 1772
A19: Saldo laut Belegen/DATEV-Tabelle: | C19: 30.04. | D19: 0 | G19: Milch, Milcherzeugnisse, Fettwaren und Eier (Einzelhandel) | H19: 611 | I19: 635 | J19: 64 | K19: 67 | L19: 675 | M19: 702
A20: Saldo laut Rewe: | C20: =C19 -> 30.04. | D20: 0 | G20: Nahrungs.-und Genussmittel (Einzelhandel) | H20: 1247 | I20: 1295 | J20: 713 | K20: 740 | L20: 1960 | M20: 2035
A21: Saldo laut Belegen/DATEV-Tabelle: | C21: 31.05. | D21: 0 | G21: Obst, Gemüse, Südfrüchte und Kartoffeln (Einzelhandel) | H21: 280 | I21: 291 | J21: 204 | K21: 212 | L21: 484 | M21: 503
A22: Saldo laut Rewe: | C22: =C21 -> 31.05. | D22: 0
A23: Saldo laut Belegen/DATEV-Tabelle: | C23: 30.06. | D23: 0
A24: Saldo laut Rewe: | C24: =C23 -> 30.06. | D24: 0
A25: Saldo laut Belegen/DATEV-Tabelle: | C25: 31.07. | D25: 0
A26: Saldo laut Rewe: | C26: =C25 -> 31.07. | D26: 0
A27: Saldo laut Belegen/DATEV-Tabelle: | C27: 31.08. | D27: 0
A28: Saldo laut Rewe: | C28: =C27 -> 31.08. | D28: 0
A29: Saldo laut Belegen/DATEV-Tabelle: | C29: 30.09. | D29: 0
A30: Saldo laut Rewe: | C30: =C29 -> 30.09. | D30: 0
A31: Saldo laut Belegen/DATEV-Tabelle: | C31: 31.10. | D31: 0
A32: Saldo laut Rewe: | C32: =C31 -> 31.10. | D32: 0
A33: Saldo laut Belegen/DATEV-Tabelle: | C33: 30.11. | D33: 0
A34: Saldo laut Rewe: | C34: =C33 -> 30.11. | D34: 0
A35: Saldo laut Belegen/DATEV-Tabelle: | C35: 31.12. | D35: 0
A36: Saldo laut Rewe: | C36: =C35 -> 31.12. | D36: 0
A38: 6. Prüfungsvermerk der/des ausführenden Mitarbeiter/in: | C38: Monat: | D38: Kürzel Mitarb.
A39: Der/die Mitarbeiter/in bestätigt mit seinem/ihrem nachfolgenden Kürzel, | C39: 1
A40: dass alle oben genannten Prüfungen vollständig und korrekt durchgeführt worden sind. | C40: 2
C41: 3
C42: 4
C43: 5
C44: 6
C45: 7
C46: 8
C47: 9
C48: 10
C49: 11
C50: 12
A52: 7. Buchungssätze: | B52: keine

Sheet 8921+8924
A1: Jahr: | B1: =Stammblatt!$C$4 -> 0
A2: Mandantennummer: | B2: =Stammblatt!$C$5 -> 0
A3: Mandantenname: | B3: =Stammblatt!$C$6 -> 0
A5: 1. Konto/Kontenbereich: | B5: 8921-8924
A6: 2. Thema: | B6: Private Kfz-Nutzung (nur für Einzelfirmen und Personengesellschaften) | G6: Erläuterungen zur privaten Kfz-Nutzung des Jahres ???
A7: 3. Prüfungsziel: | B7: Saldo muss mit unserer Berechnung rechts übereinstimmen.
A8: 4. Folgende Belege müssen vorliegen: | B8: Unsere Berechnung "Erläuterungen zur privaten Kfz-Nutzung"
A9: 5. Erläuterungen/Berechnungen/Infos: | B9: keine | G9: Kfz | H9: Anschaffung | I9: Erstzulassung | J9: Kraftstoff | K9: VoSt-Abzug | L9: Kennzeichen | M9: BLP | N9: Priv.-Nutz. | O9: Anzahl | P9: Priv.-Nutz.
A10: Saldo laut "Erläuterungen zur privaten Kfz-Nutzung": | C10: 31.01. | D10: 0 | H10: Datum | I10: Datum | K10: bei Kauf % | M10: in EUR | N10: Monat | O10: Monate | P10: Jahr
A11: Saldo laut Rewe: | C11: =C10 -> 31.01. | D11: 0
A12: =A10 -> Saldo laut "Erläuterungen zur privaten Kfz-Nutzung": | C12: 28.02. | D12: 0
A13: Saldo laut Rewe: | C13: =C12 -> 28.02. | D13: 0 | M13: 0 | N13: =M13*1% -> 0 | O13: 12 | P13: =N13*O13 -> 0
A14: Saldo laut "Erläuterungen zur privaten Kfz-Nutzung": | C14: 31.03. | D14: 0
A15: Saldo laut Rewe: | C15: =C14 -> 31.03. | D15: 0 | M15: 0 | N15: =M15*1% -> 0 | O15: 12 | P15: =N15*O15 -> 0
A16: Saldo laut "Erläuterungen zur privaten Kfz-Nutzung": | C16: 30.04. | D16: 0
A17: Saldo laut Rewe: | C17: =C16 -> 30.04. | D17: 0 | M17: 0 | N17: =M17*1% -> 0 | O17: 12 | P17: =N17*O17 -> 0
A18: Saldo laut "Erläuterungen zur privaten Kfz-Nutzung": | C18: 31.05. | D18: 0
A19: Saldo laut Rewe: | C19: =C18 -> 31.05. | D19: 0
A20: Saldo laut "Erläuterungen zur privaten Kfz-Nutzung": | C20: 30.06. | D20: 0 | G20: Summen | N20: =SUM(N12:N19) -> 0 | P20: =SUM(P12:P19) -> 0
A21: Saldo laut Rewe: | C21: =C20 -> 30.06. | D21: 0 | G21: Abzug von 20% nicht steuerbaren Kosten | K21: BS: 1880/8924 | N21: =-N20*20% -> 0 | P21: =-P20*20% -> 0
A22: Saldo laut "Erläuterungen zur privaten Kfz-Nutzung": | C22: 31.07. | D22: 0 | G22: Zwischensumme | N22: =SUM(N20:N21) -> 0 | P22: =SUM(P20:P21) -> 0
A23: Saldo laut Rewe: | C23: =C22 -> 31.07. | D23: 0
A24: Saldo laut "Erläuterungen zur privaten Kfz-Nutzung": | C24: 31.08. | D24: 0 | G24: zzgl. gesetzliche USt | H24: 0.19 | N24: =N22*H24 -> 0 | P24: =P22*H24 -> 0
A25: Saldo laut Rewe: | C25: =C24 -> 31.08. | D25: 0 | G25: Summe | K25: BS: 1880/8921 | N25: =SUM(N22:N24) -> 0 | P25: =SUM(P22:P24) -> 0
A26: Saldo laut "Erläuterungen zur privaten Kfz-Nutzung": | C26: 30.09. | D26: 0
A27: Saldo laut Rewe: | C27: =C26 -> 30.09. | D27: 0
A28: Saldo laut "Erläuterungen zur privaten Kfz-Nutzung": | C28: 31.10. | D28: 0 | G28: Ermittlung der Fahrten Wohnung - Betrieb:
A29: Saldo laut Rewe: | C29: =C28 -> 31.10. | D29: 0 | G29: BLP ?? x 0,03% x ?? km einfach = | K29: BS: 4679/4680 | M29: =M13 -> 0 | N29: =M29*0.03%*76 -> 0 | O29: 12 | P29: =N29*O29 -> 0
A30: Saldo laut "Erläuterungen zur privaten Kfz-Nutzung": | C30: 30.11. | D30: 0 | G30: - Entfernungsp. ?? Tage x ?? km einfach x 0,30 EUR/km = | K30: BS: 4678/4679 | N30: 0 | O30: 12 | P30: =N30*O30 -> 0
A31: Saldo laut Rewe: | C31: =C30 -> 30.11. | D31: 0 | K31: Gewinnerhöhung: | N31: =N29-N30 -> 0 | P31: =P29-P30 -> 0
A32: Saldo laut "Erläuterungen zur privaten Kfz-Nutzung": | C32: 31.12. | D32: 0
A33: Saldo laut Rewe: | C33: =C32 -> 31.12. | D33: 0 | G33: Die 1% Regelung ist mit Lohnart 2501 abzurechnen.
G34: Die Fahrten Wohnung - Betriebsstätte sind mit Lohnart 2420 abzurechnen.
A35: 6. Prüfungsvermerk der/des ausführenden Mitarbeiter/in: | C35: Monat: | D35: Kürzel Mitarb. | G35: Die Entfernungspauschale ist mit Lohnart 2440 abzurechnen.
A36: Der/die Mitarbeiter/in bestätigt mit seinem/ihrem nachfolgenden Kürzel, | C36: 1
A37: dass alle oben genannten Prüfungen vollständig und korrekt durchgeführt worden sind. | C37: 2
C38: 3
C39: 4
C40: 5
C41: 6
C42: 7
C43: 8
C44: 9
C45: 10
C46: 11
C47: 12
A49: 7. Buchungssätze: | B49: siehe rechts

Sheet EV Kfz GmbH (hidden)
A1: Jahr:
A2: Mandantennummer:
A3: Mandantenname:
A5: 1. Konto/Kontenbereich: | B5: 8921-8924
A6: 2. Thema: | B6: Private Kfz-Nutzung (nur für GmbH) | G6: Erläuterungen zur privaten Kfz-Nutzung des Jahres ???
A7: 3. Prüfungsziel: | B7: Saldo muss mit unserer Berechnung rechts übereinstimmen.
A8: 4. Folgende Belege müssen vorliegen: | B8: Unsere Berechnung "Erläuterungen zur privaten Kfz-Nutzung"
A9: 5. Erläuterungen/Berechnungen/Infos: | B9: keine | G9: Kfz | H9: Anschaffung | I9: Erstzulassung | J9: Kraftstoff | K9: VoSt-Abzug | L9: Kennzeichen | M9: BLP | N9: Priv.-Nutz. | O9: Anzahl | P9: Priv.-Nutz.
A10: Saldo laut "Erläuterungen zur privaten Kfz-Nutzung": | C10: 31.01. | D10: 0 | H10: Datum | I10: Datum | K10: bei Kauf % | M10: in EUR | N10: Monat | O10: Monate | P10: Jahr
A11: Saldo laut Rewe: | C11: =C10 -> 31.01. | D11: 0
A12: =A10 -> Saldo laut "Erläuterungen zur privaten Kfz-Nutzung": | C12: 28.02. | D12: 0
A13: Saldo laut Rewe: | C13: =C12 -> 28.02. | D13: 0 | M13: 0 | N13: =M13*1% -> 0 | O13: 12 | P13: =N13*O13 -> 0
A14: Saldo laut "Erläuterungen zur privaten Kfz-Nutzung": | C14: 31.03. | D14: 0
A15: Saldo laut Rewe: | C15: =C14 -> 31.03. | D15: 0 | M15: 0 | N15: =M15*1% -> 0 | O15: 12 | P15: =N15*O15 -> 0
A16: Saldo laut "Erläuterungen zur privaten Kfz-Nutzung": | C16: 30.04. | D16: 0
A17: Saldo laut Rewe: | C17: =C16 -> 30.04. | D17: 0 | M17: 0 | N17: =M17*1% -> 0 | O17: 12 | P17: =N17*O17 -> 0
A18: Saldo laut "Erläuterungen zur privaten Kfz-Nutzung": | C18: 31.05. | D18: 0
A19: Saldo laut Rewe: | C19: =C18 -> 31.05. | D19: 0
A20: Saldo laut "Erläuterungen zur privaten Kfz-Nutzung": | C20: 30.06. | D20: 0 | G20: Summen inkl. 19% Ust | N20: =SUM(N12:N19) -> 0 | P20: =SUM(P12:P19) -> 0
A21: Saldo laut Rewe: | C21: =C20 -> 30.06. | D21: 0
A22: Saldo laut "Erläuterungen zur privaten Kfz-Nutzung": | C22: 31.07. | D22: 0 | G22: Ermittlung der Fahrten Wohnung - Betrieb:
A23: Saldo laut Rewe: | C23: =C22 -> 31.07. | D23: 0 | G23: BLP ?? x 0,03% x ?? km einfach = | M23: =M7 -> 0 | N23: 0 | O23: 12 | P23: =N23*O23 -> 0
A24: Saldo laut "Erläuterungen zur privaten Kfz-Nutzung": | C24: 31.08. | D24: 0 | G24: - Entfernungsp. ?? Tage x ?? km einfach x 0,30 EUR/km = | N24: 0 | O24: 12 | P24: =N24*O24 -> 0
A25: Saldo laut Rewe: | C25: =C24 -> 31.08. | D25: 0
A26: Saldo laut "Erläuterungen zur privaten Kfz-Nutzung": | C26: 30.09. | D26: 0
A27: Saldo laut Rewe: | C27: =C26 -> 30.09. | D27: 0 | G27: Die 1% Regelung ist mit Lohnart 2501 abzurechnen.
A28: Saldo laut "Erläuterungen zur privaten Kfz-Nutzung": | C28: 31.10. | D28: 0 | G28: Die Fahrten Wohnung - Betriebsstätte sind mit Lohnart 2420 abzurechnen.
A29: Saldo laut Rewe: | C29: =C28 -> 31.10. | D29: 0 | G29: Die Entfernungspauschale ist mit Lohnart 2440 abzurechnen.
A30: Saldo laut "Erläuterungen zur privaten Kfz-Nutzung": | C30: 30.11. | D30: 0
A31: Saldo laut Rewe: | C31: =C30 -> 30.11. | D31: 0
A32: Saldo laut "Erläuterungen zur privaten Kfz-Nutzung": | C32: 31.12. | D32: 0
A33: Saldo laut Rewe: | C33: =C32 -> 31.12. | D33: 0
A35: 6. Prüfungsvermerk der/des ausführenden Mitarbeiter/in: | C35: Monat: | D35: Kürzel Mitarb.
A36: Der/die Mitarbeiter/in bestätigt mit seinem/ihrem nachfolgenden Kürzel, | C36: 1
A37: dass alle oben genannten Prüfungen vollständig und korrekt durchgeführt worden sind. | C37: 2
C38: 3
C39: 4
C40: 5
C41: 6
C42: 7
C43: 8
C44: 9
C45: 10
C46: 11
C47: 12
A49: 7. Buchungssätze: | B49: siehe rechts

Sheet Plausi-Prüf.
A1: Jahr: | B1: =Stammblatt!$C$4 -> 0
A2: Mandantennummer: | B2: =Stammblatt!$C$5 -> 0
A3: Mandantenname: | B3: =Stammblatt!$C$6 -> 0 | G3: Plausibilitätsprüfungen
A5: 1. Konto/Kontenbereich: | B5: keine | G5: Aufschlagsatz
A6: 2. Thema: | B6: Plausibilitätsprüfung Rohaufschlagsatz | G6: Rohgewinn II
A7: 3. Prüfungsziel: | B7: Plausibilitätsprüfung Rohaufschlagsatz
A8: 4. Folgende Belege müssen vorliegen: | B8: keine | J8: Januar | K8: Februar | L8: März | M8: April | N8: Mai | O8: Juni | P8: Juli | Q8: August | R8: September | S8: Oktober | T8: November | U8: Dezember
A9: 5. Erläuterungen/Berechnungen/Infos: | B9: In schwarzgeldgefährdeten Branchen (Gaststätte etc.) muss diese | G9: wirtschaftlicher Umsatz | H9: 8140 | J9: 6871.12 | K9: 6871.12 | L9: 6871.12 | M9: 6871.12 | N9: 6871.12 | O9: 6871.12 | P9: 6871.12 | Q9: 6871.12 | R9: 6871.12 | S9: 6871.12 | T9: 6871.12 | U9: 15770
B10: Berechnung durchgeführt werden. | H10: 8400 | J10: 234446.05 | K10: 234446.05 | L10: 234446.05 | M10: 234446.05 | N10: 234446.05 | O10: 234446.05 | P10: 234446.05 | Q10: 234446.05 | R10: 234446.05 | S10: 234446.05 | T10: 234446.05 | U10: 234446.05
A11: Saldo laut Berechnung rechts: | C11: 31.01. | D11: 0 | H11: 8409 | J11: 917.17 | K11: 917.17 | L11: 917.17 | M11: 917.17 | N11: 917.17 | O11: 917.17 | P11: 917.17 | Q11: 917.17 | R11: 917.17 | S11: 917.17 | T11: 917.17 | U11: 917.17
A12: Saldo laut Rewe: | C12: =C11 -> 31.01. | D12: 0 | H12: 8736 | J12: -0.79 | K12: -0.79 | L12: -0.79 | M12: -0.79 | N12: -0.79 | O12: -0.79 | P12: -0.79 | Q12: -0.79 | R12: -0.79 | S12: -0.79 | T12: -0.79 | U12: -0.79
A13: =A11 -> Saldo laut Berechnung rechts: | C13: 28.02. | D13: 0 | J13: =SUM(J9:J12) -> 242233.55 | K13: =SUM(K9:K12) -> 242233.55 | L13: 242233.55 | M13: 242233.55 | N13: 242233.55 | O13: 242233.55 | P13: 242233.55 | Q13: 242233.55 | R13: 242233.55 | S13: 242233.55 | T13: 242233.55 | U13: 251132.43
A14: Saldo laut Rewe: | C14: =C13 -> 28.02. | D14: 0
A15: Saldo laut Berechnung rechts: | C15: 31.03. | D15: 0
A16: Saldo laut Rewe: | C16: =C15 -> 31.03. | D16: 0 | G16: Wareneinsatz | H16: 3106 | J16: 7374.41 | K16: 7374.41 | L16: 7374.41 | M16: 7374.41 | N16: 7374.41 | O16: 7374.41 | P16: 7374.41 | Q16: 7374.41 | R16: 7374.41 | S16: 7374.41 | T16: 7374.41 | U16: 7374.41
A17: Saldo laut Berechnung rechts: | C17: 30.04. | D17: 0 | H17: 3200 | J17: -1023.17 | K17: -1023.17 | L17: -1023.17 | M17: -1023.17 | N17: -1023.17 | O17: -1023.17 | P17: -1023.17 | Q17: -1023.17 | R17: -1023.17 | S17: -1023.17 | T17: -1023.17 | U17: -1023.17
A18: Saldo laut Rewe: | C18: =C17 -> 30.04. | D18: 0 | H18: 3400 | J18: 104605.1 | K18: 104605.1 | L18: 104605.1 | M18: 104605.1 | N18: 104605.1 | O18: 104605.1 | P18: 104605.1 | Q18: 104605.1 | R18: 104605.1 | S18: 104605.1 | T18: 104605.1 | U18: 111115
A19: Saldo laut Berechnung rechts: | C19: 31.05. | D19: 0 | H19: 3425 | J19: 240.48 | K19: 240.48 | L19: 240.48 | M19: 240.48 | N19: 240.48 | O19: 240.48 | P19: 240.48 | Q19: 240.48 | R19: 240.48 | S19: 240.48 | T19: 240.48 | U19: 240.48
A20: Saldo laut Rewe: | C20: =C19 -> 31.05. | D20: 0 | H20: 3736 | J20: 0 | K20: 0 | L20: 0 | M20: 0 | N20: 0 | O20: 0 | P20: 0 | Q20: 0 | R20: 0 | S20: 0 | T20: 0 | U20: 0
A21: Saldo laut Berechnung rechts: | C21: 30.06. | D21: 0 | H21: 3760 | J21: 0 | K21: 0 | L21: 0 | M21: 0 | N21: 0 | O21: 0 | P21: 0 | Q21: 0 | R21: 0 | S21: 0 | T21: 0 | U21: 0
A22: Saldo laut Rewe: | C22: =C21 -> 30.06. | D22: 0 | H22: 3960 | J22: 2405.26 | K22: 2405.26 | L22: 2405.26 | M22: 2405.26 | N22: 2405.26 | O22: 2405.26 | P22: 2405.26 | Q22: 2405.26 | R22: 2405.26 | S22: 2405.26 | T22: 2405.26 | U22: 2405.26
A23: Saldo laut Berechnung rechts: | C23: 31.07. | D23: 0 | J23: =SUM(J17:J22) -> 106227.67 | K23: =SUM(K17:K22) -> 106227.67 | L23: 106227.67 | M23: 106227.67 | N23: 106227.67 | O23: 106227.67 | P23: 106227.67 | Q23: 106227.67 | R23: 106227.67 | S23: 106227.67 | T23: 106227.67 | U23: 112737.57
A24: Saldo laut Rewe: | C24: =C23 -> 31.07. | D24: 0
A25: Saldo laut Berechnung rechts: | C25: 31.08. | D25: 0 | G25: =G9 -> wirtschaftlicher Umsatz | J25: =J13 -> 242233.55 | K25: =K13 -> 242233.55 | L25: 242233.55 | M25: 242233.55 | N25: 242233.55 | O25: 242233.55 | P25: 242233.55 | Q25: 242233.55 | R25: 242233.55 | S25: 242233.55 | T25: 242233.55 | U25: 251132.43
A26: Saldo laut Rewe: | C26: =C25 -> 31.08. | D26: 0 | G26: =G16 -> Wareneinsatz | J26: =-J23 -> -106227.67 | K26: =-K23 -> -106227.67 | L26: -106227.67 | M26: -106227.67 | N26: -106227.67 | O26: -106227.67 | P26: -106227.67 | Q26: -106227.67 | R26: -106227.67 | S26: -106227.67 | T26: -106227.67 | U26: -112737.57
A27: Saldo laut Berechnung rechts: | C27: 30.09. | D27: 0 | G27: Rohgewinn I | J27: =SUM(J25:J26) -> 136005.88 | K27: =SUM(K25:K26) -> 136005.88 | L27: 136005.88 | M27: 136005.88 | N27: 136005.88 | O27: 136005.88 | P27: 136005.88 | Q27: 136005.88 | R27: 136005.88 | S27: 136005.88 | T27: 136005.88 | U27: 138394.86
A28: Saldo laut Rewe: | C28: =C27 -> 30.09. | D28: 0 | G28: Löhne lt. BG | J28: -42934 | K28: -42933 | L28: -42932 | M28: -42931 | N28: -42930 | O28: -42929 | P28: -42928 | Q28: -42927 | R28: -42926 | S28: -42925 | T28: -42924 | U28: -42923
A29: Saldo laut Berechnung rechts: | C29: 31.10. | D29: 0 | G29: Rohgewinn II | J29: =SUM(J27:J28) -> 93071.88 | K29: 93072.88 | L29: 93073.88 | M29: 93074.88 | N29: 93075.88 | O29: 93076.88 | P29: 93077.88 | Q29: 93078.88 | R29: 93079.88 | S29: 93080.88 | T29: 93081.88 | U29: 95471.86
A30: Saldo laut Rewe: | C30: =C29 -> 31.10. | D30: 0
A31: Saldo laut Berechnung rechts: | C31: 30.11. | D31: 0 | G31: Rohgewinn II : w. Umsatz | J31: =J29/J25 -> 0.3842237378 | K31: 0.384227866 | L31: 0.3842319943 | M31: 0.3842361225 | N31: 0.3842402508 | O31: 0.384244379 | P31: 0.3842485073 | Q31: 0.3842526355 | R31: 0.3842567638 | S31: 0.384260892 | T31: 0.3842650203 | U31: 0.3801653972
A32: Saldo laut Rewe: | C32: =C31 -> 30.11. | D32: 0
A33: Saldo laut Berechnung rechts: | C33: 31.12. | D33: 0 | I33: ER
A34: Saldo laut Rewe: | C34: =C33 -> 31.12. | D34: 0 | I34: Datum
I35: C
A36: 6. Prüfungsvermerk der/des ausführenden Mitarbeiter/in: | C36: Monat: | D36: Kürzel Mitarb.
A37: Der/die Mitarbeiter/in bestätigt mit seinem/ihrem nachfolgenden Kürzel, | C37: 1 | G37: wirtschaftl. Umsatz bis 300.000 €, 36-55%/45%
A38: dass alle oben genannten Prüfungen vollständig und korrekt durchgeführt worden sind. | C38: 2
C39: 3 | G39: Siehe Richtsatzsammlung des BMF unter Link: | K39: Download: Richtsatzsammlung für das Kalenderjahr 2013 (PDF, 382,1 KB) | S39: zurück zum Ablauf
C40: 4
C41: 5
C42: 6
C43: 7
C44: 8
C45: 9
C46: 10
C47: 11
C48: 12
A50: 7. Buchungssätze: | B50: siehe rechts

Sheet USt-Konsolidierung
A1: Jahr: | B1: =Stammblatt!$C$4 -> 0
A2: Mandantennummer: | B2: =Stammblatt!$C$5 -> 0
A3: Mandantenname: | B3: =Stammblatt!$C$6 -> 0
A5: 1. Konto/Kontenbereich: | B5: relevante USt-Konten | J5: Erläuterungen zur Umsatzsteuererklärung ????
A6: 2. Thema: | B6: Umsatzsteuer-Konsolidierung | J6: (nur bei Konsolidierung erforderlich)
A7: 3. Prüfungsziel: | B7: Saldo muss mit unserer Berechnung rechts übereinstimmen.
A8: 4. Folgende Belege müssen vorliegen: | B8: Unsere Berechnung "Erläuterungen zur Umsatzsteuererklärung"
A9: 5. Erläuterungen/Berechnungen/Infos: | B9: Diese Berechnung ist nur notwendig, wenn USt-relevante Sachverhalte | J9: Umsätze 19% (Zeile 33) | K9: Erlöse aus ???
B10: nicht über Rewe gebucht werden.
A11: Saldo laut "Erläuterungen zur Umsatzsteuererklärung": | C11: 31.01. | D11: 0 | J11: Umsätze 19% (Zeile 33) | K11: Erlöse aus ???
A12: Saldo laut Rewe: | C12: =C11 -> 31.01. | D12: 0
A13: =A11 -> Saldo laut "Erläuterungen zur Umsatzsteuererklärung": | C13: 28.02. | D13: 0 | J13: Unentgeltliche Wertabgabe (Zeile 35) | K13: Erlöse aus ???
A14: Saldo laut Rewe: | C14: =C13 -> 28.02. | D14: 0
A15: Saldo laut "Erläuterungen zur Umsatzsteuererklärung": | C15: 31.03. | D15: 0 | J15: Summe Umsätze | L15: =SUM(L9:L14) -> 0
A16: Saldo laut Rewe: | C16: =C15 -> 31.03. | D16: 0 | J16: darauf 19% Ust (Zeile 60) | L16: =L15*19% -> 0
A17: Saldo laut "Erläuterungen zur Umsatzsteuererklärung": | C17: 30.04. | D17: 0
A18: Saldo laut Rewe: | C18: =C17 -> 30.04. | D18: 0 | J18: Vorsteuer (Zeile 62) | K18: Erlöse aus ???
A19: Saldo laut "Erläuterungen zur Umsatzsteuererklärung": | C19: 31.05. | D19: 0
A20: Saldo laut Rewe: | C20: =C19 -> 31.05. | D20: 0 | J20: Vorsteuer (Zeile 62) | K20: Erlöse aus ???
A21: Saldo laut "Erläuterungen zur Umsatzsteuererklärung": | C21: 30.06. | D21: 0
A22: Saldo laut Rewe: | C22: =C21 -> 30.06. | D22: 0 | J22: Vorsteuer i.g.E. (Zeile 63)
A23: Saldo laut "Erläuterungen zur Umsatzsteuererklärung": | C23: 31.07. | D23: 0
A24: Saldo laut Rewe: | C24: =C23 -> 31.07. | D24: 0 | J24: Umsatzsteuer i.g.E. (Zeile 93) | L24: =-L22 -> 0
A25: Saldo laut "Erläuterungen zur Umsatzsteuererklärung": | C25: 31.08. | D25: 0
A26: Saldo laut Rewe: | C26: =C25 -> 31.08. | D26: 0 | J26: Summe Vorsteuer | L26: =SUM(L18:L25) -> 0
A27: Saldo laut "Erläuterungen zur Umsatzsteuererklärung": | C27: 30.09. | D27: 0
A28: Saldo laut Rewe: | C28: =C27 -> 30.09. | D28: 0 | J28: Summe Ust-Zahllast | L28: =L16-L26 -> 0
A29: Saldo laut "Erläuterungen zur Umsatzsteuererklärung": | C29: 31.10. | D29: 0
A30: Saldo laut Rewe: | C30: =C29 -> 31.10. | D30: 0 | J30: Ust-Vorauszahlungssoll (Zeile 108)
A31: Saldo laut "Erläuterungen zur Umsatzsteuererklärung": | C31: 30.11. | D31: 0
A32: Saldo laut Rewe: | C32: =C31 -> 30.11. | D32: 0 | J32: Umsatzsteuer-Abschlusszahlung (+)/Erstattung (-) | L32: =L28-L30 -> 0
A33: Saldo laut "Erläuterungen zur Umsatzsteuererklärung": | C33: 31.12. | D33: 0
A34: Saldo laut Rewe: | C34: =C33 -> 31.12. | D34: 0
A36: 6. Prüfungsvermerk der/des ausführenden Mitarbeiter/in: | C36: Monat: | D36: Kürzel Mitarb.
A37: Der/die Mitarbeiter/in bestätigt mit seinem/ihrem nachfolgenden Kürzel, | C37: 1
A38: dass alle oben genannten Prüfungen vollständig und korrekt durchgeführt worden sind. | C38: 2
C39: 3
C40: 4
C41: 5
C42: 6
C43: 7
C44: 8
C45: 9
C46: 10
C47: 11
C48: 12
A50: 7. Buchungssätze: | B50: siehe rechts

Sheet Überleitung HB zu StB (hidden)
A2: Hilfe | S2: Hilfe
A4: =CONCATENATE([2]Programmeinstellungen!G19," ",YEAR(WJEnde)) ->  | S4: =CONCATENATE([2]Programmeinstellungen!Y19," ",YEAR(WJEnde)) -> 
F5: =[2]Programmeinstellungen!B63 -> Überleitungsrechnung | W5: =[2]Programmeinstellungen!T64 ->  | DC5: =[2]Berechnungen!B516 -> 1
A6: ENTFÄLLT BEI GEWINNERMITTLUNG NACH § 4 (3) ESTG
A7: Posten | F7: Handelsbilanz | H7: Handelsbilanz | J7: Steuerbilanz | L7: Steuerbilanz | N7: Gewinn- korrektur in Euro | X7: Gesamt | Y7: <<Name>> | Z7: <<Name>> | AA7: <<Name>> | AB7: <<Name>> | AC7: <<Name>> | AD7: <<Name>>
F8: =WJBeginn-1 ->  | H8: =WJEnde ->  | J8: =WJBeginn-1 ->  | L8: =WJEnde ->  | X8: =SUM(Y8:AD8) -> 1 | Y8: 1 | Z8: 0 | AA8: 0 | AB8: 0 | AC8: 0 | AD8: 0
F9: in Euro | H9: in Euro | J9: in Euro | L9: in Euro | X9: in Euro | Y9: in Euro | Z9: in Euro | AA9: in Euro | AB9: in Euro | AC9: in Euro | AD9: in Euro
S10: Ergebnis lt. Handelsbilanz | X10: 0 | Y10: =IF(X8=100%,"","Achtung! Aufteilungsprozente ergeben nicht 100!") -> 
A11: Aktivposten | S11: Vorabgewinn | X11: =SUM(Y11:AD11) -> 0 | Y11: 0 | Z11: 0 | AA11: 0 | AB11: 0 | AC11: 0 | AD11: 0
A12: Aktivierte Entwicklungskosten | N12: =F12-H12-J12+L12 -> 0 | S12: Restgewinn | X12: =X10-X11 -> 0 | Y12: =ROUND($G$13*Y$8,2) -> 0 | Z12: 0 | AA12: 0 | AB12: 0 | AC12: 0 | AD12: 0
A13: Sachanlagen | N13: 0
A14: Vorräte | N14: 0 | S14: Handelsrechtliche Gewinnverteilung | X14: =SUM(Y14:AD14) -> 0 | Y14: =SUM(Y11:Y12) -> 0 | Z14: 0 | AA14: 0 | AB14: 0 | AC14: 0 | AD14: 0
A15: Wertpapiere | N15: 0
N16: 0 | S16: +/- | T16: Ergebnis aus Überleitungsrechnung | X16: =Ergebnis_Ueberleitung ->  | Y16: =ROUND($G17*Y$8,2) -> 0 | Z16: 0 | AA16: 0 | AB16: 0 | AC16: 0 | AD16: 0
N17: 0
N18: 0 | S18: Steuerrechtliche Gewinnverteilung | X18: =SUM(Y18:AD18) -> 0 | Y18: =SUM(Y14:Y16) -> 0 | Z18: 0 | AA18: 0 | AB18: 0 | AC18: 0 | AD18: 0
N19: 0
N20: 0 | S20: + | T20: Körperschaftsteuer | X20: 0 | Y20: =ROUND($G21*Y$8,2) -> 0 | Z20: =ROUND($G21*Z$8,2) -> 0 | AA20: =ROUND($G21*AA$8,2) -> 0 | AB20: =ROUND($G21*AB$8,2) -> 0 | AC20: =ROUND($G21*AC$8,2) -> 0 | AD20: =ROUND($G21*AD$8,2) -> 0
N21: 0 | S21: + | T21: Kapitalertragsteuer | X21: 0 | Y21: 0 | Z21: 0 | AA21: 0 | AB21: 0 | AC21: 0 | AD21: 0
S22: + | T22: Zinsabschlagsteuer | X22: 0 | Y22: 0 | Z22: 0 | AA22: 0 | AB22: 0 | AC22: 0 | AD22: 0
A23: Passivposten | S23: + | T23: Solidaritätszuschlag zur KapSt, ZaSt, KSt | X23: 0 | Y23: 0 | Z23: 0 | AA23: 0 | AB23: 0 | AC23: 0 | AD23: 0
A24: Rücklage § 6b EStG | N24: =H24-F24-L24+J24 -> 0 | S24: + | T24: Schuldzinsen nach § 4 Abs. 4a EStG | X24: 0 | Y24: 0 | Z24: 0 | AA24: 0 | AB24: 0 | AC24: 0 | AD24: 0
A25: Pensionsrückstellung | H25: 0 | J25: 0 | L25: 0 | N25: =H25-F25-L25+J25 -> 0 | S25: + | T25: Verzinsung Auflösung Rücklage § 7g EStG | X25: 0 | Y25: 0 | Z25: 0 | AA25: 0 | AB25: 0 | AC25: 0 | AD25: 0
A26: Drohverlustrückstellung | N26: 0 | S26: + | T26: Fahrten Wohnung - Arbeitsstätte | X26: 0 | Y26: 0 | Z26: 0 | AA26: 0 | AB26: 0 | AC26: 0 | AD26: 0
N27: 0 | S27: + | T27: nichtabzugsfähige Bewirtungskosten | X27: 0 | Y27: 0 | Z27: 0 | AA27: 0 | AB27: 0 | AC27: 0 | AD27: 0
N28: 0 | S28: + | T28: nichtabzugsfähige Geschenke | X28: 0 | Y28: 0 | Z28: 0 | AA28: 0 | AB28: 0 | AC28: 0 | AD28: 0
N29: 0 | S29: + | T29: Spenden | X29: 0 | Y29: 0 | Z29: 0 | AA29: 0 | AB29: 0 | AC29: 0 | AD29: 0
N30: 0 | S30: + | T30: Gewerbesteuer | X30: 0 | Y30: 0 | Z30: 0 | AA30: 0 | AB30: 0 | AC30: 0 | AD30: 0
N31: 0 | S31: + | T31: sonstige nichtabzugsfähige Betriebsausgaben | X31: 0 | Y31: 0 | Z31: 0 | AA31: 0 | AB31: 0 | AC31: 0 | AD31: 0
N32: 0 | S32: + | T32: Auflösung Investitionsabzugsbeträge § 7g EStG | X32: 0 | Y32: 0 | Z32: 0 | AA32: 0 | AB32: 0 | AC32: 0 | AD32: 0
N33: 0 | S33: - | T33: Bildung Investitionsabzugsbeträge § 7g EStG | X33: 0 | Y33: 0 | Z33: 0 | AA33: 0 | AB33: 0 | AC33: 0 | AD33: 0
A35: Gewinnkorrektur gesamt (+ = Gewinnerhöhung / - = Gewinnminderung) | N35: =SUM(N12:N33) -> 0 | S35: Zwischensumme / Übertrag | X35: =SUM(X18:X33) -> 0 | Y35: 0 | Z35: 0 | AA35: 0 | AB35: 0 | AC35: 0 | AD35: 0
A37: Hinweise: | S37: =S35 -> Zwischensumme / Übertrag | X37: =X35 -> 0 | Y37: 0 | Z37: 0 | AA37: 0 | AB37: 0 | AC37: 0 | AD37: 0
S39: - | T39: Periodenfremde Erträge lt. BP | X39: 0 | Y39: =ROUND($G40*Y$8,2) -> 0 | Z39: 0 | AA39: 0 | AB39: 0 | AC39: 0 | AD39: 0
S40: - | T40: Dividenden (Teileinkünfteverfahren) | X40: 0 | Y40: 0 | Z40: 0 | AA40: 0 | AB40: 0 | AC40: 0 | AD40: 0
S41: - | T41: Aufzinsung Körperschaftsteuerguthaben § 37 KStG | X41: 0 | Y41: 0 | Z41: 0 | AA41: 0 | AB41: 0 | AC41: 0 | AD41: 0
S42: - | T42: Kinderbetreuungskosten | X42: 0 | Y42: 0 | Z42: 0 | AA42: 0 | AB42: 0 | AC42: 0 | AD42: 0
X43: 0 | Y43: 0 | Z43: 0 | AA43: 0 | AB43: 0 | AC43: 0 | AD43: 0
X44: 0 | Y44: =ROUND($G45*Y$8,2) -> 0 | Z44: =ROUND($G45*Z$8,2) -> 0 | AA44: 0 | AB44: =ROUND($G45*AB$8,2) -> 0 | AC44: =ROUND($G45*AC$8,2) -> 0 | AD44: =ROUND($G45*AD$8,2) -> 0
S46: Zwischensumme / Übertrag | X46: =SUM(X37:X44) -> 0 | Y46: 0 | Z46: 0 | AA46: 0 | AB46: 0 | AC46: 0 | AD46: 0
S49: Zwischensumme | X49: =X46 -> 0 | Y49: 0 | Z49: 0 | AA49: 0 | AB49: 0 | AC49: 0 | AD49: 0
S51: +/- | T51: Ergebnis aus Wechsel der Gewinnermittlungsart | X51: =SUM(Y51:AD51) -> 0 | Y51: 0 | Z51: 0 | AA51: 0 | AB51: 0 | AC51: 0 | AD51: 0
S52: +/- | T52: Ergebnis Ergänzungsbilanzen | X52: =SUM(Y52:AD52) -> 0 | Y52: 0 | Z52: 0 | AA52: 0 | AB52: 0 | AC52: 0 | AD52: 0
S54: = | T54: steuerlicher Gewinn Gesamthand | X54: =SUM(Y54:AD54) -> 0 | Y54: =SUM(Y49:Y52) -> 0 | Z54: 0 | AA54: 0 | AB54: 0 | AC54: 0 | AD54: 0
S56: Steuerlicher Sonderbereich
S57: + | T57: Geschäftsführergehalt | X57: =SUM(Y57:AD57) -> 0 | Y57: 0 | Z57: 0 | AA57: 0 | AB57: 0 | AC57: 0 | AD57: 0
S58: + | T58: Haftungsvergütung | X58: =SUM(Y58:AD58) -> 0 | Y58: 0 | Z58: 0 | AA58: 0 | AB58: 0 | AC58: 0 | AD58: 0
S59: + | T59: Zinsen (Gesellschafterdarlehen) | X59: =SUM(Y59:AD59) -> 0 | Y59: 0 | Z59: 0 | AA59: 0 | AB59: 0 | AC59: 0 | AD59: 0
S60: +/- | T60: Ergebnis aus Sonderbilanzen | X60: =SUM(Y60:AD60) -> 0 | Y60: 0 | Z60: 0 | AA60: 0 | AB60: 0 | AC60: 0 | AD60: 0
S62: = | T62: Steuerliches Ergebnis | X62: =X54+X57+X58+X59+X60 -> 0 | Y62: =SUM(Y54:Y60) -> 0 | Z62: 0 | AA62: 0 | AB62: 0 | AC62: 0 | AD62: 0
S65: Hinweise:

Sheet 0956-0963 RS GewSt+KSt (hidden)
A1: Jahr:
A2: Mandantennummer:
A3: Mandantenname:
A5: 1. Konto/Kontenbereich: | B5: 956-963 | G5: Berechnung der vierteljährlichen Gewerbesteuerrückstellung | J5: Eingabefeld
A6: 2. Thema: | B6: Rückstellungen für GewSt und KSt | J6: Ergebnisfeld
A7: 3. Prüfungsziel: | B7: Die Berechnung rechts müssen mit der Fibu übereinstimmen.
A8: 4. Folgende Belege müssen vorliegen: | B8: Berechnung rechts | I8: März | J8: Juni | K8: September | L8: Dezember
A9: 5. Erläuterungen/Berechnungen/Infos: | B9: Einmal pro Jahr wird der Saldo laut unserer endgültigen Steuerberechnung abgestimmt. | G9: vorl. Gewinn lt. BWA | I9: 10000 | J9: 20000 | K9: 30000 | L9: 40000
B10: Unterjährig wird die Rückstellung laut Vorjahr oder geschätzt mit 1/12 Anteil gebucht. | G10: + GewSt | I10: 400 | J10: 800 | K10: 1200 | L10: 1600
A11: Saldo laut Berechnung rechts: | C11: 31.01. | D11: 0 | G11: + Hinzurechnungen | I11: 1000 | J11: 1000 | K11: 1000 | L11: 1000
A12: =A11 -> Saldo laut Berechnung rechts: | C12: 28.02. | D12: 0 | G12: - Kürzungen | I12: -1200 | J12: -1200 | K12: -1200 | L12: -1200
A13: Saldo laut Berechnung rechts: | C13: 31.03. | D13: 0 | G13: = Gewerbeertrag | I13: =SUM(I9:I12) -> 10200 | J13: =SUM(J9:J12) -> 20600 | K13: =SUM(K9:K12) -> 31000 | L13: =SUM(L9:L12) -> 41400
A14: Saldo laut Berechnung rechts: | C14: 30.04. | D14: 0 | G14: - anteiliger Freibetrag | H14: 24500 | I14: =-H14*1/4 -> -6125 | J14: =-H14*2/4 -> -12250 | K14: =-H14*3/4 -> -18375 | L14: =-H14 -> -24500
A15: Saldo laut Berechnung rechts: | C15: 31.05. | D15: 0 | G15: = stpfl. Gewerbeertrag | I15: =SUM(I13:I14) -> 4075 | J15: =SUM(J13:J14) -> 8350 | K15: =SUM(K13:K14) -> 12625 | L15: =SUM(L13:L14) -> 16900
A16: Saldo laut Berechnung rechts: | C16: 30.06. | D16: 0 | G16: x Steuermesszahl 3,5 % = Steuermessbetrag | I16: =I15*0.035 -> 142.625 | J16: =J15*0.035 -> 292.25 | K16: =K15*0.035 -> 441.875 | L16: =L15*0.035 -> 591.5
A17: Saldo laut Berechnung rechts: | C17: 31.07. | D17: 0 | G17: x Hebesatz in % | H17: 353
A18: Saldo laut Berechnung rechts: | C18: 31.08. | D18: 0 | G18: = Gewerbesteuer | I18: =I16*H17/100 -> 503.46625 | J18: =J16*H17/100 -> 1031.6425 | K18: =K16*H17/100 -> 1559.81875 | L18: =L16*H17/100 -> 2087.995
A19: Saldo laut Berechnung rechts: | C19: 30.09. | D19: 0 | G19: - VZ lt. GuV | I19: -600 | J19: -800 | K19: -1200 | L19: -1600
A20: Saldo laut Berechnung rechts: | C20: 31.10. | D20: 0 | G20: = Rückstellung/Aktivierung (-) | I20: =SUM(I18:I19) -> -96.53375 | J20: =SUM(J18:J19) -> 231.6425 | K20: =SUM(K18:K19) -> 359.81875 | L20: =SUM(L18:L19) -> 487.995
A21: Saldo laut Berechnung rechts: | C21: 30.11. | D21: 0
A22: Saldo laut Berechnung rechts: | C22: 31.12. | D22: 0
A24: 6. Prüfungsvermerk der/des ausführenden Mitarbeiter/in: | C24: Monat: | D24: Kürzel Mitarb.
A25: Der/die Mitarbeiter/in bestätigt mit seinem/ihrem nachfolgenden Kürzel, | C25: 1 | L25: zurück zum Ablauf
A26: dass alle oben genannten Prüfungen vollständig und korrekt durchgeführt worden sind. | C26: 2
C27: 3 | M27: Eingabefeld
C28: 4 | G28: Berechnung der vierteljährlichen Körperschaftsteuerrückstellung | M28: Ergebnisfeld
C29: 5
C30: 6 | M30: September | O30: Dezember
C31: 7 | I31: März | K31: Juni | N31: 30002 | P31: 40003
C32: 8 | G32: vorl. Gewinn lt. BWA | J32: 15000 | L32: 20001 | M32: 3000 | O32: 4000
C33: 9 | G33: + nicht abziehb. Aufwendg. | H33: KSt | I33: 1000 | K33: 2000 | M33: 200 | O33: 300
C34: 10 | H34: SolZ, SolZ auf KapSt | I34: 100 | K34: 200 | M34: 3000 | O34: 3000
C35: 11 | H35: GewSt-Aufwand | I35: 1000 | K35: 2000 | M35: 500 | O35: 500
C36: 12 | H36: KapSt | I36: 500 | K36: 500 | M36: 1200 | O36: 1200
H37: n. abzf. Betr.ausg. | I37: 1200 | K37: 1200 | M37: 700 | N37: =SUM(M32:M37) -> 8600 | O37: 700 | P37: =SUM(O32:O37) -> 9700
A38: 7. Buchungssätze: | B38: 4320 / 956 (Zuführung GewSt-Rückstellung) | H38: Spenden | I38: 600 | J38: =SUM(I33:I38) -> 4400 | K38: 600 | L38: =SUM(K33:K38) -> 6500 | N38: 102 | P38: 103
B39: 956 / 2283 (Auflösung GewSt-Rückstellung) | G39: +/-sonst. Mehrungen/Minderungen | H39: 4000 | J39: 100 | L39: 100 | N39: =SUM(N31:N38) -> 38704 | P39: =SUM(P31:P38) -> 49806
G40: Summe der Einkünfte | J40: =SUM(J32:J39) -> 19500 | L40: =SUM(L32:L39) -> 26601 | N40: =-M37 -> -700 | P40: =-O37 -> -700
A41: Umsatz | B41: Sollkonto / Habenkonto | C41: Datum | D41: Buchungstext | G41: - abziehbare Spenden | J41: =-I38 -> -600 | L41: =-K38 -> -600 | N41: =SUM(N39:N40) -> 38004 | P41: =SUM(P39:P40) -> 49106
C42: 31.01. | G42: Gesamtbetrag d. Einkünfte | H42: 15 | J42: =SUM(J40:J41) -> 18900 | L42: =SUM(L40:L41) -> 26001 | N42: =-H39*3/4 -> -3000 | P42: =-H39 -> -4000
C43: 28.02. | G43: - Verlustabzug anteilig | J43: =-H39*1/4 -> -1000 | L43: =-H39*2/4 -> -2000 | N43: =SUM(N41:N42) -> 35004 | P43: =SUM(P41:P42) -> 45106
C44: 31.03. | G44: zu versteuerndes Einkommen | J44: =SUM(J42:J43) -> 17900 | L44: =SUM(L42:L43) -> 24001
C45: 30.04. | N45: =N43*0.15 -> 5250.6 | P45: =P43*0.15 -> 6765.9
C46: 31.05. | G46: Körperschaftsteuer in % | J46: =J44*0.15 -> 2685 | L46: =L44*0.15 -> 3600.15 | N46: =-M32 -> -3000 | P46: =-O32 -> -4000
C47: 30.06. | G47: - KSt-VZ | H47: 5.5 | J47: =-I33 -> -1000 | L47: =-K33 -> -2000 | N47: =-M35 -> -500 | P47: =-O35 -> -500
C48: 31.07. | G48: - KapSt | J48: =-I36 -> -500 | L48: =-K36 -> -500 | N48: =SUM(N45:N47) -> 1750.6 | P48: =SUM(P45:P47) -> 2265.9
C49: 31.08. | G49: = Rückstellung/Aktivierung (-) | J49: =SUM(J46:J48) -> 1185 | L49: =SUM(L46:L48) -> 1100.15
C50: 30.09. | N50: =N45*0.055 -> 288.783 | P50: =P45*0.055 -> 372.1245
C51: 31.10. | G51: SolZ in % der KSt | J51: =J46*0.055 -> 147.675 | L51: =L46*0.055 -> 198.00825 | N51: =-M33 -> -200 | P51: =-O33 -> -300
C52: 30.11. | G52: - SolZ-VZ | J52: =-I34 -> -100 | L52: =-K34 -> -200 | N52: =SUM(N50:N51) -> 88.783 | P52: =SUM(P50:P51) -> 72.1245
C53: 31.12. | G53: = Rückstellung/Aktivierung (-) | J53: =SUM(J51:J52) -> 47.675 | L53: =SUM(L51:L52) -> -1.99175
N54: zurück zum Ablauf

Sheet Checkliste Anhang (hidden)
CY1: =[2]Berechnungen!B416 -> 1
A2: Hilfe
A3: =CONCATENATE([2]Programmeinstellungen!G19," ",YEAR(WJEnde)) ->  | F3: =[2]Programmeinstellungen!$G$23 -> Werner & Wollscheid StB
D4: =[2]Programmeinstellungen!B67 -> Checkliste Anhang
C6: Größenklasse auswählen:
C8: Allgemeine Pflichtangaben | F8: kleine KapG | G8: mittlere KapG | H8: große KapG | I8: erledigt
C9: Bilanzierungs- und Bewertungsmethoden (§ 284 Abs. 2 Nr. 1 HGB) | F9: ja | G9: ja | H9: ja
C10: Durchbrechung der Darstellungsstetigkeit (§ 265 Abs. 1 S. 2 HGB) | F10: ja | G10: ja | H10: ja
C11: Keine Vergleichbarkeit mit dem Vorjahr (§ 265 Abs. 2 S. 2 HGB) | F11: ja | G11: ja | H11: ja
C12: Anpassung der Vorjahreszahlen (§ 265 Abs. 2 S. 3 HGB) | F12: ja | G12: ja | H12: ja
C13: Verschiedene Gliederungsvorschriften bei mehreren Geschäftszweigen (§ 265 Abs. 4 HGB) | F13: ja | G13: ja | H13: ja
C14: Währungsumrechnung (§ 284 Abs. 2 Nr. 2 HGB) | F14: ja | G14: ja | H14: ja
C15: Abweichung der Methoden mit Einfluss auf Vermögens-, Finanz- und Ertragslage (§ 284 Abs. 2 Nr. 3 HGB) | F15: ja | G15: ja | H15: ja
C16: Einbeziehung der Fremdkapitalzinsen in Herstellungskosten (§ 284 Abs. 2 Nr. 5 HGB) | F16: ja | G16: ja | H16: ja
C17: Besondere Umstände, die dazu führen, dass der Jahresabschluss kein den tatsächlichen Verhältnissen entsprechendes Bild der Vermögens-, Finanz- und Ertragslage vermittelt (§ 264 Abs. 2 S. 2 HGB) | F17: ja | G17: ja | H17: ja
C18: Unterschiedsbeträge bei Anwendung Gruppenbewertung/Verbrauchsfolgeverfahren bei erheblicher Abweichung zum Börsen-/Marktpreis (§§ 240 Abs. 4, 256 S. 1, 284 Abs. 2 Nr. 4 HGB) | F18: nein | G18: ja | H18: ja
C19: Art, Umfang, beizulegende Zeitwerte, angewendete Bewertungsmethode für jede Kategorie derivativer Finanzinstrumente sowie Angabe des Bilanzpostens, in dem der Buchwert erfasst ist (§ 285 S. 1 Nr. 18 und Nr. 19 HGB) | F19: nein | G19: ja | H19: ja
C21: Pflichtangaben zur Bilanz | F21: kleine KapG | G21: mittlere KapG | H21: große KapG | I21: erledigt
C22: Vermögensgegenstand / Schuld unter mehreren Posten (§ 265 Abs. 3 S. 1 HGB) | F22: ja1) | G22: ja1) | H22: ja1)
C23: Zusammenfassung von Abschlussposten (§ 265 Abs. 7 HGB) | F23: ja1) | G23: ja1) | H23: ja1)
C24: Größere Beträge, die rechtlich nach dem Abschlusszeitpunkt entstehen
C25: - Vermögensgegenstände (§ 268 Abs. 4 S. 2 HGB) | F25: nein | G25: ja | H25: ja
C26: - Verbindlichkeiten (§ 268 Abs. 5 S. 3 HGB) | F26: nein | G26: ja | H26: ja
C27: Anlagespiegel (§ 268 Abs. 2 HGB) | F27: nein | G27: ja1) | H27: ja1)
C28: Abschreibungen des Geschäftsjahres (§ 268 Abs. 2 S. 3 HGB) | F28: nein | G28: ja2) | H28: ja2)
C29: Gewinn- oder Verlustvortrag bei teilweiser Verwendung des Jahresergebnisses (§ 268 Abs. 1 S. 2 HGB) | F29: ja1) | G29: ja1) | H29: ja1)
C30: Gründe für planmäßige Abschreibung des Geschäfts- oder Firmenwertes über mehr als fünf Jahre (§ 285 S. 1 Nr. 13 HGB) | F30: ja | G30: ja | H30: ja
C31: Disagio im Rechnungsabgrenzungsposten nach § 250 Abs. 3 HGB eingestellt (§ 268 Abs. 6 HGB) | F31: nein | G31: ja1) | H31: ja1)
C32: Rückstellung für passivische latente Steuern (§ 274 Abs. 1 S. 1 HGB) | F32: ja1) | G32: ja1) | H32: ja1)
C33: Bilanzierungshilfe für aktivische latente Steuern (§ 274 Abs. 2 S. 2 HGB) | F33: ja | G33: ja | H33: ja
C34: Verbindlichkeiten mit Restlaufzeit größer als fünf Jahre, Gesamtbetrag (§ 285 S. 1 Nr. 1a HGB) | F34: ja | G34: ja | H34: ja
C35: Verbindlichkeiten, durch Pfandrechte u.Ä. gesichert, Gesamtbetrag (§ 285 S. 1 Nr. 1b HGB) | F35: ja | G35: ja | H35: ja
C36: Aufgliederung für jeden Posten nach § 285 S. 1 Nr. 1 HGB (§ 285 S. 1 Nr. 2 HGB) | F36: nein | G36: ja | H36: ja
C37: Betrag der in der Bilanz nicht ausgewiesenen Rückstellungen für vor dem 01.01.1987 entstandene Pensionsverpflichtungen, mittelbare Verpflichtungen und ähnliche Verpflichtungen (§ 249 Abs. 1 S. 1 HGB i.V.m. Art. 28 EGHGB) | F37: ja | G37: ja | H37: ja
C38: Nicht in der Bilanz ausgewiesene "sonstige Rückstellungen" von nicht unerheblichem Umfang (§ 285 S. 1 Nr. 12 HGB) | F38: nein | G38: 0 | H38: ja
C39: Zu den Finanzanlagen gehörende Finanzinstrumente, die über ihrem beizulegenden Zeitwert ausgewiesen werden, da insoweit eine außerplanmäßige Abschreibung gem. § 253 Abs. 2 S. 3 HGB unterblieben ist: Angabe der Buchwerte und der beilzulegenden Zeitwerte (für einzelne Vermögensgegenstände oder angemessene Gruppierungen) sowie die Gründe für das Unterlassen einer Abschreibung gem. § 253 Abs. 2 S. 3 HGB und der Anhaltspunkte, dass die Wertminderung voraussichtlich nicht von Dauer ist (§ 285 S. 1 Nr. 19 und 20 HGB) | F39: ja | G39: ja | H39: ja
C40: Geschäfte mit nahestehenden Unternehmen und Personen, die nicht zu marktüblichen Bedingungen zustande gekommen sind und die für die Beurteilung der Finanzlage von Bedeutung sind (§ 285 Nr. 21 HGB) | F40: nein | G40: 0 | H40: ja
C41: Gesamtbetrag der Forschungs- und Entwicklungsaufwendungen sowie der auf selbstgeschaffene immaterielle Vermögensgegenstände des Anlagevermögens entfallende Betrag (§ 285 Nr. 22 HGB) | F41: nein | G41: ja | H41: ja
C42: Nach § 254 HGB gebildete Bewertungseinheiten sind zu erläutern und nach den abgesicherten Risiken (Preisänderungs-, Zins-, Währungs-, Ausfall- oder Liquiditätsrisiken) zu unterteilen (§ 285 Nr. 23 HGB) | F42: ja | G42: ja | H42: ja
C43: Angabe der Beträge der nach § 246 Abs. 2 S. 2 HGB verrechneten Vermögensgegenstände und Schulden (§ 285 Nr. 25 HGB) | F43: ja | G43: ja | H43: ja
C44: Aufgliederung des Gesamtbetrags der Beträge i.S.d. § 268 Abs. 8 HGB in Beträge aus der Aktivierung selbstgeschaffener immaterieller Vermögensgegenstände des Anlagevermögens und latenter Steuern sowie aus der Bewertung von Vermögensgegenständen zum beizulegenden Zeitwert (§ 285 Nr. 28 HGB) | F44: ja | G44: ja | H44: ja
C45: Bericht, auf welchen Differenzen oder steuerlichen Verlustvorträgen die latenten Steuern beruhen, wobei diese Angabe unabhängig davon vorzunehmen ist, ob in der Bilanz latente Steuern ausgewiesen werden, denn gerade wenn - aufgrund der Gesamtdifferenzbetrachtung - kein Ausweis latenter Steuern erfolgt, ist anzugeben, aufgrund welcher Differenzen oder steuerlicher Verlustvorträge per Saldo ein Ausweis unterbleibt (§ 285 Nr. 29 HGB) | F45: nein | G45: nein | H45: ja
C46: Für GmbH Gewinnrücklagen nach § 29 Abs. 4 GmbHG | F46: ja1) | G46: ja1) | H46: ja1)
C47: Für GmbH Ausleihungen, Forderungen und Verbindlichkeiten gegenüber Gesellschaftern (§ 42 Abs. 3 GmbHG, § 264c Abs. 1 S. 1 HGB) | F47: ja1) | G47: ja1) | H47: ja1)
C49: Pflichtangaben zur GuV | F49: kleine KapG | G49: mittlere KapG | H49: große KapG | I49: erledigt
C50: Zusammengefasste Abschlussposten (§ 275 Abs. 2 HGB) | F50: 0 | G50: ja4) | H50: ja4)
C51: Abschreibungen nach §§ 253 Abs. 2 Satz 3 und 253 Abs. 3 Satz 3 HGB (§ 277 Abs. 3 HGB) | F51: 0 | G51: ja4) | H51: ja4)
C52: Außerordentliche Aufwendungen und Erträge mit Bedeutung für die Ertragslage (§ 277 Abs. 4 S. 2 HGB) | F52: nein | G52: ja | H52: ja
C53: Periodenfremde Aufwendungen und Erträge mit Bedeutung für die Ertragslage (§ 277 Abs. 4 S. 3 HGB) | F53: nein | G53: ja | H53: ja
C54: Aufgliederung Umsatzerlöse (§ 285 S. 1 Nr. 4 HGB) | F54: nein | G54: nein | H54: ja5)
C55: Aufteilung der Einkommen- und Ertragsteuern auf ordentliche und außerordentliche Ergebnisse (§ 285 S. 1 Nr. 6 HGB) | F55: nein | G55: ja | H55: ja
C56: Beim Umsatzkostenverfahren Gliederung des
C57: - Materialaufwands gem. § 275 Abs. 2 Nr. 5 HGB (§ 285 S. 1 Nr. 8a HGB) | F57: nein | G57: 0 | H57: ja
C58: - Personalaufwands gem. § 275 Abs. 2 Nr. 6 HGB (§ 285 S. 1 Nr. 8b HGB) | F58: 0 | G58: ja | H58: ja
C59: Angabe der Beträge der nach § 246 Abs. 2 S. 2 HGB mit den Bewertungseinheiten zusammenhängenden Erträge und Aufwendungen, die in der GuV-Rechnung ebenfalls verrechnet werden (§ 285 Nr. 20a HGB) | F59: ja | G59: ja | H59: ja
C61: Pflichtangaben zu Haftungsverhältnissen | F61: kleine KapG | G61: mittlere KapG | H61: große KapG | I61: erledigt
C62: Betrag der Haftungsverhältnisse nach § 251 HGB mit Angabe von Pfandrechten und Sicherheiten; gesonderte Angabe der unter den Haftungsverhältnissen ausgewiesenen Verpflichtungen gegenüber verbundenen Unternehmen (§ 268 Abs. 7 HGB) | F62: ja6) | G62: ja6) | H62: ja6)
C63: Gesamtbetrag der sonstigen Verpflichtungen, die nicht in der Bilanz erscheinen und nicht zu den Haftungsverhältnissen nach § 251 HGB gehören (§ 285 S. 1 Nr. 3 HGB) | F63: nein | G63: ja1) | H63: ja1)
C65: Pflichangaben zu Mitarbeitern und Organen | F65: kleine KapG | G65: mittlere KapG | H65: große KapG | I65: erledigt
C66: Mitglieder der Geschäftsführungsorgane und Aufsichtsräte, Benennung des Aufsichtsratsvorsitzenden, seines Stellvertreters und falls vorhanden des Vorsitzenden der Geschäftsführung; bei börsennotierten auch deren Mitgliedschaft in anderen Aufsichtsräten oder Kontrollgremien (§ 285 S. 1 Nr. 10 HGB) | F66: ja | G66: ja | H66: ja
C67: Vorschüsse, Kredite, Haftungsverhältnisse bei Vorstand, Geschäftsführung, Aufsichtsrat, Beirat u. Ä. (§ 285 S. 1 Nr. 9c HGB) | F67: ja | G67: ja | H67: ja
C68: Gesamtbezüge von Vorstands-, Geschäftsführungs-, Aufsichtsrats- , Beiratsmitgliedern u. Ä. (§ 285 S. 1 Nr. 9a HGB) | F68: nein | G68: ja | H68: ja
C69: Gesamtbezüge von früheren Vorstands-, Geschäftsführungs-, Aufsichtsrats- , Beiratsmitgliedern u. Ä. und deren Hinterbliebenen; Rückstellungen für deren Pensionen und Anwartschaften auf Pensionen sowie nicht gebildete Rückstellungen für diese Verpflichtungen (§ 285 S. 1 Nr. 9b HGB) | F69: nein | G69: ja | H69: ja
C70: Durchschnittliche Zahl der Arbeitnehmer getrennt nach Gruppen (§ 285 S. 1 Nr. 7 HGB) | F70: nein | G70: ja | H70: ja
C71: Angabe des angewandten versicherungsmathematischen Bewertungsverfahrens für Pensionsrückstellungen (§ 285 Nr. 24 HGB) | F71: ja | G71: ja | H71: ja
C73: Pflichtangaben zur Beteiligungsverhältnissen | F73: kleine KapG | G73: mittlere KapG | H73: große KapG | I73: erledigt
C74: Name und Sitz anderer Unternehmen bei mind. 20 %iger Beteiligung der KapG oder der für sie handelnden Personen sowie Angaben der Beteiligungsquote, das Eigenkapital und das Ergebnis; bei börsennotierten Unternehmen auch Name und Sitz von allen großen Kapitalgesellschaften, an denen das Unternehmen mehr als 5 % der Stimmrechte besitzt (§ 285 S. 1 Nr. 11 HGB) | F74: ja | G74: ja | H74: ja
C75: Name, Sitz und Rechtsform der Unternehmen, deren unbeschränkt haftender Gesellschafter die Kapitalgesellschaft ist (§ 285 S. 1 Nr. 11a HGB) | F75: ja | G75: ja | H75: ja
C76: Darstellung des Zwecks des Erwerbs von Anteilen an Spezialfonds, Buchwert, beizulegender Zeitwert, thesaurierte und ausgeschüttete Gewinne sowie Aufgliederung des Fondsvermögens (§ 285 Nr. 26 HGB) | F76: ja | G76: ja | H76: ja
C78: Sonstige Pflichtangaben | F78: kleine KapG | G78: mittlere KapG | H78: große KapG | I78: erledigt
C79: Name, Sitz und Ort der Offenlegung des Mutterunternehmens bei Konzernabschluss (§ 285 S. 1 Nr. 14 HGB) | F79: ja | G79: ja | H79: ja
C80: Name und Sitz des Mutterunternehmens, das den befreienden Konzernabschluss und -lagebericht aufstellt, sowie einen Hinweis darauf, dass die Befreiungsmöglichkeit in Anspruch genommen wird und eine Erläuterung der im befreienden Konzernabschluss vom deutschen Recht abweichend angewandten Bilanzierungs-, Bewertungs- und Konsolidierungsmethoden (§ 291 Abs. 2 Nr. 3 HGB) | F80: ja | G80: ja | H80: ja
C81: Als Aufwand erfasstes Honorar des Abschlussprüfers, sonstige Bestätigungs- oder Bewertungsleistungen, Steuerberatungsleistungen und sonstige Leistungen (§ 285 S. 1 Nr. 17 HGB) | F81: nein | G81: 0 | H81: ja
C83: Zusätzliche Pflichtangaben für Personengesellschaften | F83: kleine KapG | G83: mittlere KapG | H83: große KapG | I83: erledigt
C84: Angaben der in der Bilanz nicht gesondert ausgewiesenen Ausleihungen, Forderungen und Verbindlichkeiten gegenüber Gesellschaftern (§ 264c Abs. 1 HGB) | F84: ja1) | G84: ja1) | H84: ja1)
C85: Angaben der gem. § 172 Abs. 1 HGB im Handelsregister eingetragenen, nicht geleisteten Hafteinlagen (§264c Abs. 2 S. 9 HGB) | F85: ja | G85: ja | H85: ja
C86: Name, Sitz und gezeichnetes Kapital der Gesellschaften, die persönlich haftende Gesellschafter des berichtenden Unternehmens sind (§ 285 S. 1 Nr. 15 HGB) | F86: ja | G86: ja | H86: ja
C88: Zusätzliche Pflichtangaben für AG und KGaA | F88: kleine KapG | G88: mittlere KapG | H88: große KapG | I88: erledigt
C89: Angabe der Beträge zu dem Posten Kapitalrücklage, die während des Geschäftsjahres eingestellt wurden und die für das Geschäftsjahr entnommen wurden (§ 152 Abs. 2 AktG) | F89: ja1) | G89: ja1) | H89: ja1)
C90: Angabe der Beträge zu den einzelnen Posten der Gewinnrücklagen, die die Hauptversammlung aus dem Bilanzgewinn des Vorjahres eingestellt hat, die aus dem Jahresüberschuss des Geschäftsjahres eingestellt wurden und die für das Geschäftsjahr entnommen wurden (§ 152 Abs. 3 AktG) | F90: ja1) | G90: ja1) | H90: ja1)
C91: Erweiterung der Gewinn- und Verlustrechnung (§ 158 Abs. 1 AktG) | F91: ja4) | G91: ja4) | H91: ja4)
C92: Angabe zu Vorratsaktien (§160 Abs. 1 Nr. 1 AktG) | F92: ja | G92: ja | H92: ja
C93: Angabe zu eigenen Aktien (§ 160 Abs. 1 Nr. 2 AktG) | F93: ja | G93: ja | H93: ja
C94: Zahl jeder Aktiengattung sowie bei Nennbetragsaktien der Nennbetrag; gesonderte Angabe der Aktien, die bei einer bedingten Kapitalerhöhung oder einem genehmigten Kapital im Geschäftsjahr gezeichnet wurden (§ 160 Abs. 1 Nr. 3 AktG) | F94: ja1) | G94: ja1) | H94: ja1)
C95: Angaben zum genehmigten Kapital (§ 160 Abs. 1 Nr. 4 AktG) | F95: ja | G95: ja | H95: ja
C96: Angaben zur Zahl der Bezugsrechte nach § 192 Abs. 2 Nr. 3 AktG, zu Wandelschuldverschreibungen und zu vergleichbaren Wertpapieren unter Angabe der Rechte, die sie verbriefen (§ 160 Abs. 1 Nr. 5 AktG) | F96: ja | G96: ja | H96: ja
C97: Angaben zu Genussrechten, Rechten aus Besserungsscheinen und ähnlichen Rechten unter Angabe der Art und Zahl der jeweiligen Rechte sowie der im Geschäftsjahr neu entstandenen Rechte (§ 160 Abs. 1 Nr. 6 AktG) | F97: ja | G97: ja | H97: ja
C98: Angabe des Bestehens einer wechselseitigen Beteiligung (§160 Abs. 1 Nr. 7 AktG) | F98: ja | G98: ja | H98: ja
C99: Angaben der Beteiligungen, die der Gesellschaft nach § 20 Abs. 1 oder 4 AktG oder § 21 Abs. 1 oder 1a WpHG mitgeteilt worden sind (§ 160 Abs. 1 Nr. 8 AktG) | F99: ja | G99: ja | H99: ja
C100: Erläuterung der Verwendung von aus einer Kapitalherabsetzung oder einer Auflösung von Gewinnrücklagen gewonnenen Beträge zum Ausgleich von Wertminderungen, zur Deckung von sonstigen Verlusten oder zur Einstellung in die Kapitalrücklage (§ 240 AktG) | F100: ja | G100: ja | H100: ja
C101: Angaben gem. § 261 Abs. 1 S. 3 und 4 AktG nach einer in einer Sonderprüfung festgestellten unzulässigen Unterbewertung | F101: ja | G101: ja | H101: ja
C102: Zusätzlich zur Angabe, dass die nach § 161 AktG vorgeschriebene Erklärung abgegeben und den Aktionären zugänglich gemacht worden ist, besteht künftig auch die Verpflichtung zur Offenlegung, an welchem Ort (z.B. Internetseite o.Ä.) die Erklärung zur Corporate Governance (§ 161 AktG) öffentlich (nicht nur den Aktionären, sondern auch der Allgemeinheit) zugänglich ist (§ 285 Nr. 16 HGB) | F102: ja | G102: ja | H102: ja
C104: Im Zusammenhang mit der Erstanwendung der Vorschriften des BilMoG ist in Bezug auf die Berichterstattung im Anhang darüber hinaus zu beachten, dass die § 265 Abs. 1, § 284 Abs. 2 Nr. 3 HGB gem. Art. 67 Abs. 8 EGHGB nicht anzuwenden sind. Aufgrund dieser Erleichterungsvorschrift müssen die aus den Gesetzesänderungen folgenden Abweichungen der Ansatz-, Bewertungs- und Ausweismethoden gegenüber dem Vorjahr nicht als solche im Anhang genannt und begründet werden. Ebenso kann die Darstellung ihres Einflusses auf die Vermögens-, Finanz- und Ertragslage des berichtenden Unternehmens bzw. eine Anpassung der Vergleichswerte der Vorperiode unterbleiben. Letzteres ist konsequent, da sich andernfalls faktisch ein um ein Jahr früherer Erstanwendungszeitpunkt in Bezug auf die durch das BilMoG geänderten Vorschriften ergeben würde.
C106: Zeichenerklärung
C107: ja | D107: = Angabe muss gemacht werden
C108: nein | D108: = Angabe muss nicht gemacht werden
C109: 0 | D109: = Angabe kann bei Offenlegung entfallen
C110: 1) | D110: = Angabe auch in Bilanz möglich
C111: 2) | D111: = Angabe auch in Bilanz oder Anlagenspiegel möglich
C112: 3) | D112: = Angabe auch in Bilanz oder GuV möglich
C113: 4) | D113: = Angabe auch in GuV möglich
C114: 5) | D114: = Angabe kann unterbleiben bei erheblichem Nachteil
C115: 6) | D115: = Angabe kann auch unter der Bilanz erfolgen

Sheet ESt-Planung
A1: Jahr: | B1: =Stammblatt!$C$4 -> 0
A2: Mandantennummer: | B2: =Stammblatt!$C$5 -> 0
A3: Mandantenname: | B3: =Stammblatt!$C$6 -> 0
A6: Steuer-Planungsreport für das Jahr ??
A9: Gewinn lt. BWA | C9: Monat
C10: Jahr
A13: Berechnung der Einkommensteuer+Soli+Kirchensteuer
A15: Hochrechnung des Gewinns/Verlusts lt. aktueller BWA auf 12 Monate | F15: =SUM(F9/D9*12) -> 
A16: Einkommensteuer laut Est-Vorausberechnungsprogramm | F16: =SUM(F15*15%) -> 
A17: Solidaritätszuschlag 5,5% von der Einkommensteuer | F17: =F16*5.5% -> 
A18: Kirchensteuer 9% von der Einkommensteuer | F18: =F16*9% -> 
A19: Summe Einkommensteuer + Solidaritätszuschlag + Kirchensteuer | F19: =SUM(F16:F18) -> 
A20: Abzüglich Vorauszahlungen (mit Minus eingeben)
B21: 1. Quartal | C21: zur Zahlung fällig am 10.03.
B22: 2. Quartal | C22: zur Zahlung fällig am 10.06.
B23: 3. Quartal | C23: zur Zahlung fällig am 10.09.
B24: 4. Quartal | C24: zur Zahlung fällig am 10.12.
A25: Vorraussichtliche Nachzahlung(+) / Erstattung (-) für das aktuelle Jahr | F25: =SUM(F19:F24) -> 
A27: Hinweise:
A28: Es erfolgte eine lineare Hochrechnung des aktuellen Gewinns/Verlusts auf das Gesamtjahr.
A29: Es wurden keine besonderen Steuergestaltungsmaßnahmen eingerechnet.
A31: Fazit:
A32: Nach heutigem Stand reichen die vom Finanzamt festgesetzten Vorauszahlungen nicht aus, somit wären für das
A33: ="aktuelle Jahr weitere Einkommensteuervorauszahlungen in Höhe von "&TEXT(F25,"0.000,00 €")&" notwendig." -> 

Sheet GewSt zur ESt
A1: Jahr: | B1: =Stammblatt!$C$4 -> 0
A2: Mandantennummer: | B2: =Stammblatt!$C$5 -> 0
A3: Mandantenname: | B3: =Stammblatt!$C$6 -> 0
A6: =[4]ESt!A6 -> Steuer-Planungsreport für das Jahr ??
A9: Berechnung der Gewerbesteuer
A11: =[4]ESt!A15 -> Hochrechnung des Gewinns/Verlusts lt. aktueller BWA auf 12 Monate | D11: =[4]ESt!F15 -> 
A12: Gewerbesteuer ca. 15% | D12: =SUM(D11*15%) -> 
A13: =[4]KSt!A19 -> Abzüglich Vorauszahlungen (mit Minus eingeben)
B14: =[4]ESt!B21 -> 1. Quartal | C14: zur Zahlung fällig am 15.02. | D14: 0
B15: =[4]ESt!B22 -> 2. Quartal | C15: zur Zahlung fällig am 15.05. | D15: 0
B16: =[4]ESt!B23 -> 3. Quartal | C16: zur Zahlung fällig am 15.08. | D16: 0
B17: =[4]ESt!B24 -> 4. Quartal | C17: zur Zahlung fällig am 15.11. | D17: 0
A18: =[4]ESt!A25 -> Vorraussichtliche Nachzahlung(+) / Erstattung (-) für das aktuelle Jahr | D18: =SUM(D12:D17) -> 
A20: =[4]ESt!A27 -> Hinweise:
A21: =[4]ESt!A28 -> Es erfolgte eine lineare Hochrechnung des aktuellen Gewinns/Verlusts auf das Gesamtjahr.
A22: =[4]ESt!A29 -> Es wurden keine besonderen Steuergestaltungsmaßnahmen eingerechnet.
A24: =[4]KSt!A30 -> Fazit:
A25: Nach heutigem Stand reichen die von der Stadt/Gemeinde festgesetzten Vorauszahlungen
A26: ="nicht aus, somit wären für das aktuelle Jahr weitere Gewerbesteuervorauszahlungen in Höhe von ca. "&TEXT(D18,"0.000,00 €") -> 
A27: notwendig.

Sheet KSt-Planung (hidden)
A1: «SDV/Bezeichnung»
A2: «SDV/Strasse»
A3: «SDV/Ort»
A6: Steuer-Planungsreport für das Jahr ??
A9: Gewinn lt. BWA | C9: Monat
C10: Jahr | D10: 2014
A13: Berechnung der Körperschaftsteuer+Soli
A15: Hochrechnung des Gewinns/Verlusts lt. aktueller BWA auf 12 Monate | F15: =SUM(F9/D9*12) -> 
A16: Körperschaftsteuer 15% | F16: =SUM(F15*15%) -> 
A17: Solidaritätszuschlag 5,5% von der Körperschafteuer | F17: =SUM(F16*5.5%) -> 
A18: Summe Körperschaftsteuer + Solidaritätszuschlag | F18: =SUM(F16:F17) -> 
A19: Abzüglich Vorauszahlungen (mit Minus eingeben)
B20: 1. Quartal | C20: zur Zahlung fällig am 10.03. | F20: 0
B21: 2. Quartal | C21: zur Zahlung fällig am 10.06. | F21: 0
B22: 3. Quartal | C22: zur Zahlung fällig am 10.09. | F22: 0
B23: 4. Quartal | C23: zur Zahlung fällig am 10.12. | F23: 0
A24: Vorraussichtliche Nachzahlung(+) / Erstattung (-) für das aktuelle Jahr | F24: =SUM(F18:F23) -> 
A26: Hinweise:
A27: Es erfolgte eine lineare Hochrechnung des aktuellen Gewinns/Verlusts auf das Gesamtjahr.
A28: Es wurden keine besonderen Steuergestaltungsmaßnahmen eingerechnet.
A30: Fazit:
A31: Nach heutigem Stand reichen die vom Finanzamt festgesetzten Vorauszahlungen nicht aus, somit wären für das
A32: ="aktuelle Jahr weitere Körperschaftsteuervorauszahlungen in Höhe von "&TEXT(F24,"0.000,00 €")&" notwendig." -> 

Sheet GewSt-Planung zur KSt (hidden)
A1: =[4]KSt!A1 -> «SDV/Bezeichnung»
A2: =[4]KSt!A2 -> «SDV/Strasse»
A3: =[4]KSt!A3 -> «SDV/Ort»
A6: =[4]KSt!A6 -> Steuer-Planungsreport für das Jahr ??
A9: Berechnung der Gewerbesteuer
A11: =[4]KSt!A15 -> Hochrechnung des Gewinns/Verlusts lt. aktueller BWA auf 12 Monate | D11: =SUM([4]KSt!F15) -> 
A12: Gewerbesteuer ca. 15% | D12: =SUM(D11*15%) -> 
A13: =[4]KSt!A19 -> Abzüglich Vorauszahlungen (mit Minus eingeben)
B14: =[4]KSt!B20 -> 1. Quartal | C14: zur Zahlung fällig am 15.02. | D14: 0
B15: =[4]KSt!B21 -> 2. Quartal | C15: zur Zahlung fällig am 15.05. | D15: 0
B16: =[4]KSt!B22 -> 3. Quartal | C16: zur Zahlung fällig am 15.08. | D16: 0
B17: =[4]KSt!B23 -> 4. Quartal | C17: zur Zahlung fällig am 15.11. | D17: 0
A18: =[4]KSt!A24 -> Vorraussichtliche Nachzahlung(+) / Erstattung (-) für das aktuelle Jahr | D18: =SUM(D12:D17) -> 
A20: =[4]KSt!A26 -> Hinweise:
A21: =[4]KSt!A27 -> Es erfolgte eine lineare Hochrechnung des aktuellen Gewinns/Verlusts auf das Gesamtjahr.
A22: =[4]KSt!A28 -> Es wurden keine besonderen Steuergestaltungsmaßnahmen eingerechnet.
A24: =[4]KSt!A30 -> Fazit:
A25: Nach heutigem Stand reichen die von der Stadt/Gemeinde festgesetzten Vorauszahlungen
A26: ="nicht aus, somit wären für das aktuelle Jahr weitere Gewerbesteuervorauszahlungen in Höhe von ca. "&TEXT(D18,"0.000,00 €") -> 
A27: notwendig.

Sheet Aktivitätenplan
A1: Jahr: | B1: =Stammblatt!$C$4 -> 0
A2: Mandantennummer: | B2: =Stammblatt!$C$5 -> 0 | I2: Stichwort: Aktive Beratung
A3: Mandantenname: | B3: =Stammblatt!$C$6 -> 0
A6: ErfolgsReport: Aktivitätenplan (To-Do-Liste) für das Jahr ?? | I6: Interne Standard-Vorschläge der Steuerkanzlei
A8: Bezeichnung der einzelnen Aktivitäten | B8: Verantwortlichkeit | C8: Budget EUR | D8: Start am: | E8: Start am: | F8: erledigt am: | G8: erledigt am:
D9: Geplant | E9: Ist | F9: Geplant | G9: Ist
I11: Maßnahmen zur Kostensenkung:
I12: Kosten, die reduziert werden sollen auf Kontenblätter ausdrucken und markieren
I14: Maßnahmen zur Umsatzsteigerung:
I15: Vision + Ziele + Strategie aufstellen und umsetzen
I16: Ideen aufstellen und umsetzen
I17: Preise in Höhe der Inflation jährlich anheben
I18: Schwellenpreise festlegen
I20: Maßnahmen zur besseren Motivation der Arbeitnehmer:
I21: siehe unsere Homepage unter Jobs
I23: Maßnahmen zur Verbesserung der internen Organisation:
I24: Wochenplan einführen
I25: EDV verbessern, mobiler werden, vernetzter arbeiten
I26: Projektmanagement einführen
